Workbook

Sheet Menu
C3: MATRICE DE PROGRÈS POUR LE FINANCEMENT DE LA SANTÉ
C4: Version V2.2
C5: MENU
D7: Instructions | G7: Commencez à utiliser les matrice | J7: Vérifiez l’exhaustivité | M7: Résumé de votre évaluation | P7: Objectifs du système de santé | S7: Imprimez votre évaluation
C18: Remerciements
C19: Nous tenons à remercier tous ceux qui ont contribué à l’élaboration des matrices de progrès dans le cadre d’une réunion d’examen qui s’est tenue à Genève en mai 2018. Ce travail a bénéficié du soutien financier de la République de Corée du Sud et du Royaume-Uni (don du DfID MCHSS), que nous tenons également à remercier vivement.
N23: © Organisation Mondiale de la Santé 2019. Tous les droits sont réservés.

Sheet HFPM_Start (hidden)
C2: MATRICE DE PROGRÈS POUR LE FINANCEMENT DE LA SANTÉ

Sheet Results (hidden)
A2: =Instructions!G19 -> Nom du pays : | B2: =Country -> 0 | E2: =Q1.1+1 -> 1
A3: Code | B3: =IFERROR(VLOOKUP(B2,Y8:Z201,2,0),"") ->  | V3: Non pertinent
A4: =Instructions!H26 -> De : | B4: =Instructions!I26 -> 0 | C4: =Instructions!K26 -> 0 | D4: =A4&B4&" -"&C4 -> De : 0 -0 | F4: WHO region | G4: =VLOOKUP(code,$BC$7:$BF$200,3,0) -> 
A5: =Instructions!H27 -> À : | B5: =Instructions!I27 -> 0 | C5: =Instructions!K27 -> 0 | D5: =A5&B5&" -"&C5 -> À : 0 -0 | E5: =C5&" -"&B5 -> 0 -0 | F5: income | G5: =VLOOKUP(code,$BC$7:$BF$200,4,0) ->  | BC5: CLASSIFICATION
A6: =Instructions!G21 -> Rempli par : | B6: =Instructions!H21 -> 0 | C6: =Instructions!G23 -> Processus suivi: | D6: =Instructions!H23 -> 0 | Y6: Countries | AC6: FROM | AF6: TO | AL6: Efficience | AM6: Équité dans la distribution des ressources | AN6: Transparence et responsabilité | AO6: Équité des financements | AP6: Protection financière | AQ6: Qualité | AR6: Utilisation par rapport aux besoins | AV6: FUNCTION | AW6: Question_description | AX6: Result_text | AY6: score_number | AZ6: Question_required | BC6: code | BD6: country | BE6: WHO region | BF6: income
B7: Module | D7: Question | E7: Result | F7: Text | G7: Question does not apply | I7: Type of text | K7: Module number | M7: Actions | O7: Selection | Q7: Number | R7: Title | S7: Value | T7: Action | V7: Completeness | Y7: Country | Z7: WHO code | AC7: YEAR | AD7: MONTH | AF7: YEAR | AG7: MONTH | AK7: 1 | AL7: 2.4 | AM7: 3.2 | AN7: 2.1 | AO7: 2.1 | AP7: 2.1 | AQ7: 4.2 | AR7: 2.3 | AU7: Equity_in_resource_distribution | AV7: Q3.2 | AW7: =VLOOKUP(AV7,$C$8:$G$57,2,0) -> Dans le cadre du processus global d’élaboration et de planification de la mise en œuvre des politiques de financement de la santé, quelle est l’approche de votre pays en matière de dispositifs de mise en commun des ressources ? | AX7: =VLOOKUP(AV7,$C$8:$G$57,4,0) ->  | AY7: =VLOOKUP(AV7,$C$8:$G$57,3,0) -> 0 | AZ7: =VLOOKUP(AV7,$C$8:$G$57,5,0) -> FALSE | BC7: AFG | BD7: Afghanistan | BE7: EMR | BF7: Low
A8: 1.1 | B8: Processus d’élaboration des politiques | C8: Q1.1 | D8: Le système de financement de la santé de votre pays a-t-il récemment fait l’objet d’un diagnostic ou d’une évaluation approfondie qui examine son impact sur les performances du système de santé ainsi que les causes des problèmes de performance ? | E8: 0 | F8: =IF(OR(T1.1=$I$9,T1.1=""),"",T1.1) ->  | G8: FALSE | H8: =E8&"/12" -> 0/12 | I8: Veuillez décrire dans cette zone de texte les principales caractéristiques des droits à prestation dans votre pays, ainsi que les évolutions récentes, les plans futurs, etc. | K8: Processus d’élaboration des politiques | L8: 1 | M8: =IF(TA.1="","",TA.1) ->  | O8: Selected | P8: =VLOOKUP(Selected,$K$8:$L$14,2,0) -> 1 | Q8: =IF(OR(P8+0.1= 3.1,P8+0.1= 5.1),"",P8+0.1) -> 1.1 | R8: =IFERROR(CONCATENATE(U8,". ",VLOOKUP(Q8,$A$8:$E$57,4,0)),"") -> 1.1. Le système de financement de la santé de votre pays a-t-il récemment fait l’objet d’un diagnostic ou d’une évaluation approfondie qui examine son impact sur les performances du système de santé ainsi que les causes des problèmes de performance ? | S8: =IFERROR(VLOOKUP(Q8,$A$8:$E$57,5,0),"") -> 0 | T8: =IFERROR(VLOOKUP(P8,$L$8:$M$14,2,0),"") ->  | U8: =IF(Q8=4.11,"4,10",IF(Q8=6.16,"6,11",IF(Q8=6.15,"6,10",Q8))) -> 1.1 | V8: Non terminé | Y8: Afghanistan | Z8: AFG | AC8: 2018 | AD8: January | AF8: 2018 | AG8: January | AK8: 2 | AL8: 3.2 | AM8: 3.3 | AN8: 2.3 | AO8: 2.2 | AP8: 2.2 | AQ8: 4.3 | AR8: 2.4 | AU8: Equity_in_resource_distribution | AV8: Q3.3 | AW8: =VLOOKUP(AV8,$C$8:$G$57,2,0) -> Dans quelle mesure la capacité de redistribution des fonds prépayés dans votre pays est-elle limitée par le cadre institutionnel du financement de la santé ? | AX8: =VLOOKUP(AV8,$C$8:$G$57,4,0) ->  | AY8: =VLOOKUP(AV8,$C$8:$G$57,3,0) -> 0 | AZ8: =VLOOKUP(AV8,$C$8:$G$57,5,0) -> FALSE | BC8: ALB | BD8: Albania | BE8: EUR | BF8: Up-Mid
A9: 1.2 | C9: Q1.2 | D9: A-t-on transposé en textes de loi/décrets une déclaration de politique récente relative au financement de la santé ? | E9: 0 | F9: =IF(OR(T1.2=$I$9,T1.2=""),"",T1.2) ->  | G9: FALSE | H9: =E9&"/12" -> 0/12 | I9: Veuillez indiquer dans cette zone de texte vos idées, réflexions, évolutions récentes, projets actuels, etc. | K9: Collecte de recettes | L9: 2 | M9: =IF(TA.2="","",TA.2) ->  | O9: title | P9: =P8&". "&Selected -> 1. Processus d’élaboration des politiques | Q9: =P8+0.2 -> 1.2 | R9: =IFERROR(CONCATENATE(U9,". ",VLOOKUP(Q9,$A$8:$E$57,4,0)),"") -> 1.2. A-t-on transposé en textes de loi/décrets une déclaration de politique récente relative au financement de la santé ? | S9: 0 | U9: =IF(Q9=4.11,"4,10",IF(Q9=6.16,"6,11",IF(Q9=6.15,"6,10",Q9))) -> 1.2 | V9: Terminé | Y9: Albania | Z9: ALB | AC9: 2019 | AD9: February | AF9: 2019 | AG9: February | AK9: 3 | AL9: 3.3 | AM9: 3.4 | AN9: 4.4 | AO9: 2.4 | AP9: 2.4 | AQ9: 4.4 | AR9: 2.5 | AU9: Equity_in_resource_distribution | AV9: Q3.4 | AW9: Y-a-il des mesures, dans la conception des prestations, le paiement des prestataires ou les systèmes sous-jacents non financiers, qui visent à contrecarrer les problèmes découlant de la fragmentation de l’architecture du financement de la santé ? | AY9: 0 | AZ9: FALSE | BC9: DZA | BD9: Algeria | BE9: AFR | BF9: Up-Mid
A10: 1.3 | C10: Q1.3 | D10: Existe-t-il un système de suivi régulier du financement de la santé, et si oui les données sont-elles utilisées pour suivre les progrès effectués (par exemple sur les modèles de dépenses et la protection financière) et pour renforcer la reddition de comptes ? | E10: 0 | F10: =IF(OR(T1.3=$I$9,T1.3=""),"",T1.3) ->  | G10: FALSE | H10: 0/12 | K10: Mise en commun des recettes | L10: 3 | M10: =IF(TA.3="","",TA.3) ->  | Q10: =P8+0.3 -> 1.3 | R10: 1.3. Existe-t-il un système de suivi régulier du financement de la santé, et si oui les données sont-elles utilisées pour suivre les progrès effectués (par exemple sur les modèles de dépenses et la protection financière) et pour renforcer la reddition de comptes ? | S10: 0 | U10: 1.3 | V10: Non pertinent | Y10: Algeria | Z10: DZA | AC10: 2020 | AD10: March | AF10: 2020 | AG10: March | AK10: 4 | AL10: 3.4 | AM10: 3.5 | AN10: 4.8 | AO10: 2.5 | AP10: 2.5 | AQ10: 4.6 | AR10: 3.2 | AU10: Equity_in_resource_distribution | AV10: Q3.5 | AW10: Dans quelle mesure les différentes sources de revenus et de financement sont-elles organisées de manière complémentaire, afin de financer un paquet de prestations pour l’ensemble de la population ? | AY10: 0 | AZ10: FALSE | BC10: AND | BD10: Andorra | BE10: EUR | BF10: Hi
A11: 1.4 | C11: Q1.4 | D11: Les études d’évaluation sont-elles réalisées sur une base systématique pour mesurer les conséquences de la mise en œuvre de réformes spécifiques du financement sur les objectifs du système de santé et dans quelles mesure les résultats servent-ils à guider la conception et la révision des politiques de financement de la santé ? | E11: 0 | F11: =IF(OR(T1.4=$I$9,T1.4=""),"",T1.4) ->  | G11: FALSE | H11: 0/12 | K11: Achats et paiement des prestataires | L11: 4 | M11: =IF(TA.4="","",TA.4) ->  | Q11: =P8+0.4 -> 1.4 | R11: 1.4. Les études d’évaluation sont-elles réalisées sur une base systématique pour mesurer les conséquences de la mise en œuvre de réformes spécifiques du financement sur les objectifs du système de santé et dans quelles mesure les résultats servent-ils à guider la conception et la révision des politiques de financement de la santé ? | S11: 0 | U11: 1.4 | Y11: Andorra | Z11: AND | AC11: 2021 | AD11: April | AF11: 2021 | AG11: April | AK11: 5 | AL11: 3.5 | AM11: 3.6 | AN11: 5.2 | AO11: 3.4 | AP11: 3.2 | AQ11: 4.7 | AR11: 3.3 | AU11: Equity_in_resource_distribution | AV11: Q3.6 | AW11: Dans quelle mesure les dispositifs d’assurance-maladie volontaire sont-ils une source d’inégalités, créant des effets de contagion potentiellement néfastes pour l’ensemble du système de santé ? | AY11: 0 | AZ11: FALSE | BC11: AGO | BD11: Angola | BE11: AFR | BF11: Up-Mid
A12: 2.1 | B12: Collecte de recettes | C12: Q2.1 | D12: Quelle approche est en vigueur dans votre pays en matière d’élaboration de politiques et de stratégies de collecte de revenus ? Cette approche s'inscrit-elle dans le cadre du processus global d’élaboration et de planification de la mise en œuvre des politiques de financement de la santé ? | E12: 0 | F12: =IF(OR(T2.1=$I$9,T2.1=""),"",T2.1) ->  | G12: FALSE | H12: 0/12 | K12: Prestations et droits | L12: 5 | M12: =IF(TA.5="","",TA.5) ->  | Q12: =P8+0.5 -> 1.5 | U12: 1.5 | Y12: Angola | Z12: AGO | AD12: May | AG12: May | AK12: 6 | AL12: 3.7 | AM12: 4.1 | AN12: 5.5 | AO12: 3.6 | AP12: 3.3 | AQ12: 4.8 | AR12: 3.4 | AU12: Equity_in_resource_distribution | AV12: Q4.1 | AW12: Dans quelle mesure les allocations de fonds aux acheteurs de niveau inférieur, par exemple les administrations locales, et/ou les taux de paiement aux prestataires sont-ils le reflet des besoins de santé de la population ? | AY12: 0 | AZ12: FALSE | BC12: ATG | BD12: Antigua and Barbuda | BE12: AMR | BF12: Hi
A13: 2.2 | C13: Q2.2 | D13: Dans quelle mesure le financement de la santé dans votre pays repose-t-il sur des sources de financement public/obligatoire (par exemple, fiscalité/recettes publiques, y compris les cotisations obligatoires à l’assurance-maladie nationale/sociale) ? | E13: 0 | F13: =IF(OR(T2.2=$I$9,T2.2=""),"",T2.2) ->  | G13: FALSE | H13: 0/12 | K13: Gestion des finances publiques (GFP) | L13: 6 | M13: =IF(TA.6="","",TA.6) ->  | Q13: =P8+0.6 -> 1.6 | U13: 1.6 | Y13: Antigua and Barbuda | Z13: ATG | AD13: June | AG13: June | AK13: 7 | AL13: 4.5 | AM13: 4.2 | AN13: 5.7 | AO13: 4.11 | AP13: 3.4 | AQ13: 4.9 | AR13: 3.5 | AU13: Equity_in_resource_distribution | AV13: Q4.2 | AW13: Dans quelle mesure les paiements des prestataires sont-ils harmonisés entre régimes/sources de revenus et entre secteurs public et privé, afin de garantir des incitations cohérentes aux prestataires ? | AY13: 0 | AZ13: FALSE | BC13: ARG | BD13: Argentina | BE13: AMR | BF13: Up-Mid
A14: 2.3 | C14: Q2.3 | D14: Dans quelle mesure le financement public de la santé dans votre pays est-il prédictible sur plusieurs années ? | E14: 0 | F14: =IF(OR(T2.3=$I$9,T2.3=""),"",T2.3) ->  | G14: FALSE | H14: 0/12 | K14: Gouvernance | L14: 7 | M14: =IF(TA.7="","",TA.7) ->  | Q14: =P8+0.7 -> 1.7 | U14: 1.7 | Y14: Argentina | Z14: ARG | AD14: July | AG14: July | AK14: 8 | AL14: 4.8 | AM14: 6.4 | AN14: 6.5 | AO14: 5.4 | AP14: 3.5 | AQ14: 7.2 | AR14: 4.1 | AU14: Equity_in_resource_distribution | AV14: Q6.4 | AW14: Dans quelle mesure les allocations budgétaires annuelles en matière de santé sont alignées sur les priorités du secteur de la santé (niveau, structure, nature/objectif) ? | AY14: 0 | AZ14: FALSE | BC14: ARM | BD14: Armenia | BE14: EUR | BF14: Low-Mid
A15: 2.4 | C15: Q2.4 | D15: Dans quelle mesure le flux de fonds publics est-il stable, notamment grâce à une exécution budgétaire régulière, c’est-à-dire un déblocage des fonds dans les délais, conformément aux budgets de santé approuvés ? | E15: 0 | F15: =IF(OR(T2.4=$I$9,T2.4=""),"",T2.4) ->  | G15: FALSE | H15: 0/12 | Q15: =P8+0.8 -> 1.8 | U15: 1.8 | Y15: Armenia | Z15: ARM | AD15: August | AG15: August | AK15: 9 | AL15: 4.9 | AM15: 6.6 | AN15: 6.7 | AO15: 5.6 | AP15: 3.6 | AR15: 5.3 | AU15: Equity_in_resource_distribution | AV15: Q6.6 | AW15: Dans quelle mesure les transferts fiscaux sont conçus et mis en œuvre de sorte à améliorer l’équité de la distribution des ressources dans le secteur de la santé? | AY15: 0 | AZ15: FALSE | BC15: AUS | BD15: Australia | BE15: WPR | BF15: Hi
A16: 2.5 | C16: Q2.5 | D16: Dans quelle mesure les différentes sources de revenus sont-elles collectées de façon progressive (c.-à-d. en fonction de la capacité de payer), et partant de là favorisent l’équité dans le mode de financement du système de santé ? | E16: 0 | F16: =IF(OR(T2.5=$I$9,T2.5=""),"",T2.5) ->  | G16: FALSE | H16: 0/12 | Q16: =P8+0.9 -> 1.9 | U16: 1.9 | Y16: Australia | Z16: AUS | AD16: September | AG16: September | AK16: 10 | AL16: 4.11 | AM16: 6.16 | AN16: 6.9 | AP16: 4.11 | AR16: 5.4 | AU16: Equity_in_resource_distribution | AV16: Q6.11 | AW16: Dans quelle mesure les flux financiers multiples, la structure budgétaire et les règles de GFP sont alignés sur les politiques d’achats stratégiques? | AY16: 0 | AZ16: FALSE | BC16: AUT | BD16: Austria | BE16: EUR | BF16: Hi
A17: 3.1 | B17: Mise en commun des recettes | C17: Q3.1 | D17: Cette question a été maintenant remplacé par l’étape 1 et le tableau de vue d’ensemble et ne constitue donc plus une question distincte. Merci de bien vous assurer que vous avez complété l’étape 1 car cela vous aidera à remplir les questions de cette section. | E17: 0 | F17: =IF(OR(T3.1=$I$9,T3.1=""),"",T3.1) ->  | G17: FALSE | H17: 0/12 | K17: Method | M17: Actions | Q17: =IF(P8=4,4.11,IF(P8=6,6.15,"")) ->  | Y17: Austria | Z17: AUT | AD17: October | AG17: October | AK17: 11 | AL17: 6.7 | AN17: 7.1 | AP17: 5.4 | AR17: 5.5 | AU17: Efficiency | AV17: Q2.4 | AW17: Dans quelle mesure le flux de fonds publics est-il stable, notamment grâce à une exécution budgétaire régulière, c’est-à-dire un déblocage des fonds dans les délais, conformément aux budgets de santé approuvés ? | AY17: 0 | AZ17: FALSE | BC17: AZE | BD17: Azerbaijan | BE17: EUR | BF17: Up-Mid
A18: 3.2 | C18: Q3.2 | D18: Dans le cadre du processus global d’élaboration et de planification de la mise en œuvre des politiques de financement de la santé, quelle est l’approche de votre pays en matière de dispositifs de mise en commun des ressources ? | E18: 0 | F18: =IF(OR(T3.2=$I$9,T3.2=""),"",T3.2) ->  | G18: FALSE | H18: 0/12 | K18: Efficience | L18: 1 | M18: =IF(TA.1="","",TA.1) ->  | Q18: =IF(P8=6,6.16,"") ->  | S18: =IFERROR(VLOOKUP(Q18,$A$8:$E$57,5,0),"") ->  | Y18: Azerbaijan | Z18: AZE | AD18: November | AG18: November | AK18: 12 | AL18: 6.8 | AN18: 7.2 | AP18: 5.6 | AR18: 5.6 | AU18: Efficiency | AV18: Q3.2 | AW18: Dans le cadre du processus global d’élaboration et de planification de la mise en œuvre des politiques de financement de la santé, quelle est l’approche de votre pays en matière de dispositifs de mise en commun des ressources ? | AY18: 0 | AZ18: FALSE | BC18: BHS | BD18: Bahamas | BE18: AMR | BF18: Hi
A19: 3.3 | C19: Q3.3 | D19: Dans quelle mesure la capacité de redistribution des fonds prépayés dans votre pays est-elle limitée par le cadre institutionnel du financement de la santé ? | E19: 0 | F19: =IF(OR(T3.3=$I$9,T3.3=""),"",T3.3) ->  | G19: FALSE | H19: 0/12 | K19: Équité dans la distribution des ressources | L19: 2 | M19: =IF(TA.2="","",TA.2) ->  | O19: Selection | Q19: Number | S19: Title | T19: Value | U19: Action | Y19: Bahamas | Z19: BHS | AD19: December | AG19: December | AK19: 13 | AL19: 6.9 | AN19: 7.3 | AR19: 5.7 | AU19: Efficiency | AV19: Q3.3 | AW19: Dans quelle mesure la capacité de redistribution des fonds prépayés dans votre pays est-elle limitée par le cadre institutionnel du financement de la santé ? | AY19: 0 | AZ19: FALSE | BC19: BHR | BD19: Bahrain | BE19: EMR | BF19: Hi
A20: 3.4 | C20: Q3.4 | D20: Y-a-il des mesures, dans la conception des prestations, le paiement des prestataires ou les systèmes sous-jacents non financiers, qui visent à contrecarrer les problèmes découlant de la fragmentation de l’architecture du financement de la santé ? | E20: 0 | F20: =IF(OR(T3.4=$I$9,T3.4=""),"",T3.4) ->  | G20: FALSE | H20: 0/12 | K20: Transparence et responsabilité | L20: 3 | M20: =IF(TA.3="","",TA.3) ->  | O20: Selected | P20: =VLOOKUP(Selected2,K18:L24,2,0) -> 2 | Q20: 1 | R20: =IFERROR(VLOOKUP(Q20,$AK$6:$AR$23,$P$20+1,0),"") -> 3.2 | S20: =IFERROR(CONCATENATE(U20,". ",VLOOKUP(R20,$A$8:$E$57,4,0)),"") -> 3.2. Dans le cadre du processus global d’élaboration et de planification de la mise en œuvre des politiques de financement de la santé, quelle est l’approche de votre pays en matière de dispositifs de mise en commun des ressources ? | T20: =IFERROR(VLOOKUP(R20,$A$8:$E$57,5,0),"") -> 0 | U20: =IF(R20=4.11,"4,10",IF(R20=6.16,"6,11",IF(R20=6.15,"6,10",R20))) -> 3.2 | Y20: Bahrain | Z20: BHR | AK20: 14 | AL20: 6.16 | AN20: 7.4 | AR20: 6.4 | AU20: Efficiency | AV20: Q3.4 | AW20: Y-a-il des mesures, dans la conception des prestations, le paiement des prestataires ou les systèmes sous-jacents non financiers, qui visent à contrecarrer les problèmes découlant de la fragmentation de l’architecture du financement de la santé ? | AY20: 0 | AZ20: FALSE | BC20: BGD | BD20: Bangladesh | BE20: SEAR | BF20: Low
A21: 3.5 | C21: Q3.5 | D21: Dans quelle mesure les différentes sources de revenus et de financement sont-elles organisées de manière complémentaire, afin de financer un paquet de prestations pour l’ensemble de la population ? | E21: 0 | F21: =IF(OR(T3.5=$I$9,T3.5=""),"",T3.5) ->  | G21: FALSE | H21: 0/12 | K21: Équité des financements | L21: 4 | M21: =IF(TA.4="","",TA.4) ->  | O21: title | P21: =Selected2 -> Équité dans la distribution des ressources | Q21: 2 | R21: =IFERROR(VLOOKUP(Q21,$AK$6:$AR$23,$P$20+1,0),"") -> 3.3 | S21: =IFERROR(CONCATENATE(U21,". ",VLOOKUP(R21,$A$8:$E$57,4,0)),"") -> 3.3. Dans quelle mesure la capacité de redistribution des fonds prépayés dans votre pays est-elle limitée par le cadre institutionnel du financement de la santé ? | T21: =IFERROR(VLOOKUP(R21,$A$8:$E$57,5,0),"") -> 0 | U21: =IF(R21=4.11,"4,10",IF(R21=6.16,"6,11",IF(R21=6.15,"6,10",R21))) -> 3.3 | Y21: Bangladesh | Z21: BGD | AK21: 15 | AN21: 7.5 | AR21: 6.6 | AU21: Efficiency | AV21: Q3.5 | AW21: Dans quelle mesure les différentes sources de revenus et de financement sont-elles organisées de manière complémentaire, afin de financer un paquet de prestations pour l’ensemble de la population ? | AY21: 0 | AZ21: FALSE | BC21: BRB | BD21: Barbados | BE21: AMR | BF21: Hi
A22: 3.6 | C22: Q3.6 | D22: Dans quelle mesure les dispositifs d’assurance-maladie volontaire sont-ils une source d’inégalités, créant des effets de contagion potentiellement néfastes pour l’ensemble du système de santé ? | E22: 0 | F22: =IF(OR(T3.6=$I$9,T3.6=""),"",T3.6) ->  | G22: FALSE | H22: 0/12 | K22: Protection financière | L22: 5 | M22: =IF(TA.5="","",TA.5) ->  | Q22: 3 | R22: 3.4 | S22: 3.4. Y-a-il des mesures, dans la conception des prestations, le paiement des prestataires ou les systèmes sous-jacents non financiers, qui visent à contrecarrer les problèmes découlant de la fragmentation de l’architecture du financement de la santé ? | T22: 0 | U22: 3.4 | Y22: Barbados | Z22: BRB | AK22: 16 | AN22: 7.6 | AR22: 6.7 | AU22: Efficiency | AV22: Q3.7 | AW22: Dans quelle mesure les flux financiers sont-ils incohérents et redondants, et empêchent d’utiliser efficacement le budget public et les fonds des donateurs ? | AY22: 0 | AZ22: FALSE | BC22: BLR | BD22: Belarus | BE22: EUR | BF22: Up-Mid
A23: 3.7 | C23: Q3.7 | D23: Dans quelle mesure les flux financiers sont-ils incohérents et redondants, et empêchent d’utiliser efficacement le budget public et les fonds des donateurs ? | E23: 0 | F23: =IF(OR(T3.7=$I$9,T3.7=""),"",T3.7) ->  | G23: FALSE | H23: 0/12 | K23: Qualité | L23: 6 | M23: =IF(TA.6="","",TA.6) ->  | P23: Utilization relative to need | Q23: 4 | R23: 3.5 | S23: 3.5. Dans quelle mesure les différentes sources de revenus et de financement sont-elles organisées de manière complémentaire, afin de financer un paquet de prestations pour l’ensemble de la population ? | T23: 0 | U23: 3.5 | Y23: Belarus | Z23: BLR | AK23: 17 | AR23: 6.15 | AU23: Efficiency | AV23: Q4.5 | AW23: Dans quelle mesure les méthodes de paiement des prestataires favorisent-elles l’efficacité de l’allocation des ressources, par exemple en réduisant la prestation excessive ou en augmentant celle insuffisante des services, et gèrent-elles la croissance des dépenses ? | AY23: 0 | AZ23: FALSE | BC23: BEL | BD23: Belgium | BE23: EUR | BF23: Hi
A24: 4.1 | B24: Achats et paiement des prestataires | C24: Q4.1 | D24: Dans quelle mesure les allocations de fonds aux acheteurs de niveau inférieur, par exemple les administrations locales, et/ou les taux de paiement aux prestataires sont-ils le reflet des besoins de santé de la population ? | E24: 0 | F24: =IF(OR(T4.1=$I$9,T4.1=""),"",T4.1) ->  | G24: FALSE | H24: 0/12 | K24: Utilisation par rapport aux besoins | L24: 7 | M24: =IF(TA.7="","",TA.7) ->  | Q24: 5 | R24: 3.6 | S24: 3.6. Dans quelle mesure les dispositifs d’assurance-maladie volontaire sont-ils une source d’inégalités, créant des effets de contagion potentiellement néfastes pour l’ensemble du système de santé ? | T24: 0 | U24: 3.6 | Y24: Belgium | Z24: BEL | AU24: Efficiency | AV24: Q4.8 | AW24: Dans quelle mesure les prestataires jouissent-ils d’une autonomie financière et sont-ils tenus responsables, dans une mesure réaliste et conforme à leurs capacités ? | AY24: 0 | AZ24: FALSE | BC24: BLZ | BD24: Belize | BE24: AMR | BF24: Up-Mid
A25: 4.2 | C25: Q4.2 | D25: Dans quelle mesure les paiements des prestataires sont-ils harmonisés entre régimes/sources de revenus et entre secteurs public et privé, afin de garantir des incitations cohérentes aux prestataires ? | E25: 0 | F25: =IF(OR(T4.2=$I$9,T4.2=""),"",T4.2) ->  | G25: FALSE | H25: 0/12 | Q25: 6 | R25: 4.1 | S25: 4.1. Dans quelle mesure les allocations de fonds aux acheteurs de niveau inférieur, par exemple les administrations locales, et/ou les taux de paiement aux prestataires sont-ils le reflet des besoins de santé de la population ? | T25: 0 | U25: 4.1 | Y25: Belize | Z25: BLZ | AU25: Efficiency | AV25: Q4.9 | AW25: Dans quelle mesure l’accréditation des prestataires ou les contrats sélectifs sont-ils établis, fonctionnels et utilisés pour les achats ? | AY25: 0 | AZ25: FALSE | BC25: BEN | BD25: Benin | BE25: AFR | BF25: Low
A26: 4.3 | C26: Q4.3 | D26: Dans quelle mesure les méthodes de paiement des prestataires et les achats en général favorisent-ils la qualité des soins et la coordination des soins entre les spécialités et les différents niveaux de soins ? | E26: 0 | F26: =IF(OR(T4.3=$I$9,T4.3=""),"",T4.3) ->  | G26: FALSE | H26: 0/12 | Q26: 7 | R26: 4.2 | S26: 4.2. Dans quelle mesure les paiements des prestataires sont-ils harmonisés entre régimes/sources de revenus et entre secteurs public et privé, afin de garantir des incitations cohérentes aux prestataires ? | T26: 0 | U26: 4.2 | Y26: Benin | Z26: BEN | AU26: Efficiency | AV26: Q4.10 | AW26: Dans quelle mesure l’achat et le paiement des produits pharmaceutiques sont-ils mis en œuvre pour promouvoir l’utilisation efficace des médicaments (par exemple le recours aux génériques plutôt qu’aux princeps) et pour améliorer la protection financière des patients ? | AY26: 0 | AZ26: FALSE | BC26: BTN | BD26: Bhutan | BE26: SEAR | BF26: Low-Mid
A27: 4.4 | C27: Q4.4 | D27: Dans quelle mesure les contrats d’achat précisent-ils des exigences en matière de qualité des soins, y compris la disponibilité et la pertinence des soins, puis vérifient-ils de façon régulière qu’elles sont bien respectées ? | E27: 0 | F27: =IF(OR(T4.4=$I$9,T4.4=""),"",T4.4) ->  | G27: FALSE | H27: 0/12 | Q27: 8 | R27: 6.4 | S27: 6.4. Dans quelle mesure les allocations budgétaires annuelles en matière de santé sont alignées sur les priorités du secteur de la santé (niveau, structure, nature/objectif) ? | T27: 0 | U27: 6.4 | Y27: Bhutan | Z27: BTN | AU27: Efficiency | AV27: Q6.7 | AW27: Dans quelle mesure les règles du budget de la santé permettent-elles une certaine souplesse des dépenses? | AY27: 0 | AZ27: FALSE | BC27: BOL | BD27: Bolivia Plurinational States of | BE27: AMR | BF27: Low-Mid
A28: 4.5 | C28: Q4.5 | D28: Dans quelle mesure les méthodes de paiement des prestataires favorisent-elles l’efficacité de l’allocation des ressources, par exemple en réduisant la prestation excessive ou en augmentant celle insuffisante des services, et gèrent-elles la croissance des dépenses ? | E28: 0 | F28: =IF(OR(T4.5=$I$9,T4.5=""),"",T4.5) ->  | G28: FALSE | H28: 0/12 | Q28: 9 | R28: 6.6 | S28: 6.6. Dans quelle mesure les transferts fiscaux sont conçus et mis en œuvre de sorte à améliorer l’équité de la distribution des ressources dans le secteur de la santé? | T28: 0 | U28: 6.6 | Y28: Bolivia Plurinational States of | Z28: BOL | AU28: Efficiency | AV28: Q6.8 | AW28: La flexibilité dans l’utilisation des ressources est-elle assurée ou déléguée au bon niveau? | AY28: 0 | AZ28: FALSE | BC28: BIH | BD28: Bosnia and Herzegovina | BE28: EUR | BF28: Up-Mid
A29: 4.6 | C29: Q4.6 | D29: Dans quelle mesure les formulaires de consultation des patients sont-ils normalisés dans l'ensemble du système de santé et utilisés pour analyser et évaluer l'activité de l’ensemble des prestataires et de la population | E29: 0 | F29: =IF(OR(T4.6=$I$9,T4.6=""),"",T4.6) ->  | G29: FALSE | H29: 0/12 | Q29: 10 | R29: 6.16 | S29: 6,11. Dans quelle mesure les flux financiers multiples, la structure budgétaire et les règles de GFP sont alignés sur les politiques d’achats stratégiques? | T29: 0 | U29: 6,11 | V29: =R29=U29 -> FALSE | Y29: Bosnia and Herzegovina | Z29: BIH | AU29: Efficiency | AV29: Q6.9 | AW29: Dans quelle mesure des politiques de discipline budgétaire visant à contrôler les dépenses sont en vigueur (par exemple, gestion de la trésorerie, respect des règles d’approvisionnement) et mises en œuvre efficacement? | AY29: 0 | AZ29: FALSE | BC29: BWA | BD29: Botswana | BE29: AFR | BF29: Up-Mid
A30: 4.7 | C30: Q4.7 | D30: Dans quelle mesure les paiements des prestataires couvrent uniquement une partie ou l’ensemble des coûts totaux (y compris les salaires, les dépenses récurrentes, etc.) ? | E30: 0 | F30: =IF(OR(T4.7=$I$9,T4.7=""),"",T4.7) ->  | G30: FALSE | H30: 0/12 | Q30: 11 | R30: 0 | U30: 0 | Y30: Botswana | Z30: BWA | AU30: Efficiency | AV30: Q6.11 | AW30: Dans quelle mesure les flux financiers multiples, la structure budgétaire et les règles de GFP sont alignés sur les politiques d’achats stratégiques? | AY30: 0 | AZ30: FALSE | BC30: BRA | BD30: Brazil | BE30: AMR | BF30: Up-Mid
A31: 4.8 | C31: Q4.8 | D31: Dans quelle mesure les prestataires jouissent-ils d’une autonomie financière et sont-ils tenus responsables, dans une mesure réaliste et conforme à leurs capacités ? | E31: 0 | F31: =IF(OR(T4.8=$I$9,T4.8=""),"",T4.8) ->  | G31: FALSE | H31: 0/12 | Q31: 12 | R31: 0 | U31: 0 | Y31: Brazil | Z31: BRA | AU31: Transparency_accountability | AV31: Q2.1 | AW31: Quelle approche est en vigueur dans votre pays en matière d’élaboration de politiques et de stratégies de collecte de revenus ? Cette approche s'inscrit-elle dans le cadre du processus global d’élaboration et de planification de la mise en œuvre des politiques de financement de la santé ? | AY31: 0 | AZ31: FALSE | BC31: BRN | BD31: Brunei Darussalam | BE31: WPR | BF31: Hi
A32: 4.9 | C32: Q4.9 | D32: Dans quelle mesure l’accréditation des prestataires ou les contrats sélectifs sont-ils établis, fonctionnels et utilisés pour les achats ? | E32: 0 | F32: =IF(OR(T4.9=$I$9,T4.9=""),"",T4.9) ->  | G32: FALSE | H32: 0/12 | Q32: 13 | R32: 0 | U32: 0 | Y32: Brunei Darussalam | Z32: BRN | AU32: Transparency_accountability | AV32: Q2.3 | AW32: Dans quelle mesure le financement public de la santé dans votre pays est-il prédictible sur plusieurs années ? | AY32: 0 | AZ32: FALSE | BC32: BGR | BD32: Bulgaria | BE32: EUR | BF32: Up-Mid
A33: 4.11 | C33: Q4.10 | D33: Dans quelle mesure l’achat et le paiement des produits pharmaceutiques sont-ils mis en œuvre pour promouvoir l’utilisation efficace des médicaments (par exemple le recours aux génériques plutôt qu’aux princeps) et pour améliorer la protection financière des patients ? | E33: 0 | F33: =IF(OR(T4.10=$I$9,T4.10=""),"",T4.10) ->  | G33: FALSE | H33: 0/12 | Q33: 14 | R33: 0 | U33: 0 | Y33: Bulgaria | Z33: BGR | AU33: Transparency_accountability | AV33: Q4.4 | AW33: Dans quelle mesure les contrats d’achat précisent-ils des exigences en matière de qualité des soins, y compris la disponibilité et la pertinence des soins, puis vérifient-ils de façon régulière qu’elles sont bien respectées ? | AY33: 0 | AZ33: FALSE | BC33: BFA | BD33: Burkina Faso | BE33: AFR | BF33: Low
A34: 5.1 | B34: Prestations et droits | C34: Q5.1 | D34: Cette question a été maintenant remplacé par l’étape 1 et le tableau de vue d’ensemble et ne constitue donc plus une question distincte. Merci de bien vous assurer que vous avez complété l’étape 1 car cela vous aidera à remplir les questions de cette section. | E34: 0 | F34: =IF(OR(T5.1=$I$8,T5.1=""),"",T5.1) ->  | G34: FALSE | H34: 0/12 | Q34: 15 | R34: 0 | U34: 0 | Y34: Burkina Faso | Z34: BFA | AU34: Transparency_accountability | AV34: Q4.8 | AW34: Dans quelle mesure les prestataires jouissent-ils d’une autonomie financière et sont-ils tenus responsables, dans une mesure réaliste et conforme à leurs capacités ? | AY34: 0 | AZ34: FALSE | BC34: BDI | BD34: Burundi | BE34: AFR | BF34: Low
A35: 5.2 | C35: Q5.2 | D35: Dans quelle mesure les décisions et les révisions relatives aux prestations sont-elles prises de manière transparente, sur la base d’un processus clairement défini et de critères convenus, tels que le rapport coût-efficacité, la protection financière, l’impact budgétaire ? | E35: 0 | F35: =IF(OR(T5.2=$I$9,T5.2=""),"",T5.2) ->  | G35: FALSE | H35: 0/12 | Q35: 16 | R35: 0 | U35: 0 | Y35: Burundi | Z35: BDI | AU35: Transparency_accountability | AV35: Q5.2 | AW35: Dans quelle mesure les décisions et les révisions relatives aux prestations sont-elles prises de manière transparente, sur la base d’un processus clairement défini et de critères convenus, tels que le rapport coût-efficacité, la protection financière, l’impact budgétaire ? | AY35: 0 | AZ35: FALSE | BC35: CPV | BD35: Cabo Verde Republic of | BE35: AFR | BF35: Low-Mid
A36: 5.3 | C36: Q5.3 | D36: Dans quelle mesure les droits à prestation reflètent-ils explicitement les besoins de santé de la population ? | E36: 0 | F36: =IF(OR(T5.3=$I$9,T5.3=""),"",T5.3) ->  | G36: FALSE | H36: 0/12 | Q36: 17 | R36: 0 | U36: 0 | Y36: Cabo Verde Republic of | Z36: CPV | AU36: Transparency_accountability | AV36: Q5.5 | AW36: Dans quelle mesure les droits et obligations de la population sont-ils explicitement définis et compris par les intéressés ? | AY36: 0 | AZ36: FALSE | BC36: KHM | BD36: Cambodia | BE36: WPR | BF36: Low
A37: 5.4 | C37: Q5.4 | D37: Dans quelle mesure les prestations accordent-elles la priorité aux catégories de population prioritaires, par exemple pour une meilleure utilisation des services hautement prioritaires et pour la protection financière ? | E37: 0 | F37: =IF(OR(T5.4=$I$9,T5.4=""),"",T5.4) ->  | G37: FALSE | H37: 0/12 | Y37: Cambodia | Z37: KHM | AU37: Transparency_accountability | AV37: Q5.7 | AW37: Dans quelle mesure les prestations, y compris le partage des coûts pour les patients, sont-elles alignées sur les recettes, afin d’assurer un financement adéquat des droits à prestations approuvés ? | AY37: 0 | AZ37: FALSE | BC37: CMR | BD37: Cameroon | BE37: AFR | BF37: Low-Mid
A38: 5.5 | C38: Q5.5 | D38: Dans quelle mesure les droits et obligations de la population sont-ils explicitement définis et compris par les intéressés ? | E38: 0 | F38: =IF(OR(T5.5=$I$9,T5.5=""),"",T5.5) ->  | G38: FALSE | H38: 0/12 | Y38: Cameroon | Z38: CMR | AU38: Transparency_accountability | AV38: Q6.5 | AW38: Dans quelle mesure le processus budgétaire est consultatif, transparent et un processus d’examen et d’ajustement budgétaire à mi-parcours est établi ? | AY38: 0 | AZ38: FALSE | BC38: CAN | BD38: Canada | BE38: AMR | BF38: Hi
A39: 5.6 | C39: Q5.6 | D39: Dans quelle mesure les prestations sont-elles alignées sur le paiement des prestataires, afin de s’assurer qu’elles sont fournies et que les patients bénéficient d’une protection financière ? | E39: 0 | F39: =IF(OR(T5.6=$I$9,T5.6=""),"",T5.6) ->  | G39: FALSE | H39: 0/12 | Y39: Canada | Z39: CAN | AU39: Transparency_accountability | AV39: Q6.7 | AW39: Dans quelle mesure les règles du budget de la santé permettent-elles une certaine souplesse des dépenses? | AY39: 0 | AZ39: FALSE | BC39: CAF | BD39: Central African Republic | BE39: AFR | BF39: Low
A40: 5.7 | C40: Q5.7 | D40: Dans quelle mesure les prestations, y compris le partage des coûts pour les patients, sont-elles alignées sur les recettes, afin d’assurer un financement adéquat des droits à prestations approuvés ? | E40: 0 | F40: =IF(OR(T5.7=$I$9,T5.7=""),"",T5.7) ->  | G40: FALSE | H40: 0/12 | Y40: Central African Republic | Z40: CAF | AU40: Transparency_accountability | AV40: Q6.9 | AW40: Dans quelle mesure des politiques de discipline budgétaire visant à contrôler les dépenses sont en vigueur (par exemple, gestion de la trésorerie, respect des règles d’approvisionnement) et mises en œuvre efficacement? | AY40: 0 | AZ40: FALSE | BC40: TCD | BD40: Chad | BE40: AFR | BF40: Low
A41: 6.1 | B41: Gestion des finances publiques (GFP) | C41: Q6.1 | D41: Est-ce qu’un diagnostic/une évaluation approfondi(e) des goulets d’étranglement de la GFP dans le secteur de la santé a été effectué(e) récemment, par exemple au cours des trois dernières années ? | E41: 0 | F41: =IF(OR(T6.1=$I$9,T6.1=""),"",T6.1) ->  | G41: FALSE | H41: 0/12 | Y41: Chad | Z41: TCD | AU41: Transparency_accountability | AV41: Q7.1 | AW41: Dans quelle mesure les rôles et les responsabilités (liés aux objectifs de financement de la santé et au rendement en matière de collecte de recettes, de mise en commun, d’achats, de prestations, etc.) sont clairement définis et répartis entre les institutions responsables du financement de la santé ? | AY41: 0 | AZ41: FALSE | BC41: CHL | BD41: Chile | BE41: AMR | BF41: Hi
A42: 6.2 | C42: Q6.2 | D42: Le personnel du Ministère de la santé dispose-t-il de capacités à comprendre les (nouvelles) règles de GFP et à les appliquer au processus budgétaire du secteur de la santé ? | E42: 0 | F42: =IF(OR(T6.2=$I$9,T6.2=""),"",T6.2) ->  | G42: FALSE | H42: 0/12 | Y42: Chile | Z42: CHL | AU42: Transparency_accountability | AV42: Q7.2 | AW42: Dans quelle mesure les institutions responsables du financement de la santé disposent-elles de capacités adéquates, notamment en matière de ressources humaines (capacités techniques et managériales) et de TIC ? | AY42: 0 | AZ42: FALSE | BC42: CHN | BD42: China | BE42: WPR | BF42: Up-Mid
A43: 6.3 | C43: Q6.3 | D43: Existe-il un processus budgétaire pluriannuel mis en œuvre efficacement ? | E43: 0 | F43: =IF(OR(T6.3=$I$9,T6.3=""),"",T6.3) ->  | G43: FALSE | H43: 0/12 | Y43: China | Z43: CHN | AU43: Transparency_accountability | AV43: Q7.3 | AW43: Dans quelle mesure les mécanismes de responsabilisation des organismes d’achat/de financement (y compris l’autonomie et le conseil d’administration de l’agence d’assurance-maladie, les mécanismes de récompense/sanction, etc.) sont-ils en place pour s’assurer que la politique de financement de la santé appuie les progrès vers les objectifs du secteur et que les fonds sont utilisés efficacement pour les populations, programmes et services prioritaires ? | AY43: 0 | AZ43: FALSE | BC43: COL | BD43: Colombia | BE43: AMR | BF43: Up-Mid
A44: 6.4 | C44: Q6.4 | D44: Dans quelle mesure les allocations budgétaires annuelles en matière de santé sont alignées sur les priorités du secteur de la santé (niveau, structure, nature/objectif) ? | E44: 0 | F44: =IF(OR(T6.4=$I$9,T6.4=""),"",T6.4) ->  | G44: FALSE | H44: 0/12 | Y44: Colombia | Z44: COL | AU44: Transparency_accountability | AV44: Q7.4 | AW44: L’utilisation des fonds ou les performances des institutions achetant des services auprès des prestataires de services de santé ou le budget de la santé ont-ils été communiqués au public (par exemple sous forme de rapport annuel) ? | AY44: 0 | AZ44: FALSE | BC44: COM | BD44: Comoros | BE44: AFR | BF44: Low
A45: 6.5 | C45: Q6.5 | D45: Dans quelle mesure le processus budgétaire est consultatif, transparent et un processus d’examen et d’ajustement budgétaire à mi-parcours est établi ? | E45: 0 | F45: =IF(OR(T6.5=$I$9,T6.5=""),"",T6.5) ->  | G45: FALSE | H45: 0/12 | Y45: Comoros | Z45: COM | AU45: Transparency_accountability | AV45: Q7.5 | AW45: Dans quelle mesure le Ministère des finances, le Ministère de la santé et l’organisme national d’assurance-maladie participent au processus d’élaboration des politiques de financement de la santé et en sont informés ? | AY45: 0 | AZ45: FALSE | BC45: COG | BD45: Congo | BE45: AFR | BF45: Low-Mid
A46: 6.6 | C46: Q6.6 | D46: Dans quelle mesure les transferts fiscaux sont conçus et mis en œuvre de sorte à améliorer l’équité de la distribution des ressources dans le secteur de la santé? | E46: 0 | F46: =IF(OR(T6.6=$I$9,T6.6=""),"",T6.6) ->  | G46: FALSE | H46: 0/12 | P46: Efficience | Y46: Congo | Z46: COG | AU46: Transparency_accountability | AV46: Q7.6 | AW46: Dans quelle mesure le processus d’élaboration des politiques de financement de la santé est transparent et participatif? | AY46: 0 | AZ46: FALSE | BC46: COK | BD46: Cook Islands | BE46: WPR | BF46: Up-Mid
A47: 6.7 | C47: Q6.7 | D47: Dans quelle mesure les règles du budget de la santé permettent-elles une certaine souplesse des dépenses? | E47: 0 | F47: =IF(OR(T6.7=$I$9,T6.7=""),"",T6.7) ->  | G47: FALSE | H47: 0/12 | P47: 2.4 | Q47: 2.4 Dans quelle mesure le flux de fonds publics est-il stable, Serait-ce grâce à une exécution régulière, c’est-à-dire un déblocage des fonds dans les délais, conformément aux budgets de santé approuvés ? | R47: =IFERROR(VLOOKUP(P47,$A$8:$E$57,5,0),"") -> 0 | Y47: Cook Islands | Z47: COK | AU47: Utilization_relative_need | AV47: Q2.3 | AW47: Dans quelle mesure le financement public de la santé dans votre pays est-il prédictible sur plusieurs années ? | AY47: 0 | AZ47: FALSE | BC47: CRI | BD47: Costa Rica | BE47: AMR | BF47: Up-Mid
A48: 6.8 | C48: Q6.8 | D48: La flexibilité dans l’utilisation des ressources est-elle assurée ou déléguée au bon niveau? | E48: 0 | F48: =IF(OR(T6.8=$I$9,T6.8=""),"",T6.8) ->  | G48: FALSE | H48: 0/12 | P48: 3.2 | Q48: 3.2 Dans le cadre du processus global d’élaboration et de planification de la mise en œuvre des politiques de financement de la santé, quelle est l’approche de votre pays en matière de dispositifs de mise en commun des recettes ? | R48: 0 | Y48: Costa Rica | Z48: CRI | AU48: Utilization_relative_need | AV48: Q2.4 | AW48: Dans quelle mesure le flux de fonds publics est-il stable, notamment grâce à une exécution budgétaire régulière, c’est-à-dire un déblocage des fonds dans les délais, conformément aux budgets de santé approuvés ? | AY48: 0 | AZ48: FALSE | BC48: CIV | BD48: Côte d'Ivoire | BE48: AFR | BF48: Low-Mid
A49: 6.9 | C49: Q6.9 | D49: Dans quelle mesure des politiques de discipline budgétaire visant à contrôler les dépenses sont en vigueur (par exemple, gestion de la trésorerie, respect des règles d’approvisionnement) et mises en œuvre efficacement? | E49: 0 | F49: =IF(OR(T6.9=$I$9,T6.9=""),"",T6.9) ->  | G49: FALSE | H49: 0/12 | P49: 3.3 | Q49: 3.3 Dans quelle mesure la capacité de redistribution des fonds prépayés dans votre pays est-elle limitée par les accords institutionnels de financement de la santé ? | R49: 0 | Y49: Côte d'Ivoire | Z49: CIV | AU49: Utilization_relative_need | AV49: Q2.5 | AW49: Dans quelle mesure les différentes sources de revenus sont-elles collectées de façon progressive (c.-à-d. en fonction de la capacité de payer), et partant de là favorisent l’équité dans le mode de financement du système de santé ? | AY49: 0 | AZ49: FALSE | BC49: HRV | BD49: Croatia | BE49: EUR | BF49: Hi
A50: 6.15 | C50: Q6.10 | D50: Dans quelle mesure des systèmes d’information sont en place pour répondre aux besoins en matière de responsabilité financière et pour assurer le suivi des performances du secteur de la santé? | E50: 0 | F50: =IF(OR(T6.10=$I$9,T6.10=""),"",T6.10) ->  | G50: FALSE | H50: 0/12 | P50: 3.4 | Q50: 3.4 Y aurait-il des mesures, liées à la conception des prestations, au paiement des prestataires ou à des systèmes sous-jacents non financiers, qui ciblent les problèmes découlant de la fragmentation des caisses ? | R50: 0 | Y50: Croatia | Z50: HRV | AU50: Utilization_relative_need | AV50: Q3.2 | AW50: Dans le cadre du processus global d’élaboration et de planification de la mise en œuvre des politiques de financement de la santé, quelle est l’approche de votre pays en matière de dispositifs de mise en commun des ressources ? | AY50: 0 | AZ50: FALSE | BC50: CUB | BD50: Cuba | BE50: AMR | BF50: Up-Mid
A51: 6.16 | C51: Q6.11 | D51: Dans quelle mesure les flux financiers multiples, la structure budgétaire et les règles de GFP sont alignés sur les politiques d’achats stratégiques? | E51: 0 | F51: =IF(OR(T6.11=$I$9,T6.11=""),"",T6.11) ->  | G51: FALSE | H51: 0/12 | P51: 3.5 | Q51: 3.5 Dans quelle mesure les différentes sources de recettes et de financement sont-elles organisées de manière complémentaire, afin de financer un paquet de prestations pour l’ensemble de la population ? | R51: 0 | Y51: Cuba | Z51: CUB | AU51: Utilization_relative_need | AV51: Q3.3 | AW51: Dans quelle mesure la capacité de redistribution des fonds prépayés dans votre pays est-elle limitée par le cadre institutionnel du financement de la santé ? | AY51: 0 | AZ51: FALSE | BC51: CYP | BD51: Cyprus | BE51: EUR | BF51: Hi
A52: 7.1 | B52: Gouvernance | C52: Q7.1 | D52: Dans quelle mesure les rôles et les responsabilités (liés aux objectifs de financement de la santé et au rendement en matière de collecte de recettes, de mise en commun, d’achats, de prestations, etc.) sont clairement définis et répartis entre les institutions responsables du financement de la santé ? | E52: 0 | F52: =IF(OR(T7.1=$I$9,T7.1=""),"",T7.1) ->  | G52: FALSE | H52: 0/12 | P52: 3.7 | Q52: 3.7 Dans quelle mesure les flux financiers sont-ils incohérents et redondants, et empêchent d’utiliser efficacement le budget public et les fonds des donateurs ? | R52: 0 | Y52: Cyprus | Z52: CYP | AU52: Utilization_relative_need | AV52: Q3.4 | AW52: Y-a-il des mesures, dans la conception des prestations, le paiement des prestataires ou les systèmes sous-jacents non financiers, qui visent à contrecarrer les problèmes découlant de la fragmentation de l’architecture du financement de la santé ? | AY52: 0 | AZ52: FALSE | BC52: CZE | BD52: Czech Republic | BE52: EUR | BF52: Hi
A53: 7.2 | C53: Q7.2 | D53: Dans quelle mesure les institutions responsables du financement de la santé disposent-elles de capacités adéquates, notamment en matière de ressources humaines (capacités techniques et managériales) et de TIC ? | E53: 0 | F53: =IF(OR(T7.2=$I$9,T7.2=""),"",T7.2) ->  | G53: FALSE | H53: 0/12 | P53: 4.5 | Q53: 4.5 Dans quelle mesure les méthodes de paiement des prestataires favorisent-elles l’efficacité de l’allocation des ressources, par exemple en réduisant la prestation excessive ou insuffisante des services, et gèrent-elles la croissance des dépenses ? | R53: 0 | Y53: Czech Republic | Z53: CZE | AU53: Utilization_relative_need | AV53: Q3.5 | AW53: Dans quelle mesure les différentes sources de revenus et de financement sont-elles organisées de manière complémentaire, afin de financer un paquet de prestations pour l’ensemble de la population ? | AY53: 0 | AZ53: FALSE | BC53: PRK | BD53: Democratic People's Republic of Korea | BE53: SEAR | BF53: Low
A54: 7.3 | C54: Q7.3 | D54: Dans quelle mesure les mécanismes de responsabilisation des organismes d’achat/de financement (y compris l’autonomie et le conseil d’administration de l’agence d’assurance-maladie, les mécanismes de récompense/sanction, etc.) sont-ils en place pour s’assurer que la politique de financement de la santé appuie les progrès vers les objectifs du secteur et que les fonds sont utilisés efficacement pour les populations, programmes et services prioritaires ? | E54: 0 | F54: =IF(OR(T7.3=$I$9,T7.3=""),"",T7.3) ->  | G54: FALSE | H54: 0/12 | P54: 4.8 | Q54: 4.8 Dans quelle mesure les prestataires jouissent-ils d’une autonomie financière et sont-ils tenus responsables, dans une mesure réaliste et conforme à leurs capacités ? | R54: 0 | Y54: Democratic People's Republic of Korea | Z54: PRK | AU54: Utilization_relative_need | AV54: Q4.1 | AW54: Dans quelle mesure les allocations de fonds aux acheteurs de niveau inférieur, par exemple les administrations locales, et/ou les taux de paiement aux prestataires sont-ils le reflet des besoins de santé de la population ? | AY54: 0 | AZ54: FALSE | BC54: COD | BD54: Democratic Republic of the Congo | BE54: AFR | BF54: Low
A55: 7.4 | C55: Q7.4 | D55: L’utilisation des fonds ou les performances des institutions achetant des services auprès des prestataires de services de santé ou le budget de la santé ont-ils été communiqués au public (par exemple sous forme de rapport annuel) ? | E55: 0 | F55: =IF(OR(T7.4=$I$9,T7.4=""),"",T7.4) ->  | G55: FALSE | H55: 0/12 | P55: 4.9 | Q55: 4.9 Dans quelle mesure l’accréditation des prestataires ou les contrats sélectifs sont-ils établis, fonctionnels et utilisés pour les achats ? | R55: 0 | Y55: Democratic Republic of the Congo | Z55: COD | AU55: Utilization_relative_need | AV55: Q5.3 | AW55: Dans quelle mesure les droits à prestation reflètent-ils explicitement les besoins de santé de la population ? | AY55: 0 | AZ55: FALSE | BC55: DNK | BD55: Denmark | BE55: EUR | BF55: Hi
A56: 7.5 | C56: Q7.5 | D56: Dans quelle mesure le Ministère des finances, le Ministère de la santé et l’organisme national d’assurance-maladie participent au processus d’élaboration des politiques de financement de la santé et en sont informés ? | E56: 0 | F56: =IF(OR(T7.5=$I$9,T7.5=""),"",T7.5) ->  | G56: FALSE | H56: 0/12 | P56: 4.11 | Q56: 4.10 Dans quelle mesure l’achat et le paiement des produits pharmaceutiques sont-ils mis en œuvre pour promouvoir l’utilisation efficace des médicaments (par ex. le recours aux génériques plutôt qu’aux princeps) et pour améliorer la protection financière des patients ? | R56: 0 | Y56: Denmark | Z56: DNK | AU56: Utilization_relative_need | AV56: Q5.4 | AW56: Dans quelle mesure les prestations accordent-elles la priorité aux catégories de population prioritaires, par exemple pour une meilleure utilisation des services hautement prioritaires et pour la protection financière ? | AY56: 0 | AZ56: FALSE | BC56: DJI | BD56: Djibouti | BE56: EMR | BF56: Low-Mid
A57: 7.6 | C57: Q7.6 | D57: Dans quelle mesure le processus d’élaboration des politiques de financement de la santé est transparent et participatif? | E57: 0 | F57: =IF(OR(T7.6=$I$9,T7.6=""),"",T7.6) ->  | G57: FALSE | H57: 0/12 | P57: 6.7 | Q57: 6.7 Dans quelle mesure les règles du budget de la santé permettent-elles une certaine souplesse des dépenses? | R57: 0 | Y57: Djibouti | Z57: DJI | AU57: Utilization_relative_need | AV57: Q5.5 | AW57: Dans quelle mesure les droits et obligations de la population sont-ils explicitement définis et compris par les intéressés ? | AY57: 0 | AZ57: FALSE | BC57: DMA | BD57: Dominica | BE57: AMR | BF57: Up-Mid
P58: 6.8 | Q58: 6.8 La flexibilité dans l’utilisation des ressources est-elle assurée ou déléguée au bon niveau? | R58: 0 | Y58: Dominica | Z58: DMA | AU58: Utilization_relative_need | AV58: Q5.6 | AW58: Dans quelle mesure les prestations sont-elles alignées sur le paiement des prestataires, afin de s’assurer qu’elles sont fournies et que les patients bénéficient d’une protection financière ? | AY58: 0 | AZ58: FALSE | BC58: DOM | BD58: Dominican Republic | BE58: AMR | BF58: Up-Mid
P59: 6.9 | Q59: 6.9 Dans quelle mesure des politiques de discipline budgétaire visant à contrôler les dépenses sont en rn vigueur (par ex. gestion de la trésorerie, respect des règles d’approvisionnement) et mises en œuvre efficacement? | R59: 0 | Y59: Dominican Republic | Z59: DOM | AU59: Utilization_relative_need | AV59: Q5.7 | AW59: Dans quelle mesure les prestations, y compris le partage des coûts pour les patients, sont-elles alignées sur les recettes, afin d’assurer un financement adéquat des droits à prestations approuvés ? | AY59: 0 | AZ59: FALSE | BC59: ECU | BD59: Ecuador | BE59: AMR | BF59: Up-Mid
P60: 6.16 | Q60: 6.11 Dans quelle mesure les flux financiers multiples, la structure budgétaire et les règles de GFP sont alignés sur les politiques d’achats stratégiques? | R60: 0 | Y60: Ecuador | Z60: ECU | AU60: Utilization_relative_need | AV60: Q6.4 | AW60: Dans quelle mesure les allocations budgétaires annuelles en matière de santé sont alignées sur les priorités du secteur de la santé (niveau, structure, nature/objectif) ? | AY60: 0 | AZ60: FALSE | BC60: EGY | BD60: Egypt | BE60: EMR | BF60: Low-Mid
A61: Answer Annex | Y61: Egypt | Z61: EGY | AU61: Utilization_relative_need | AV61: Q6.6 | AW61: Dans quelle mesure les transferts fiscaux sont conçus et mis en œuvre de sorte à améliorer l’équité de la distribution des ressources dans le secteur de la santé? | AY61: 0 | AZ61: FALSE | BC61: SLV | BD61: El Salvador | BE61: AMR | BF61: Low-Mid
B62: 1 | C62: 2 | D62: 3 | E62: 4 | F62: 5 | G62: 6 | Y62: El Salvador | Z62: SLV | AU62: Utilization_relative_need | AV62: Q6.7 | AW62: Dans quelle mesure les règles du budget de la santé permettent-elles une certaine souplesse des dépenses? | AY62: 0 | AZ62: FALSE | BC62: GNQ | BD62: Equatorial Guinea | BE62: AFR | BF62: Hi
A63: CRITERIA | B63: HEALTH INSURANCE SCHEME (add specific name in your country) | C63: OTHER COVERAGE SCHEME (add specific name in your country) | D63: OTHER COVERAGE SCHEME (add specific name in your country) | E63: OTHER COVERAGE SCHEME (add specific name in your country) | F63: OTHER COVERAGE SCHEME (add specific name in your country) | G63: OTHER COVERAGE SCHEME (add specific name in your country) | P63: Équité dans la distribution des ressources | Y63: Equatorial Guinea | Z63: GNQ | AU63: Utilization_relative_need | AV63: Q6.11 | AW63: Dans quelle mesure les flux financiers multiples, la structure budgétaire et les règles de GFP sont alignés sur les politiques d’achats stratégiques? | AY63: 0 | AZ63: FALSE | BC63: ERI | BD63: Eritrea | BE63: AFR | BF63: Low
A64: =Etape_1_Resume!C6 -> POPULATION CIBLE Tous les citoyens sont-ils couverts ou un sous-groupe spécifique, par exemple moins de 5 ans, salariés? | B64: =IF(QA.1.1="","",QA.1.1) ->  | C64: =IF(QA.2.1="","",QA.2.1) ->  | D64: =IF(QA.3.1="","",QA.3.1) ->  | E64: =IF(QA.4.1="","",QA.4.1) ->  | F64: =IF(QA.5.1="","",QA.5.1) ->  | G64: =IF(QA.6.1="","",QA.6.1) ->  | H64: 1 | P64: 3.2 | Q64: 3.2 Dans le cadre du processus global d’élaboration et de planification de la mise en œuvre des politiques de financement de la santé, quelle est l’approche de votre pays en matière de dispositifs de mise en commun des recettes ? | R64: =IFERROR(VLOOKUP(P64,$A$8:$E$57,5,0),"") -> 0 | Y64: Eritrea | Z64: ERI | AB64: France | AC64: FRA | AD64: FRA | AU64: Financial_protection | AV64: Q2.1 | AW64: Quelle approche est en vigueur dans votre pays en matière d’élaboration de politiques et de stratégies de collecte de revenus ? Cette approche s'inscrit-elle dans le cadre du processus global d’élaboration et de planification de la mise en œuvre des politiques de financement de la santé ? | AY64: 0 | AZ64: FALSE | BC64: EST | BD64: Estonia | BE64: EUR | BF64: Hi
A65: =Etape_1_Resume!C7 -> POPULATION COUVERTE / souscrite Nombre réel relatif à la pop cible. | B65: =IF(QA.1.2="","",QA.1.2) ->  | C65: =IF(QA.2.2="","",QA.2.2) ->  | D65: =IF(QA.3.2="","",QA.3.2) ->  | E65: =IF(QA.4.2="","",QA.4.2) ->  | F65: =IF(QA.5.2="","",QA.5.2) ->  | G65: =IF(QA.6.2="","",QA.6.2) ->  | H65: 2 | P65: 3.3 | Q65: 3.3 Dans quelle mesure la capacité de redistribution des fonds prépayés dans votre pays est-elle limitée par les accords institutionnels de financement de la santé ? | R65: 0 | Y65: Estonia | Z65: EST | AB65: Gabon | AC65: GAB | AD65: GAB | AU65: Financial_protection | AV65: Q2.2 | AW65: Dans quelle mesure le financement de la santé dans votre pays repose-t-il sur des sources de financement public/obligatoire (par exemple, fiscalité/recettes publiques, y compris les cotisations obligatoires à l’assurance-maladie nationale/sociale) ? | AY65: 0 | AZ65: FALSE | BC65: ETH | BD65: Ethiopia | BE65: AFR | BF65: Low
A66: =Etape_1_Resume!C8 -> BASE DE COUVERTURE / SOUSCRIPTION Par exemple. obligatoire, automatique, volontaire | B66: =IF(QA.1.3="","",QA.1.3) ->  | C66: =IF(QA.2.3="","",QA.2.3) ->  | D66: =IF(QA.3.3="","",QA.3.3) ->  | E66: =IF(QA.4.3="","",QA.4.3) ->  | F66: =IF(QA.5.3="","",QA.5.3) ->  | G66: =IF(QA.6.3="","",QA.6.3) ->  | H66: 3 | P66: 3.4 | Q66: 3.4 Y aurait-il des mesures, liées à la conception des prestations, au paiement des prestataires ou à des systèmes sous-jacents non financiers, qui ciblent les problèmes découlant de la fragmentation des caisses ? | R66: 0 | Y66: Ethiopia | Z66: ETH | AB66: Gambia | AC66: GAM | AD66: GMB | AU66: Financial_protection | AV66: Q2.4 | AW66: Dans quelle mesure le flux de fonds publics est-il stable, notamment grâce à une exécution budgétaire régulière, c’est-à-dire un déblocage des fonds dans les délais, conformément aux budgets de santé approuvés ? | AY66: 0 | AZ66: FALSE | BC66: FJI | BD66: Fiji | BE66: WPR | BF66: Up-Mid
A67: =Etape_1_Resume!C9 -> AVANTAGES / DROITS Une liste de services ou niveau de soins est-elle définie? Est-ce que les utilisateurs doivent faire des co-paiements? | B67: =IF(QA.1.4="","",QA.1.4) ->  | C67: =IF(QA.2.4="","",QA.2.4) ->  | D67: =IF(QA.3.4="","",QA.3.4) ->  | E67: =IF(QA.4.4="","",QA.4.4) ->  | F67: =IF(QA.5.4="","",QA.5.4) ->  | G67: =IF(QA.6.4="","",QA.6.4) ->  | H67: 4 | P67: 3.5 | Q67: 3.5 Dans quelle mesure les différentes sources de recettes et de financement sont-elles organisées de manière complémentaire, afin de financer un paquet de prestations pour l’ensemble de la population ? | R67: 0 | Y67: Fiji | Z67: FJI | AB67: Georgia | AC67: GEO | AD67: GEO | AU67: Financial_protection | AV67: Q2.5 | AW67: Dans quelle mesure les différentes sources de revenus sont-elles collectées de façon progressive (c.-à-d. en fonction de la capacité de payer), et partant de là favorisent l’équité dans le mode de financement du système de santé ? | AY67: 0 | AZ67: FALSE | BC67: FIN | BD67: Finland | BE67: EUR | BF67: Hi
A68: =Etape_1_Resume!C10 -> SOURCES DE REVENUS D'où vient l'argent? Allocations / transferts budgétaires; contributions prépayées. | B68: =IF(QA.1.5="","",QA.1.5) ->  | C68: =IF(QA.2.5="","",QA.2.5) ->  | D68: =IF(QA.3.5="","",QA.3.5) ->  | E68: =IF(QA.4.5="","",QA.4.5) ->  | F68: =IF(QA.5.5="","",QA.5.5) ->  | G68: =IF(QA.6.5="","",QA.6.5) ->  | H68: 5 | P68: 3.6 | Q68: 3.6 Dans quelle mesure les dispositifs d’assurance-maladie volontaire sont-ils une source d’inégalités, créant des effets de contagion potentiellement néfastes pour l’ensemble du système de santé ? | R68: 0 | Y68: Finland | Z68: FIN | AB68: Germany | AC68: DEU | AD68: DEU | AU68: Financial_protection | AV68: Q3.2 | AW68: Dans le cadre du processus global d’élaboration et de planification de la mise en œuvre des politiques de financement de la santé, quelle est l’approche de votre pays en matière de dispositifs de mise en commun des ressources ? | AY68: 0 | AZ68: FALSE | BC68: FRA | BD68: France | BE68: EUR | BF68: Hi
A69: =Etape_1_Resume!C11 -> ACCORDS DE MISE EN COMMUN Le budget de la santé est-il alloué aux autorités régionales, existe-t-il un ou plusieurs fonds d '«assurance»? | B69: =IF(QA.1.6="","",QA.1.6) ->  | C69: =IF(QA.2.6="","",QA.2.6) ->  | D69: =IF(QA.3.6="","",QA.3.6) ->  | E69: =IF(QA.4.6="","",QA.4.6) ->  | F69: =IF(QA.5.6="","",QA.5.6) ->  | G69: =IF(QA.6.6="","",QA.6.6) ->  | H69: 6 | P69: 4.1 | Q69: 4.1 Dans quelle mesure les allocations de fonds aux acheteurs de niveau inférieur, par exemple les administrations locales, et/ou les taux de paiement aux prestataires sont-ils le reflet des besoins de santé de la population ? | R69: 0 | Y69: France | Z69: FRA | AB69: Ghana | AC69: GHA | AD69: GHA | AU69: Financial_protection | AV69: Q3.3 | AW69: Dans quelle mesure la capacité de redistribution des fonds prépayés dans votre pays est-elle limitée par le cadre institutionnel du financement de la santé ? | AY69: 0 | AZ69: FALSE | BC69: GAB | BD69: Gabon | BE69: AFR | BF69: Up-Mid
A70: =Etape_1_Resume!C12 -> MODALITES D'ACHAT Décrivez les arrangements de gestion et de gouvernance? | B70: =IF(QA.1.7="","",QA.1.7) ->  | C70: =IF(QA.2.7="","",QA.2.7) ->  | D70: =IF(QA.3.7="","",QA.3.7) ->  | E70: =IF(QA.4.7="","",QA.4.7) ->  | F70: =IF(QA.5.7="","",QA.5.7) ->  | G70: =IF(QA.6.7="","",QA.6.7) ->  | H70: 7 | P70: 4.2 | Q70: 4.2 Dans quelle mesure les paiements des prestataires sont-ils harmonisés entre régimes/sources de recettes et entre secteurs public et privé, afin de garantir des incitations cohérentes aux prestataires ? | R70: 0 | Y70: Gabon | Z70: GAB | AB70: Greece | AC70: GRE | AD70: GRC | AU70: Financial_protection | AV70: Q3.4 | AW70: Y-a-il des mesures, dans la conception des prestations, le paiement des prestataires ou les systèmes sous-jacents non financiers, qui visent à contrecarrer les problèmes découlant de la fragmentation de l’architecture du financement de la santé ? | AY70: 0 | AZ70: FALSE | BC70: GMB | BD70: Gambia | BE70: AFR | BF70: Low
A71: =Etape_1_Resume!C13 -> PAIEMENT DU FOURNISSEUR Par exemple. les entrées par ligne ou poste budgétaire; Ticket de soins/Service, paiement au cas par cas, capitation, basé sur performances? | B71: =IF(QA.1.8="","",QA.1.8) ->  | C71: =IF(QA.2.8="","",QA.2.8) ->  | D71: =IF(QA.3.8="","",QA.3.8) ->  | E71: =IF(QA.4.8="","",QA.4.8) ->  | F71: =IF(QA.5.8="","",QA.5.8) ->  | G71: =IF(QA.6.8="","",QA.6.8) ->  | P71: 6.4 | Q71: 6.4 Mesure dans laquelle les allocations budgétaires annuelles en matière de santé sont alignées sur les priorités du secteur de la santé (niveau, structure, nature/objectif) | R71: 0 | Y71: Gambia | Z71: GMB | AU71: Financial_protection | AV71: Q3.5 | AW71: Dans quelle mesure les différentes sources de revenus et de financement sont-elles organisées de manière complémentaire, afin de financer un paquet de prestations pour l’ensemble de la population ? | AY71: 0 | AZ71: FALSE | BC71: GEO | BD71: Georgia | BE71: EUR | BF71: Low-Mid
A72: =Etape_1_Resume!C14 -> PRESTATION DE SERVICES & CONTRACTUALISATION De quels fournisseurs les services sont-ils achetés? Public-privé? Des contrats / accords de services sont-ils utilisés? | B72: =IF(QA.1.9="","",QA.1.9) ->  | C72: =IF(QA.2.9="","",QA.2.9) ->  | D72: =IF(QA.3.9="","",QA.3.9) ->  | E72: =IF(QA.4.9="","",QA.4.9) ->  | F72: =IF(QA.5.9="","",QA.5.9) ->  | G72: =IF(QA.6.9="","",QA.6.9) ->  | P72: 6.6 | Q72: 6.6 Dans quelle mesure les transferts fiscaux sont conçus et mis en œuvre de sorte à améliorer l’équité de la distribution des ressources dans le secteur de la santé? | R72: 0 | Y72: Georgia | Z72: GEO | AU72: Financial_protection | AV72: Q3.6 | AW72: =VLOOKUP(AV72,$C$8:$G$57,2,0) -> Dans quelle mesure les dispositifs d’assurance-maladie volontaire sont-ils une source d’inégalités, créant des effets de contagion potentiellement néfastes pour l’ensemble du système de santé ? | AX72: =VLOOKUP(AV72,$C$8:$G$57,4,0) ->  | AY72: =VLOOKUP(AV72,$C$8:$G$57,3,0) -> 0 | AZ72: =VLOOKUP(AV72,$C$8:$G$57,5,0) -> FALSE | BC72: DEU | BD72: Germany | BE72: EUR | BF72: Hi
C73: =9-COUNTBLANK(C64:C72) -> 0 | D73: =9-COUNTBLANK(D64:D72) -> 0 | E73: =9-COUNTBLANK(E64:E72) -> 0 | F73: =9-COUNTBLANK(F64:F72) -> 0 | G73: =9-COUNTBLANK(G64:G72) -> 0 | P73: 6.16 | Q73: 6.11 Dans quelle mesure les flux financiers multiples, la structure budgétaire et les règles de GFP sont alignés sur les politiques d’achats stratégiques? | R73: 0 | Y73: Germany | Z73: DEU | AU73: Financial_protection | AV73: Q4.10 | AW73: Dans quelle mesure l’achat et le paiement des produits pharmaceutiques sont-ils mis en œuvre pour promouvoir l’utilisation efficace des médicaments (par exemple le recours aux génériques plutôt qu’aux princeps) et pour améliorer la protection financière des patients ? | AY73: 0 | AZ73: FALSE | BC73: GHA | BD73: Ghana | BE73: AFR | BF73: Low-Mid
Y74: Ghana | Z74: GHA | AU74: Financial_protection | AV74: Q5.4 | AW74: Dans quelle mesure les prestations accordent-elles la priorité aux catégories de population prioritaires, par exemple pour une meilleure utilisation des services hautement prioritaires et pour la protection financière ? | AY74: 0 | AZ74: FALSE | BC74: GRC | BD74: Greece | BE74: EUR | BF74: Hi
P75: Transparence et responsabilité | Y75: Greece | Z75: GRC | AU75: Financial_protection | AV75: Q5.6 | AW75: Dans quelle mesure les prestations sont-elles alignées sur le paiement des prestataires, afin de s’assurer qu’elles sont fournies et que les patients bénéficient d’une protection financière ? | AY75: 0 | AZ75: FALSE | BC75: GRD | BD75: Grenada | BE75: AMR | BF75: Up-Mid
P76: 2.1 | Q76: 2.1 Quelle approche en matière d’élaboration de politiques et de stratégies de collecte de recettes est en vigueur dans votre pays? Cette approche s'inscrit-elle dans le cadre d’un processus global d’élaboration et de planification de la mise en œuvre des politiques de financement de la santé ? | R76: =IFERROR(VLOOKUP(P76,$A$8:$E$57,5,0),"") -> 0 | Y76: Grenada | Z76: GRD | AU76: Equity_finance | AV76: Q2.1 | AW76: Quelle approche est en vigueur dans votre pays en matière d’élaboration de politiques et de stratégies de collecte de revenus ? Cette approche s'inscrit-elle dans le cadre du processus global d’élaboration et de planification de la mise en œuvre des politiques de financement de la santé ? | AY76: 0 | AZ76: FALSE | BC76: GTM | BD76: Guatemala | BE76: AMR | BF76: Low-Mid
P77: 2.3 | Q77: 2.3 Dans quelle mesure le financement public de la santé dans votre pays est-il prévisible sur plusieurs années ? | R77: 0 | Y77: Guatemala | Z77: GTM | AU77: Equity_finance | AV77: Q2.2 | AW77: Dans quelle mesure le financement de la santé dans votre pays repose-t-il sur des sources de financement public/obligatoire (par exemple, fiscalité/recettes publiques, y compris les cotisations obligatoires à l’assurance-maladie nationale/sociale) ? | AY77: 0 | AZ77: FALSE | BC77: GIN | BD77: Guinea | BE77: AFR | BF77: Low
P78: 4.4 | Q78: 4.4 Dans quelle mesure les contrats d’achat précisent-ils des exigences en matière de qualité des soins, y compris la disponibilité et la pertinence des soins, puis vérifient-ils de façon régulière qu’elles sont bien respectées ? | R78: 0 | Y78: Guinea | Z78: GIN | AU78: Equity_finance | AV78: Q2.4 | AW78: Dans quelle mesure le flux de fonds publics est-il stable, notamment grâce à une exécution budgétaire régulière, c’est-à-dire un déblocage des fonds dans les délais, conformément aux budgets de santé approuvés ? | AY78: 0 | AZ78: FALSE | BC78: GNB | BD78: Guinea-Bissau | BE78: AFR | BF78: Low
P79: 4.8 | Q79: 4.8 Dans quelle mesure les prestataires jouissent-ils d’une autonomie financière et sont-ils tenus responsables, dans une mesure réaliste et conforme à leurs capacités ? | R79: 0 | Y79: Guinea-Bissau | Z79: GNB | AU79: Equity_finance | AV79: Q2.5 | AW79: Dans quelle mesure les différentes sources de revenus sont-elles collectées de façon progressive (c.-à-d. en fonction de la capacité de payer), et partant de là favorisent l’équité dans le mode de financement du système de santé ? | AY79: 0 | AZ79: FALSE | BC79: GUY | BD79: Guyana | BE79: AMR | BF79: Low-Mid
P80: 5.2 | Q80: 5.2 Dans quelle mesure les décisions et les révisions relatives aux prestations sont-elles prises de manière transparente, sur la base d’un processus clairement défini et de critères convenus, tels que le rapport coût-efficacité, la protection financière, l’impact budgétaire ? | R80: 0 | Y80: Guyana | Z80: GUY | AU80: Equity_finance | AV80: Q3.4 | AW80: Y-a-il des mesures, dans la conception des prestations, le paiement des prestataires ou les systèmes sous-jacents non financiers, qui visent à contrecarrer les problèmes découlant de la fragmentation de l’architecture du financement de la santé ? | AY80: 0 | AZ80: FALSE | BC80: HTI | BD80: Haiti | BE80: AMR | BF80: Low
P81: 5.5 | Q81: 5.5 Dans quelle mesure les droits et obligations de la population sont-ils explicitement définis et compris par les intéressés ? | R81: 0 | Y81: Haiti | Z81: HTI | AU81: Equity_finance | AV81: Q3.6 | AW81: Dans quelle mesure les dispositifs d’assurance-maladie volontaire sont-ils une source d’inégalités, créant des effets de contagion potentiellement néfastes pour l’ensemble du système de santé ? | AY81: 0 | AZ81: FALSE | BC81: HND | BD81: Honduras | BE81: AMR | BF81: Low-Mid
P82: 5.7 | Q82: 5.7 Dans quelle mesure les prestations, y compris le partage des coûts pour les patients, sont-elles alignées sur les recettes, afin d’assurer un financement adéquat des droits à prestations approuvés ? | R82: 0 | Y82: Honduras | Z82: HND | AU82: Equity_finance | AV82: Q4.10 | AW82: Dans quelle mesure l’achat et le paiement des produits pharmaceutiques sont-ils mis en œuvre pour promouvoir l’utilisation efficace des médicaments (par exemple le recours aux génériques plutôt qu’aux princeps) et pour améliorer la protection financière des patients ? | AY82: 0 | AZ82: FALSE | BC82: HUN | BD82: Hungary | BE82: EUR | BF82: Up-Mid
P83: 6.5 | Q83: 6.5 Mesure dans laquelle le processus budgétaire est consultatif, transparent et un processus d’examen et d’ajustement budgétaire à mi-parcours est établi. | R83: 0 | Y83: Hungary | Z83: HUN | AU83: Equity_finance | AV83: Q5.4 | AW83: Dans quelle mesure les prestations accordent-elles la priorité aux catégories de population prioritaires, par exemple pour une meilleure utilisation des services hautement prioritaires et pour la protection financière ? | AY83: 0 | AZ83: FALSE | BC83: ISL | BD83: Iceland | BE83: EUR | BF83: Hi
P84: 6.7 | Q84: 6.7 Dans quelle mesure les règles du budget de la santé permettent-elles une certaine souplesse des dépenses? | R84: 0 | Y84: Iceland | Z84: ISL | AU84: Equity_finance | AV84: Q5.6 | AW84: Dans quelle mesure les prestations sont-elles alignées sur le paiement des prestataires, afin de s’assurer qu’elles sont fournies et que les patients bénéficient d’une protection financière ? | AY84: 0 | AZ84: FALSE | BC84: IND | BD84: India | BE84: SEAR | BF84: Low-Mid
P85: 6.9 | Q85: 6.9 Dans quelle mesure des politiques de discipline budgétaire visant à contrôler les dépenses sont en rn vigueur (par ex. gestion de la trésorerie, respect des règles d’approvisionnement) et mises en œuvre efficacement? | R85: 0 | Y85: India | Z85: IND | AU85: Quality | AV85: Q4.2 | AW85: Dans quelle mesure les paiements des prestataires sont-ils harmonisés entre régimes/sources de revenus et entre secteurs public et privé, afin de garantir des incitations cohérentes aux prestataires ? | AY85: 0 | AZ85: FALSE | BC85: IDN | BD85: Indonesia | BE85: SEAR | BF85: Low-Mid
P86: 7.1 | Q86: 7.1 Dans quelle mesure les rôles et les responsabilités (liés aux objectifs de financement de la santé et au rendement en matière de collecte de recettes, de mise en commun, d’achats, de prestations, etc.) sont clairement définis et répartis entre les institutions responsables du financement de la santé. | R86: 0 | Y86: Indonesia | Z86: IDN | AU86: Quality | AV86: Q4.3 | AW86: Dans quelle mesure les méthodes de paiement des prestataires et les achats en général favorisent-ils la qualité des soins et la coordination des soins entre les spécialités et les différents niveaux de soins ? | AY86: 0 | AZ86: FALSE | BC86: IRN | BD86: Iran (Islamic Republic of) | BE86: EMR | BF86: Up-Mid
P87: 7.2 | Q87: 7.2 Dans quelle mesure les institutions responsables du financement de la santé disposent-elles de capacités adéquates, notamment en matière de ressources humaines (capacités techniques et managériales) et de TIC ? | R87: 0 | Y87: Iran (Islamic Republic of) | Z87: IRN | AU87: Quality | AV87: Q4.4 | AW87: Dans quelle mesure les contrats d’achat précisent-ils des exigences en matière de qualité des soins, y compris la disponibilité et la pertinence des soins, puis vérifient-ils de façon régulière qu’elles sont bien respectées ? | AY87: 0 | AZ87: FALSE | BC87: IRQ | BD87: Iraq | BE87: EMR | BF87: Up-Mid
P88: 7.3 | Q88: 7.3 Dans quelle mesure les mécanismes de responsabilisation des organismes d’achat/de financement, y compris l’autonomie et le conseil d’administration de l’agence d’assurance-maladie, les mécanismes de récompense/sanction, etc. sont en place pour s’assurer que la politique de financement de la santé appuie les progrès vers les objectifs du secteur et que les fonds sont utilisés efficacement pour les populations, programmes et services prioritaires. | R88: 0 | Y88: Iraq | Z88: IRQ | AU88: Quality | AV88: Q4.6 | AW88: Dans quelle mesure les formulaires de consultation des patients sont-ils normalisés dans l'ensemble du système de santé et utilisés pour analyser et évaluer l'activité de l’ensemble des prestataires et de la population | AY88: 0 | AZ88: FALSE | BC88: IRL | BD88: Ireland | BE88: EUR | BF88: Hi
P89: 7.4 | Q89: 7.4 L’utilisation des fonds ou les performances des institutions achetant des services auprès des prestataires de services de santé ou le budget de la santé ont-ils été communiqués au public (par ex. rapport annuel) ? | R89: 0 | Y89: Ireland | Z89: IRL | AU89: Quality | AV89: Q4.7 | AW89: Dans quelle mesure les paiements des prestataires couvrent uniquement une partie ou l’ensemble des coûts totaux (y compris les salaires, les dépenses récurrentes, etc.) ? | AY89: 0 | AZ89: FALSE | BC89: ISR | BD89: Israel | BE89: EUR | BF89: Hi
P90: 7.5 | Q90: 7.5 Dans quelle mesure le Ministère des finances, le Ministère de la santé et l’organisme national d’assurance-maladie participent au processus d’élaboration des politiques de financement de la santé et en sont informés. | R90: 0 | Y90: Israel | Z90: ISR | AU90: Quality | AV90: Q4.8 | AW90: Dans quelle mesure les prestataires jouissent-ils d’une autonomie financière et sont-ils tenus responsables, dans une mesure réaliste et conforme à leurs capacités ? | AY90: 0 | AZ90: FALSE | BC90: ITA | BD90: Italy | BE90: EUR | BF90: Hi
P91: 7.6 | Q91: 7.6 Dans quelle mesure le processus d’élaboration des politiques de financement de la santé est transparent et participatif? | R91: 0 | Y91: Italy | Z91: ITA | AU91: Quality | AV91: Q4.9 | AW91: Dans quelle mesure l’accréditation des prestataires ou les contrats sélectifs sont-ils établis, fonctionnels et utilisés pour les achats ? | AY91: 0 | AZ91: FALSE | BC91: JAM | BD91: Jamaica | BE91: AMR | BF91: Up-Mid
Y92: Jamaica | Z92: JAM | AU92: Quality | AV92: Q7.2 | AW92: Dans quelle mesure les institutions responsables du financement de la santé disposent-elles de capacités adéquates, notamment en matière de ressources humaines (capacités techniques et managériales) et de TIC ? | AY92: 0 | AZ92: FALSE | BC92: JPN | BD92: Japan | BE92: WPR | BF92: Hi
P93: Équité des financements | Y93: Japan | Z93: JPN | BC93: JOR | BD93: Jordan | BE93: EMR | BF93: Up-Mid
P94: 2.1 | Q94: 2.1 Quelle approche en matière d’élaboration de politiques et de stratégies de collecte de recettes est en vigueur dans votre pays? Cette approche s'inscrit-elle dans le cadre d’un processus global d’élaboration et de planification de la mise en œuvre des politiques de financement de la santé ? | R94: =IFERROR(VLOOKUP(P94,$A$8:$E$57,5,0),"") -> 0 | Y94: Jordan | Z94: JOR | BC94: KAZ | BD94: Kazakhstan | BE94: EUR | BF94: Up-Mid
P95: 2.2 | Q95: 2.2 Dans quelle mesure le financement de la santé dans votre pays repose-t-il sur des sources de financement public/obligatoire (par exemple, fiscalité/recettes publiques, y compris les cotisations obligatoires à l’assurance-maladie nationale/sociale) ? | R95: 0 | Y95: Kazakhstan | Z95: KAZ | BC95: KEN | BD95: Kenya | BE95: AFR | BF95: Low
P96: 2.4 | Q96: 2.4 Dans quelle mesure le flux de fonds publics est-il stable, Serait-ce grâce à une exécution régulière, c’est-à-dire un déblocage des fonds dans les délais, conformément aux budgets de santé approuvés ? | R96: 0 | Y96: Kenya | Z96: KEN | BC96: KIR | BD96: Kiribati | BE96: WPR | BF96: Low-Mid
P97: 2.5 | Q97: 2.5 Dans quelle mesure les différentes sources de recettes sont-elles obtenues de façon progressive (c.-à-d. en fonction de la capacité de payer), et partant favorisent l’équité dans le mode de financement du système de santé ? | R97: 0 | Y97: Kiribati | Z97: KIR | BC97: KWT | BD97: Kuwait | BE97: EMR | BF97: Hi
P98: 3.4 | Q98: 3.4 Y aurait-il des mesures, liées à la conception des prestations, au paiement des prestataires ou à des systèmes sous-jacents non financiers, qui ciblent les problèmes découlant de la fragmentation des caisses ? | R98: 0 | Y98: Kuwait | Z98: KWT | BC98: KGZ | BD98: Kyrgyzstan | BE98: EUR | BF98: Low-Mid
P99: 3.6 | Q99: 3.6 Dans quelle mesure les dispositifs d’assurance-maladie volontaire sont-ils une source d’inégalités, créant des effets de contagion potentiellement néfastes pour l’ensemble du système de santé ? | R99: 0 | Y99: Kyrgyzstan | Z99: KGZ | BC99: LAO | BD99: Lao People's Democratic Republic | BE99: WPR | BF99: Low-Mid
P100: 4.11 | Q100: 4.10 Dans quelle mesure l’achat et le paiement des produits pharmaceutiques sont-ils mis en œuvre pour promouvoir l’utilisation efficace des médicaments (par ex. le recours aux génériques plutôt qu’aux princeps) et pour améliorer la protection financière des patients ? | R100: 0 | Y100: Lao People's Democratic Republic | Z100: LAO | BC100: LVA | BD100: Latvia | BE100: EUR | BF100: Hi
P101: 5.4 | Q101: 5.4 Dans quelle mesure les prestations accordent-elles la priorité aux catégories de population prioritaires, par exemple pour une meilleure utilisation des services hautement prioritaires et la protection financière ? | R101: 0 | Y101: Latvia | Z101: LVA | BC101: LBN | BD101: Lebanon | BE101: EMR | BF101: Up-Mid
P102: 5.6 | Q102: 5.6 Dans quelle mesure les prestations sont-elles alignées sur le paiement des prestataires, afin de s’assurer qu’elles sont fournies et que les patients bénéficient d’une protection financière ? | R102: 0 | Y102: Lebanon | Z102: LBN | BC102: LSO | BD102: Lesotho | BE102: AFR | BF102: Low-Mid
Y103: Lesotho | Z103: LSO | BC103: LBR | BD103: Liberia | BE103: AFR | BF103: Low
P104: Protection financière | Y104: Liberia | Z104: LBR | BC104: LBY | BD104: Libya | BE104: EMR | BF104: Up-Mid
P105: 2.1 | Q105: =Q94 -> 2.1 Quelle approche en matière d’élaboration de politiques et de stratégies de collecte de recettes est en vigueur dans votre pays? Cette approche s'inscrit-elle dans le cadre d’un processus global d’élaboration et de planification de la mise en œuvre des politiques de financement de la santé ? | R105: =IFERROR(VLOOKUP(P105,$A$8:$E$57,5,0),"") -> 0 | Y105: Libya | Z105: LBY | BC105: LTU | BD105: Lithuania | BE105: EUR | BF105: Hi
P106: 2.2 | Q106: =Q95 -> 2.2 Dans quelle mesure le financement de la santé dans votre pays repose-t-il sur des sources de financement public/obligatoire (par exemple, fiscalité/recettes publiques, y compris les cotisations obligatoires à l’assurance-maladie nationale/sociale) ? | R106: 0 | Y106: Lithuania | Z106: LTU | BC106: LUX | BD106: Luxembourg | BE106: EUR | BF106: Hi
P107: 2.4 | Q107: =Q96 -> 2.4 Dans quelle mesure le flux de fonds publics est-il stable, Serait-ce grâce à une exécution régulière, c’est-à-dire un déblocage des fonds dans les délais, conformément aux budgets de santé approuvés ? | R107: 0 | Y107: Luxembourg | Z107: LUX | BC107: MDG | BD107: Madagascar | BE107: AFR | BF107: Low
P108: 2.5 | Q108: =Q97 -> 2.5 Dans quelle mesure les différentes sources de recettes sont-elles obtenues de façon progressive (c.-à-d. en fonction de la capacité de payer), et partant favorisent l’équité dans le mode de financement du système de santé ? | R108: 0 | Y108: Madagascar | Z108: MDG | BC108: MWI | BD108: Malawi | BE108: AFR | BF108: Low
P109: 3.2 | Q109: 3.2 Dans le cadre du processus global d’élaboration et de planification de la mise en œuvre des politiques de financement de la santé, quelle est l’approche de votre pays en matière de dispositifs de mise en commun des recettes ? | R109: 0 | Y109: Malawi | Z109: MWI | BC109: MYS | BD109: Malaysia | BE109: WPR | BF109: Up-Mid
P110: 3.3 | Q110: 3.3 Dans quelle mesure la capacité de redistribution des fonds prépayés dans votre pays est-elle limitée par les accords institutionnels de financement de la santé ? | R110: 0 | Y110: Malaysia | Z110: MYS | BC110: MDV | BD110: Maldives | BE110: SEAR | BF110: Up-Mid
P111: 3.4 | Q111: =Q98 -> 3.4 Y aurait-il des mesures, liées à la conception des prestations, au paiement des prestataires ou à des systèmes sous-jacents non financiers, qui ciblent les problèmes découlant de la fragmentation des caisses ? | R111: 0 | Y111: Maldives | Z111: MDV | BC111: MLI | BD111: Mali | BE111: AFR | BF111: Low
P112: 3.5 | Q112: 3.5 Dans quelle mesure les différentes sources de recettes et de financement sont-elles organisées de manière complémentaire, afin de financer un paquet de prestations pour l’ensemble de la population ? | R112: 0 | Y112: Mali | Z112: MLI | BC112: MLT | BD112: Malta | BE112: EUR | BF112: Hi
P113: 3.6 | Q113: =Q99 -> 3.6 Dans quelle mesure les dispositifs d’assurance-maladie volontaire sont-ils une source d’inégalités, créant des effets de contagion potentiellement néfastes pour l’ensemble du système de santé ? | R113: 0 | Y113: Malta | Z113: MLT | BC113: MHL | BD113: Marshall Islands | BE113: WPR | BF113: Up-Mid
P114: 4.11 | Q114: =Q100 -> 4.10 Dans quelle mesure l’achat et le paiement des produits pharmaceutiques sont-ils mis en œuvre pour promouvoir l’utilisation efficace des médicaments (par ex. le recours aux génériques plutôt qu’aux princeps) et pour améliorer la protection financière des patients ? | R114: 0 | Y114: Marshall Islands | Z114: MHL | BC114: MRT | BD114: Mauritania | BE114: AFR | BF114: Low-Mid
P115: 5.4 | Q115: 5.4 Dans quelle mesure les prestations accordent-elles la priorité aux catégories de population prioritaires, par exemple pour une meilleure utilisation des services hautement prioritaires et la protection financière ? | R115: 0 | Y115: Mauritania | Z115: MRT | BC115: MUS | BD115: Mauritius | BE115: AFR | BF115: Up-Mid
P116: 5.6 | Q116: 5.6 Dans quelle mesure les prestations sont-elles alignées sur le paiement des prestataires, afin de s’assurer qu’elles sont fournies et que les patients bénéficient d’une protection financière ? | R116: 0 | Y116: Mauritius | Z116: MUS | BC116: MEX | BD116: Mexico | BE116: AMR | BF116: Up-Mid
Y117: Mexico | Z117: MEX | BC117: FSM | BD117: Micronesia (Federated States of) | BE117: WPR | BF117: Low-Mid
P118: Qualité | Y118: Micronesia (Federated States of) | Z118: FSM | BC118: MCO | BD118: Monaco | BE118: EUR | BF118: Hi
P119: 4.2 | Q119: 4.2 Dans quelle mesure les paiements des prestataires sont-ils harmonisés entre régimes/sources de recettes et entre secteurs public et privé, afin de garantir des incitations cohérentes aux prestataires ? | R119: =IFERROR(VLOOKUP(P119,$A$8:$E$57,5,0),"") -> 0 | Y119: Monaco | Z119: MCO | BC119: MNG | BD119: Mongolia | BE119: WPR | BF119: Low-Mid
P120: 4.3 | Q120: 4.3 Dans quelle mesure les méthodes de paiement des prestataires et les achats en général favorisent-ils la qualité des soins et la coordination des soins entre les spécialités et les différents niveaux de soins ? | R120: 0 | Y120: Mongolia | Z120: MNG | BC120: MNE | BD120: Montenegro | BE120: EUR | BF120: Up-Mid
P121: 4.4 | Q121: 4.4 Dans quelle mesure les contrats d’achat précisent-ils des exigences en matière de qualité des soins, y compris la disponibilité et la pertinence des soins, puis vérifient-ils de façon régulière qu’elles sont bien respectées ? | R121: 0 | Y121: Montenegro | Z121: MNE | BC121: MAR | BD121: Morocco | BE121: EMR | BF121: Low-Mid
P122: 4.6 | Q122: 4.6 Dans quelle mesure les formulaires de demande standard, basés sur les formulaires de consultation avec le patient, sont-ils utilisés indépendamment de l’affiliation du patient au régime et utilisés pour examiner et évaluer les demandes ? | R122: 0 | Y122: Morocco | Z122: MAR | BC122: MOZ | BD122: Mozambique | BE122: AFR | BF122: Low
P123: 4.7 | Q123: 4.7 Dans quelle mesure les paiements des prestataires ne couvrent-ils qu’une partie des coûts totaux, ou couvrent-ils les coûts totaux, y compris les salaires, les dépenses récurrentes, etc. | R123: 0 | Y123: Mozambique | Z123: MOZ | BC123: MMR | BD123: Myanmar | BE123: SEAR | BF123: Low
P124: 4.8 | Q124: 4.8 Dans quelle mesure les prestataires jouissent-ils d’une autonomie financière et sont-ils tenus responsables, dans une mesure réaliste et conforme à leurs capacités ? | R124: 0 | Y124: Myanmar | Z124: MMR | BC124: NAM | BD124: Namibia | BE124: AFR | BF124: Up-Mid
P125: 4.9 | Q125: 4.9 Dans quelle mesure l’accréditation des prestataires ou les contrats sélectifs sont-ils établis, fonctionnels et utilisés pour les achats ? | R125: 0 | Y125: Namibia | Z125: NAM | BC125: NRU | BD125: Nauru | BE125: WPR | BF125: Up-Mid
P126: 7.2 | Q126: 7.2 Dans quelle mesure les institutions responsables du financement de la santé disposent-elles de capacités adéquates, notamment en matière de ressources humaines (capacités techniques et managériales) et de TIC ? | R126: 0 | Y126: Nauru | Z126: NRU | BC126: NPL | BD126: Nepal | BE126: SEAR | BF126: Low
Y127: Nepal | Z127: NPL | BC127: NLD | BD127: Netherlands | BE127: EUR | BF127: Hi
P128: Utilisation par rapport aux besoins | Y128: Netherlands | Z128: NLD | BC128: NZL | BD128: New Zealand | BE128: WPR | BF128: Hi
P129: 2.3 | Q129: =Q77 -> 2.3 Dans quelle mesure le financement public de la santé dans votre pays est-il prévisible sur plusieurs années ? | R129: =IFERROR(VLOOKUP(P129,$A$8:$E$57,5,0),"") -> 0 | Y129: New Zealand | Z129: NZL | BC129: NIC | BD129: Nicaragua | BE129: AMR | BF129: Low-Mid
P130: 2.4 | Q130: =Q107 -> 2.4 Dans quelle mesure le flux de fonds publics est-il stable, Serait-ce grâce à une exécution régulière, c’est-à-dire un déblocage des fonds dans les délais, conformément aux budgets de santé approuvés ? | R130: 0 | Y130: Nicaragua | Z130: NIC | BC130: NER | BD130: Niger | BE130: AFR | BF130: Low
P131: 2.5 | Q131: 2.5 Dans quelle mesure les différentes sources de recettes sont-elles obtenues de façon progressive (c.-à-d. en fonction de la capacité de payer), et partant favorisent l’équité dans le mode de financement du système de santé ? | R131: 0 | Y131: Niger | Z131: NER | BC131: NGA | BD131: Nigeria | BE131: AFR | BF131: Low-Mid
P132: 3.2 | Q132: 3.2 Dans le cadre du processus global d’élaboration et de planification de la mise en œuvre des politiques de financement de la santé, quelle est l’approche de votre pays en matière de dispositifs de mise en commun des recettes ? | R132: 0 | Y132: Nigeria | Z132: NGA | BC132: NIU | BD132: Niue | BE132: WPR | BF132: Up-Mid
P133: 3.3 | Q133: 3.3 Dans quelle mesure la capacité de redistribution des fonds prépayés dans votre pays est-elle limitée par les accords institutionnels de financement de la santé ? | R133: 0 | Y133: Niue | Z133: NIU | BC133: NOR | BD133: Norway | BE133: EUR | BF133: Hi
P134: 3.4 | Q134: 3.4 Y aurait-il des mesures, liées à la conception des prestations, au paiement des prestataires ou à des systèmes sous-jacents non financiers, qui ciblent les problèmes découlant de la fragmentation des caisses ? | R134: 0 | Y134: Norway | Z134: NOR | BC134: OMN | BD134: Oman | BE134: EMR | BF134: Hi
P135: 3.5 | Q135: 3.5 Dans quelle mesure les différentes sources de recettes et de financement sont-elles organisées de manière complémentaire, afin de financer un paquet de prestations pour l’ensemble de la population ? | R135: 0 | Y135: Oman | Z135: OMN | BC135: PAK | BD135: Pakistan | BE135: EMR | BF135: Low-Mid
P136: 4.1 | Q136: 4.1 Dans quelle mesure les allocations de fonds aux acheteurs de niveau inférieur, par exemple les administrations locales, et/ou les taux de paiement aux prestataires sont-ils le reflet des besoins de santé de la population ? | R136: 0 | Y136: Pakistan | Z136: PAK | BC136: PLW | BD136: Palau | BE136: WPR | BF136: Up-Mid
P137: 5.3 | Q137: 5.3 Dans quelle mesure les droits à prestation reflètent-ils explicitement les besoins de santé de la population ? | R137: 0 | Y137: Palau | Z137: PLW | BC137: PAN | BD137: Panama | BE137: AMR | BF137: Up-Mid
P138: 5.4 | Q138: 5.4 Dans quelle mesure les prestations accordent-elles la priorité aux catégories de population prioritaires, par exemple pour une meilleure utilisation des services hautement prioritaires et la protection financière ? | R138: 0 | Y138: Panama | Z138: PAN | BC138: PNG | BD138: Papua New Guinea | BE138: WPR | BF138: Low-Mid
P139: 5.5 | Q139: 5.5 Dans quelle mesure les droits et obligations de la population sont-ils explicitement définis et compris par les intéressés ? | R139: 0 | Y139: Papua New Guinea | Z139: PNG | BC139: PRY | BD139: Paraguay | BE139: AMR | BF139: Low-Mid
P140: 5.6 | Q140: 5.6 Dans quelle mesure les prestations sont-elles alignées sur le paiement des prestataires, afin de s’assurer qu’elles sont fournies et que les patients bénéficient d’une protection financière ? | R140: 0 | Y140: Paraguay | Z140: PRY | BC140: PER | BD140: Peru | BE140: AMR | BF140: Up-Mid
P141: 5.7 | Q141: 5.7 Dans quelle mesure les prestations, y compris le partage des coûts pour les patients, sont-elles alignées sur les recettes, afin d’assurer un financement adéquat des droits à prestations approuvés ? | R141: 0 | Y141: Peru | Z141: PER | BC141: PHL | BD141: Philippines | BE141: WPR | BF141: Low-Mid
P142: 6.4 | Q142: 6.4 Mesure dans laquelle les allocations budgétaires annuelles en matière de santé sont alignées sur les priorités du secteur de la santé (niveau, structure, nature/objectif) | R142: 0 | Y142: Philippines | Z142: PHL | BC142: POL | BD142: Poland | BE142: EUR | BF142: Hi
P143: 6.6 | Q143: 6.6 Dans quelle mesure les transferts fiscaux sont conçus et mis en œuvre de sorte à améliorer l’équité de la distribution des ressources dans le secteur de la santé? | R143: 0 | Y143: Poland | Z143: POL | BC143: PRT | BD143: Portugal | BE143: EUR | BF143: Hi
P144: 6.7 | Q144: 6.7 Dans quelle mesure les règles du budget de la santé permettent-elles une certaine souplesse des dépenses? | R144: 0 | Y144: Portugal | Z144: PRT | BC144: QAT | BD144: Qatar | BE144: EMR | BF144: Hi
P145: 6.15 | Q145: 6.11 Dans quelle mesure les flux financiers multiples, la structure budgétaire et les règles de GFP sont alignés sur les politiques d’achats stratégiques? | R145: 0 | Y145: Qatar | Z145: QAT | BC145: KOR | BD145: Republic of Korea | BE145: WPR | BF145: Hi
Y146: Republic of Korea | Z146: KOR | BC146: MDA | BD146: Republic of Moldova | BE146: EUR | BF146: Low-Mid
Y147: Republic of Moldova | Z147: MDA | BC147: ROU | BD147: Romania | BE147: EUR | BF147: Up-Mid
Y148: Romania | Z148: ROU | BC148: RUS | BD148: Russian Federation | BE148: EUR | BF148: Hi
Y149: Russian Federation | Z149: RUS | BC149: RWA | BD149: Rwanda | BE149: AFR | BF149: Low
Y150: Rwanda | Z150: RWA | BC150: KNA | BD150: Saint Kitts and Nevis | BE150: AMR | BF150: Hi
Y151: Saint Kitts and Nevis | Z151: KNA | BC151: LCA | BD151: Saint Lucia | BE151: AMR | BF151: Up-Mid
Y152: Saint Lucia | Z152: LCA | BC152: VCT | BD152: Saint Vincent and the Grenadines | BE152: AMR | BF152: Up-Mid
Y153: Saint Vincent and the Grenadines | Z153: VCT | BC153: WSM | BD153: Samoa | BE153: WPR | BF153: Low-Mid
Y154: Samoa | Z154: WSM | BC154: SMR | BD154: San Marino | BE154: EUR | BF154: Hi
Y155: San Marino | Z155: SMR | BC155: STP | BD155: Sao Tome and Principe | BE155: AFR | BF155: Low-Mid
Y156: Sao Tome and Principe | Z156: STP | BC156: SAU | BD156: Saudi Arabia | BE156: EMR | BF156: Hi
Y157: Saudi Arabia | Z157: SAU | BC157: SEN | BD157: Senegal | BE157: AFR | BF157: Low-Mid
Y158: Senegal | Z158: SEN | BC158: SRB | BD158: Serbia | BE158: EUR | BF158: Up-Mid
Y159: Serbia | Z159: SRB | BC159: SYC | BD159: Seychelles | BE159: AFR | BF159: Up-Mid
Y160: Seychelles | Z160: SYC | BC160: SLE | BD160: Sierra Leone | BE160: AFR | BF160: Low
Y161: Sierra Leone | Z161: SLE | BC161: SGP | BD161: Singapore | BE161: WPR | BF161: Hi
Y162: Singapore | Z162: SGP | BC162: SVK | BD162: Slovakia | BE162: EUR | BF162: Hi
Y163: Slovakia | Z163: SVK | BC163: SVN | BD163: Slovenia | BE163: EUR | BF163: Hi
Y164: Slovenia | Z164: SVN | BC164: SLB | BD164: Solomon Islands | BE164: WPR | BF164: Low-Mid
Y165: Solomon Islands | Z165: SLB | BC165: SOM | BD165: Somalia | BE165: EMR | BF165: Low
Y166: Somalia | Z166: SOM | BC166: ZAF | BD166: South Africa | BE166: AFR | BF166: Up-Mid
Y167: South Africa | Z167: ZAF | BC167: SSD | BD167: South Sudan | BE167: AFR | BF167: Low-Mid
Y168: South Sudan | Z168: SSD | BC168: ESP | BD168: Spain | BE168: EUR | BF168: Hi
Y169: Spain | Z169: ESP | BC169: LKA | BD169: Sri Lanka | BE169: SEAR | BF169: Low-Mid
Y170: Sri Lanka | Z170: LKA | BC170: SDN | BD170: Sudan | BE170: EMR | BF170: Low-Mid
Y171: Sudan | Z171: SDN | BC171: SUR | BD171: Suriname | BE171: AMR | BF171: Up-Mid
Y172: Suriname | Z172: SUR | BC172: SWZ | BD172: Swaziland | BE172: AFR | BF172: Low-Mid
Y173: Swaziland | Z173: SWZ | BC173: SWE | BD173: Sweden | BE173: EUR | BF173: Hi
Y174: Sweden | Z174: SWE | BC174: CHE | BD174: Switzerland | BE174: EUR | BF174: Hi
Y175: Switzerland | Z175: CHE | BC175: SYR | BD175: Syrian Arab Republic | BE175: EMR | BF175: Low-Mid
Y176: Syrian Arab Republic | Z176: SYR | BC176: TJK | BD176: Tajikistan | BE176: EUR | BF176: Low
Y177: Tajikistan | Z177: TJK | BC177: THA | BD177: Thailand | BE177: SEAR | BF177: Up-Mid
Y178: Thailand | Z178: THA | BC178: MKD | BD178: The former Yugoslav Republic of Macedonia | BE178: EUR | BF178: Up-Mid
Y179: The former Yugoslav Republic of Macedonia | Z179: MKD | BC179: TLS | BD179: Timor-Leste | BE179: SEAR | BF179: Low-Mid
Y180: Timor-Leste | Z180: TLS | BC180: TGO | BD180: Togo | BE180: AFR | BF180: Low
Y181: Togo | Z181: TGO | BC181: TON | BD181: Tonga | BE181: WPR | BF181: Up-Mid
Y182: Tonga | Z182: TON | BC182: TTO | BD182: Trinidad and Tobago | BE182: AMR | BF182: Hi
Y183: Trinidad and Tobago | Z183: TTO | BC183: TUN | BD183: Tunisia | BE183: EMR | BF183: Up-Mid
Y184: Tunisia | Z184: TUN | BC184: TUR | BD184: Turkey | BE184: EUR | BF184: Up-Mid
Y185: Turkey | Z185: TUR | BC185: TKM | BD185: Turkmenistan | BE185: EUR | BF185: Up-Mid
Y186: Turkmenistan | Z186: TKM | BC186: TUV | BD186: Tuvalu | BE186: WPR | BF186: Up-Mid
Y187: Tuvalu | Z187: TUV | BC187: UGA | BD187: Uganda | BE187: AFR | BF187: Low
Y188: Uganda | Z188: UGA | BC188: UKR | BD188: Ukraine | BE188: EUR | BF188: Low-Mid
Y189: Ukraine | Z189: UKR | BC189: ARE | BD189: United Arab Emirates | BE189: EMR | BF189: Hi
Y190: United Arab Emirates | Z190: ARE | BC190: GBR | BD190: United Kingdom | BE190: EUR | BF190: Hi
Y191: United Kingdom | Z191: GBR | BC191: TZA | BD191: United Republic of Tanzania | BE191: AFR | BF191: Low
Y192: United Republic of Tanzania | Z192: TZA | BC192: USA | BD192: United States of America | BE192: AMR | BF192: Hi
Y193: United States of America | Z193: USA | BC193: URY | BD193: Uruguay | BE193: AMR | BF193: Hi
Y194: Uruguay | Z194: URY | BC194: UZB | BD194: Uzbekistan | BE194: EUR | BF194: Low-Mid
Y195: Uzbekistan | Z195: UZB | BC195: VUT | BD195: Vanuatu | BE195: WPR | BF195: Low-Mid
Y196: Vanuatu | Z196: VUT | BC196: VEN | BD196: Venezuela (Bolivarian Republic of) | BE196: AMR | BF196: Up-Mid
Y197: Venezuela (Bolivarian Republic of) | Z197: VEN | BC197: VNM | BD197: Viet Nam | BE197: WPR | BF197: Low-Mid
Y198: Viet Nam | Z198: VNM | BC198: YEM | BD198: Yemen | BE198: EMR | BF198: Low-Mid
Y199: Yemen | Z199: YEM | BC199: ZMB | BD199: Zambia | BE199: AFR | BF199: Low-Mid
Y200: Zambia | Z200: ZMB | BC200: ZWE | BD200: Zimbabwe | BE200: AFR | BF200: Low
Y201: Zimbabwe | Z201: ZWE

Sheet Print Excel (hidden)
A1: 1
B11: =Instructions!H19 -> 0
B22: MATRICE DE PROGRÈS POUR LE FINANCEMENT DE LA SANTÉ
B49: ='Print your results Full'!D20 -> Période couverte :
B51: =Results!E5 -> 0 -0
B58: =Instructions!G21 -> Rempli par :
B59: =Instructions!H21 -> 0
B70: =Results!C6 -> Processus suivi:
B71: =Results!D6 -> 0
B124: Nous tenons à remercier tous ceux qui ont contribué à l’élaboration des matrices de progrès dans le cadre d’une réunion d’examen qui s’est tenue à Genève en mai 2018. Ce travail a bénéficié du soutien financier de la République de Corée du Sud et du Royaume-Uni (don du DfID MCHSS), que nous tenons également à remercier vivement.
B150: =Results!K8 -> Processus d’élaboration des politiques
B168: =IF(criteria1=0,"",Results!E63) -> 
B170: =IF(criteria1=0,"",Results!A63) -> 
B173: ='Policy Development Process'!D8 -> Q1.1 Le système de financement de la santé de votre pays a-t-il récemment fait l’objet d’un diagnostic ou d’une évaluation approfondie qui examine son impact sur les performances du système de santé ainsi que les causes des problèmes de performance ?
B174: ="Scale = "&Q1.1& "/12" -> Scale = 0/12
B176: =Results!F8 -> 
B178: ='Policy Development Process'!D24 -> Q1.2 A-t-on transposé en textes de loi/décrets une déclaration de politique récente relative au financement de la santé ?
B179: ="Scale = "&Q1.2& "/12" -> Scale = 0/12
B181: =Results!F9 -> 
B183: ='Policy Development Process'!D40 -> Q1.3 Existe-t-il un système de suivi régulier du financement de la santé, et si oui les données sont-elles utilisées pour suivre les progrès effectués (par exemple sur les modèles de dépenses et la protection financière) et pour renforcer la reddition de comptes ?
B184: ="Scale = "&Q1.3& "/12" -> Scale = 0/12
B186: =Results!F10 -> 
B188: ='Policy Development Process'!D57 -> Q1.4 Les études d’évaluation sont-elles réalisées sur une base systématique pour mesurer les conséquences de la mise en œuvre de réformes spécifiques du financement sur les objectifs du système de santé et dans quelles mesure les résultats servent-ils à guider la conception et la révision des politiques de financement de la santé ?
B189: ="Scale = "&Q1.4& "/12" -> Scale = 0/12
B191: =Results!F11 -> 
B194: Résumez ici les prochaines étapes, priorités ou points d’action que vous avez identifiés après avoir complété cette matrice relative aux Prestations et droits.
B195: =Results!M8 -> 
B197: =Results!K9 -> Collecte de recettes
B210: =IF(criteria1=0,"",Results!E103) -> 
B212: =IF(criteria1=0,"",Results!A103) -> 
B218: ='Revenue Raising'!D8 -> Q2.1 Quelle approche est en vigueur dans votre pays en matière d’élaboration de politiques et de stratégies de collecte de revenus ? Cette approche s'inscrit-elle dans le cadre du processus global d’élaboration et de planification de la mise en œuvre des politiques de financement de la santé ?
B219: ="Scale = "&Q2.1& "/12" -> Scale = 0/12
B221: =Results!F12 -> 
B223: ='Revenue Raising'!D24 -> Q2.2 Dans quelle mesure le financement de la santé dans votre pays repose-t-il sur des sources de financement public/obligatoire (par exemple, fiscalité/recettes publiques, y compris les cotisations obligatoires à l’assurance-maladie nationale/sociale) ?
B224: ="Scale = "&Q2.2& "/12" -> Scale = 0/12
B226: =Results!F13 -> 
B228: ='Revenue Raising'!D40 -> Q2.3 Dans quelle mesure le financement public de la santé dans votre pays est-il prédictible sur plusieurs années ?
B229: ="Scale = "&Q2.3& "/12" -> Scale = 0/12
B231: =Results!F14 -> 
B233: ='Revenue Raising'!D56 -> Q2.4 Dans quelle mesure le flux de fonds publics est-il stable, notamment grâce à une exécution budgétaire régulière, c’est-à-dire un déblocage des fonds dans les délais, conformément aux budgets de santé approuvés ?
B234: ="Scale = "&Q2.4& "/12" -> Scale = 0/12
B236: =Results!F15 -> 
B238: ='Revenue Raising'!D72 -> Q2.5 Dans quelle mesure les différentes sources de revenus sont-elles collectées de façon progressive (c.-à-d. en fonction de la capacité de payer), et partant de là favorisent l’équité dans le mode de financement du système de santé ?
B239: ="Scale = "&Q2.5& "/12" -> Scale = 0/12
B241: =Results!F16 -> 
B244: Résumez ici les prochaines étapes, priorités ou points d’action que vous avez identifiés après avoir complété cette matrice relative aux Prestations et droits.
B245: =Results!M9 -> 
B248: Further resources
B251: Revenue raising matrix – additional resources:
B252: · WHO webpage on “Revenue raising for health” (link)
B253: · Module 2 of WHO e-learning course on health financing policy for UHC (register here)
B254: · McIntyre D, Kutzin J. (2016). “Health financing country diagnostic: a foundation for national strategy development”. WHO Geneva (link) (see relevant sections on revenue raising)
B255: · Kutzin J, Witter S, Jowett M, Bayarsaikhan D. (2017) “Developing a National Health Financing Strategy: A Reference Guide”. Health Financing Guidance No3. WHO, Geneva (link) (see relevant sections on revenue raising)
B257: References for revenue raising:
B258: · Jowett M and Kutzin J, (2015). “Raising revenues for health in support of UHC: strategic issues for policy makers” Health Financing Policy Brief No. 1. WHO, Geneva (link)
B259: · World Health Organization (2018) “New Perspectives on Global Health Spending for Universal Health Coverage”. Health Financing Working Paper No. 10. WHO, Geneva (link)
B260: · Cashin C., Sparkes S., Bloom D. (2017). “Earmarking for health: from theory to practice”. Health Financing Working Paper No. 5. WHO, Geneva (link).
B261: · Jowett M, Brunal MP, Flores G, Cylus J. (2016). “Spending targets for health: no magic number”. Health Financing Working Paper No. 1. WHO, Geneva (link)
B262: · World Health Organisation (2010). World Health Report: Chapter 2 “More money for health”. WHO, Geneva (link)
B266: =Results!K10 -> Mise en commun des recettes
B292: ='Pooling Revenues'!D8 -> Q3.1 Cette question a été maintenant remplacé par l’étape 1 et le tableau de vue d’ensemble et ne constitue donc plus une question distincte. Merci de bien vous assurer que vous avez complété l’étape 1 car cela vous aidera à remplir les questions de cette section.
B293: =Results!F17 -> 
B295: ='Pooling Revenues'!D24 -> Q3.2 Dans le cadre du processus global d’élaboration et de planification de la mise en œuvre des politiques de financement de la santé, quelle est l’approche de votre pays en matière de dispositifs de mise en commun des ressources ?
B296: ="Scale = "&Q3.2& "/12" -> Scale = 0/12
B298: =Results!F18 -> 
B300: ='Pooling Revenues'!D40 -> Q3.3 Dans quelle mesure la capacité de redistribution des fonds prépayés dans votre pays est-elle limitée par le cadre institutionnel du financement de la santé ?
B301: ="Scale = "&Q3.3& "/12" -> Scale = 0/12
B303: =Results!F19 -> 
B305: ='Pooling Revenues'!D56 -> Q3.4 Y-a-il des mesures, dans la conception des prestations, le paiement des prestataires ou les systèmes sous-jacents non financiers, qui visent à contrecarrer les problèmes découlant de la fragmentation de l’architecture du financement de la santé ?
B306: ="Scale = "&Q3.4& "/12" -> Scale = 0/12
B308: =Results!F20 -> 
B310: ='Pooling Revenues'!D72 -> Q3.5 Dans quelle mesure les différentes sources de recettes et de financement sont-elles organisées de manière complémentaire, afin de financer un paquet de prestations pour l’ensemble de la population ?
B311: ="Scale = "&Q3.5& "/12" -> Scale = 0/12
B313: =Results!F21 -> 
B315: ='Pooling Revenues'!D88 -> Q3.6 Dans quelle mesure les dispositifs d’assurance-maladie volontaire sont-ils une source d’inégalités, créant des effets de contagion potentiellement néfastes pour l’ensemble du système de santé ?
B316: ="Scale = "&Q3.6& "/12" -> Scale = 0/12
B318: =Results!F22 -> 
B320: ='Pooling Revenues'!D104 -> Q3.7 Dans quelle mesure les flux financiers sont-ils incohérents et redondants, et empêchent d’utiliser efficacement le budget public et les fonds des donateurs ?
B321: ="Scale = "&Q3.7& "/12" -> Scale = 0/12
B323: =Results!F23 -> 
B325: Résumez ici les prochaines étapes, priorités ou points d’action que vous avez identifiés après avoir complété cette matrice relative aux Prestations et droits.
B326: =Results!M10 -> 
B329: Further resources
B332: Pooling revenues matrix – additional resources:
B333: · WHO webpage on “Pooling revenues for health” (link)
B334: · Module 3 of WHO e-learning course on health financing policy for UHC (register here)
B335: · Kutzin J, Witter S, Jowett M, Bayarsaikhan D. (2017) “Developing a National Health Financing Strategy: A Reference Guide”. Health Financing Guidance No3. WHO, Geneva (link) (see relevant sections on pooling)
B336: · Kutzin J, Witter S, Jowett M, Bayarsaikhan D. (2017) “Developing a National Health Financing Strategy: A Reference Guide”. Health Financing Guidance No3. WHO, Geneva (link) (see relevant sections on pooling)
B338: References for pooling revenues:
B339: · World Health Organization (2010). “Fragmentation in pooling arrangements”. Technical Brief Series – Brief No 5. WHO, Geneva (link)
B340: · World Health Organisation (2010). World Health Report: Chapter 3 “Strength in numbers”. WHO, Geneva. (See pages 47-51) (link)
B341: · Fuchs, VR (1996). “What every philosopher should know about health economics.” Proceedings of the American Philosophical Society 140(2):186-196. [section on UHC, pp 157-158]
B345: =Results!K11 -> Achats et paiement des prestataires
B388: ='Purchasing and Provider Payment'!D8 -> Q4.1 Dans quelle mesure les allocations de fonds aux acheteurs de niveau inférieur, par exemple les administrations locales, et/ou les taux de paiement aux prestataires sont-ils le reflet des besoins de santé de la population ?
B389: ="Scale = "&Q4.1& "/12" -> Scale = 0/12
B390: =Results!F24 -> 
B392: ='Purchasing and Provider Payment'!D24 -> Q4.2 Dans quelle mesure les paiements des prestataires sont-ils harmonisés entre régimes/sources de revenus et entre secteurs public et privé, afin de garantir des incitations cohérentes aux prestataires ?
B393: ="Scale = "&Q4.2& "/12" -> Scale = 0/12
B395: =Results!F25 -> 
B397: ='Purchasing and Provider Payment'!D40 -> Q4.3 Dans quelle mesure les méthodes de paiement des prestataires et les achats en général favorisent-ils la qualité des soins et la coordination des soins entre les spécialités et les différents niveaux de soins ?
B398: ="Scale = "&Q4.3& "/12" -> Scale = 0/12
B400: =Results!F26 -> 
B402: ='Purchasing and Provider Payment'!D56 -> Q4.4 Dans quelle mesure les contrats d’achat précisent-ils des exigences en matière de qualité des soins, y compris la disponibilité et la pertinence des soins, puis vérifient-ils de façon régulière qu’elles sont bien respectées ?
B403: ="Scale = "&Q4.4& "/12" -> Scale = 0/12
B405: =Results!F27 -> 
B407: ='Purchasing and Provider Payment'!D72 -> Q4.5 Dans quelle mesure les méthodes de paiement des prestataires favorisent-elles l’efficacité de l’allocation des ressources, par exemple en réduisant la prestation excessive ou en augmentant celle insuffisante des services, et gèrent-elles la croissance des dépenses ?
B408: ="Scale = "&Q4.5& "/12" -> Scale = 0/12
B410: =Results!F28 -> 
B412: ='Purchasing and Provider Payment'!D88 -> Q4.6 Dans quelle mesure les formulaires de consultation des patients sont-ils normalisés dans l'ensemble du système de santé et utilisés pour analyser et évaluer l'activité de l’ensemble des prestataires et de la population
B413: ="Scale = "&Q4.6& "/12" -> Scale = 0/12
B415: =Results!F29 -> 
B417: ='Purchasing and Provider Payment'!D104 -> Q4.7 Dans quelle mesure les paiements des prestataires couvrent uniquement une partie ou l’ensemble des coûts totaux (y compris les salaires, les dépenses récurrentes, etc.) ?
B418: ="Scale = "&Q4.7& "/12" -> Scale = 0/12
B420: =Results!F30 -> 
B422: ='Purchasing and Provider Payment'!D120 -> Q4.8 Dans quelle mesure les prestataires jouissent-ils d’une autonomie financière et sont-ils tenus responsables, dans une mesure réaliste et conforme à leurs capacités ?
B423: ="Scale = "&Q4.8& "/12" -> Scale = 0/12
B425: =Results!F31 -> 
B427: ='Purchasing and Provider Payment'!D136 -> Q4.9 Dans quelle mesure l’accréditation des prestataires ou les contrats sélectifs sont-ils établis, fonctionnels et utilisés pour les achats ?
B428: ="Scale = "&Q4.9& "/12" -> Scale = 0/12
B430: =Results!F32 -> 
B432: ='Purchasing and Provider Payment'!D152 -> Q4.10 Dans quelle mesure l’achat et le paiement des produits pharmaceutiques sont-ils mis en œuvre pour promouvoir l’utilisation efficace des médicaments (par exemple le recours aux génériques plutôt qu’aux princeps) et pour améliorer la protection financière des patients ?
B433: ="Scale = "&Q4.10& "/12" -> Scale = 0/12
B435: =Results!F33 -> 
B438: Résumez ici les prochaines étapes, priorités ou points d’action que vous avez identifiés après avoir complété cette matrice relative aux Prestations et droits.
B439: =Results!M11 -> 
B441: Further resources
B444: Purchasing and provider payment matrix – additional resources:
B445: · WHO webpage on “Purchasing and provider payment systems” (link)
B446: · Module 4 of WHO e-learning course on health financing policy for UHC (register here)
B447: · McIntyre D, Kutzin J. (2016). “Health financing country diagnostic: a foundation for national strategy development”. WHO Geneva (link) (see relevant sections on purchasing)
B448: · Kutzin J, Witter S, Jowett M, Bayarsaikhan D. (2017) “Developing a National Health Financing Strategy: A Reference Guide”. Health Financing Guidance No3. WHO, Geneva (link) (see relevant sections on purchasing)
B452: =Results!K12 -> Prestations et droits
B475: ='Benefits and Entitlements'!D8 -> Q5.1 Cette question a été maintenant remplacé par l’étape 1 et le tableau de vue d’ensemble et ne constitue donc plus une question distincte. Merci de bien vous assurer que vous avez complété l’étape 1 car cela vous aidera à remplir les questions de cette section.
B476: =Results!F34 -> 
B478: ='Benefits and Entitlements'!D24 -> Q5.2 Dans quelle mesure les décisions et les révisions relatives aux prestations sont-elles prises de manière transparente, sur la base d’un processus clairement défini et de critères convenus, tels que le rapport coût-efficacité, la protection financière, l’impact budgétaire ?
B479: ="Scale = "&Q5.2& "/12" -> Scale = 0/12
B481: =Results!F35 -> 
B483: ='Benefits and Entitlements'!D40 -> Q5.3 Dans quelle mesure les droits à prestation reflètent-ils explicitement les besoins de santé de la population ?
B484: ="Scale = "&Q5.3& "/12" -> Scale = 0/12
B486: =Results!F36 -> 
B488: ='Benefits and Entitlements'!D56 -> Q5.4 Dans quelle mesure les prestations accordent-elles la priorité aux catégories de population prioritaires, par exemple pour une meilleure utilisation des services hautement prioritaires et pour la protection financière ?
B489: ="Scale = "&Q5.4& "/12" -> Scale = 0/12
B491: =Results!F37 -> 
B493: ='Benefits and Entitlements'!D72 -> Q5.5 Dans quelle mesure les droits et obligations de la population sont-ils explicitement définis et compris par les intéressés ?
B494: ="Scale = "&Q5.5& "/12" -> Scale = 0/12
B496: =Results!F38 -> 
B498: ='Benefits and Entitlements'!D88 -> Q5.6 Dans quelle mesure les prestations sont-elles alignées sur le paiement des prestataires, afin de s’assurer qu’elles sont fournies et que les patients bénéficient d’une protection financière ?
B499: ="Scale = "&Q5.6& "/12" -> Scale = 0/12
B501: =Results!F39 -> 
B503: ='Benefits and Entitlements'!D104 -> Q5.7 Dans quelle mesure les prestations, y compris le partage des coûts pour les patients, sont-elles alignées sur les recettes, afin d’assurer un financement adéquat des droits à prestations approuvés ?
B504: ="Scale = "&Q5.7& "/12" -> Scale = 0/12
B506: =Results!F40 -> 
B508: Résumez ici les prochaines étapes, priorités ou points d’action que vous avez identifiés après avoir complété cette matrice relative aux Prestations et droits.
B509: =Results!M12 -> 
B513: Further resources
B516: Benefit design matrix – additional resources:
B517: · WHO webpage on “Benefit design” (link)
B518: · Module 5 of WHO e-learning course on health financing policy for UHC (register here)
B519: · McIntyre D, Kutzin J. (2016). “Health financing country diagnostic: a foundation for national strategy development”. WHO Geneva (link) (see relevant sections on benefit entitlements in Annex B)
B520: · Kutzin J, Witter S, Jowett M, Bayarsaikhan D. (2017) “Developing a National Health Financing Strategy: A Reference Guide”. Health Financing Guidance No3. WHO, Geneva (link) (see relevant sections on benefit design)
B522: References for benefit design and health financing:
B523: · Treerutkuarkul A (2010). “Thailand: health care for all, at a price.” Bulletin of the World Health Organization 88(2):84–85. (link)
B524: · World Health Organisation (2017). “Priority-setting for national health policies, strategies and plans”. Chapter 4 in “Strategizing national health in the 21st century: a handbook”. WHO Geneva (link)
B525: · WHO Consultative Group on Equity and Universal Health Coverage (2014). Final Report: “Making fair choices on the path to universal health coverage”. WHO Geneva 2014. (Pages x-xii) (link)
B526: · Meessen, B, L Gilson, A Tibouti, eds. (2011). “User fee removal in the health sector in low-income countries: lessons from recent national initiatives”. Health Policy and Planning (suppl 2). (link)
B531: =Results!B41 -> Gestion des finances publiques (GFP)
B559: =PFM!D8 -> Q6.1 Est-ce qu’un diagnostic/une évaluation approfondi(e) des goulets d’étranglement de la GFP dans le secteur de la santé a été effectué(e) récemment, par exemple au cours des trois dernières années ?
B560: ="Scale = "&Q6.1& "/12" -> Scale = 0/12
B562: =Results!F41 -> 
B564: =PFM!D24 -> Q6.2 Le personnel du Ministère de la santé dispose-t-il de capacités à comprendre les (nouvelles) règles de GFP et à les appliquer au processus budgétaire du secteur de la santé ?
B565: ="Scale = "&Q6.2& "/12" -> Scale = 0/12
B567: =Results!F42 -> 
B569: =PFM!D40 -> Q6.3 Existe-il un processus budgétaire pluriannuel mis en œuvre efficacement ?
B570: ="Scale = "&Q6.3& "/12" -> Scale = 0/12
B572: =Results!F43 -> 
B574: =PFM!D56 -> Q6.4 Dans quelle mesure les allocations budgétaires annuelles en matière de santé sont alignées sur les priorités du secteur de la santé (niveau, structure, nature/objectif) ?
B575: ="Scale = "&Q6.4& "/12" -> Scale = 0/12
B577: =Results!F44 -> 
B579: =PFM!D72 -> Q6.5 Dans quelle mesure le processus budgétaire est consultatif, transparent et un processus d’examen et d’ajustement budgétaire à mi-parcours est établi ?
B580: ="Scale = "&Q6.5& "/12" -> Scale = 0/12
B582: =Results!F45 -> 
B584: =PFM!D88 -> Q6.6 Dans quelle mesure les transferts fiscaux sont conçus et mis en œuvre de sorte à améliorer l’équité de la distribution des ressources dans le secteur de la santé?
B585: ="Scale = "&Q6.6& "/12" -> Scale = 0/12
B587: =Results!F46 -> 
B589: =PFM!D104 -> Q6.7 Dans quelle mesure les règles du budget de la santé permettent-elles une certaine souplesse des dépenses?
B590: ="Scale = "&Q6.7& "/12" -> Scale = 0/12
B592: =Results!F47 -> 
B594: =PFM!D120 -> Q6.8 La flexibilité dans l’utilisation des ressources est-elle assurée ou déléguée au bon niveau?
B595: ="Scale = "&Q6.8& "/12" -> Scale = 0/12
B597: =Results!F48 -> 
B599: =PFM!D136 -> Q6.9 Dans quelle mesure des politiques de discipline budgétaire visant à contrôler les dépenses sont en vigueur (par exemple, gestion de la trésorerie, respect des règles d’approvisionnement) et mises en œuvre efficacement?
B600: ="Scale = "&Q6.9& "/12" -> Scale = 0/12
B602: =Results!F49 -> 
B604: =PFM!D152 -> Q6.10 Dans quelle mesure des systèmes d’information sont en place pour répondre aux besoins en matière de responsabilité financière et pour assurer le suivi des performances du secteur de la santé?
B605: ="Scale = "&Q6.10& "/12" -> Scale = 0/12
B607: =Results!F50 -> 
B609: =PFM!D168 -> Q6.11 Dans quelle mesure les flux financiers multiples, la structure budgétaire et les règles de GFP sont alignés sur les politiques d’achats stratégiques?
B610: ="Scale = "&Q6.11& "/12" -> Scale = 0/12
B612: =Results!F51 -> 
B615: Résumez ici les prochaines étapes, priorités ou points d’action que vous avez identifiés après avoir complété cette matrice relative aux Prestations et droits.
... 22 more rows

Sheet Instructions (hidden)
A1: 1
E3: MATRICE DE PROGRÈS POUR LE FINANCEMENT DE LA SANTÉ
C5: INSTRUCTIONS - UTILISATION DES MATRICE
C7: Généralités: les matrices visent à étayer la réflexion dans votre pays sur les questions relatives aux politiques de financement de la santé, en fournissant la structure nécessaire à une analyse qualitative. Elles viennent en complément des indicateurs quantitatifs, par exemple la composition des sources de recettes, les dépenses publiques par habitant par région et la protection financière des patients, et doivent être utilisées conjointement avec ces indicateurs. Sur la base de données mondiales et d’une série d’hypothèses, les matrices reflètent la réflexion actuelle de l’OMS sur la manière dont la politique de financement de la santé peut contribuer aux progrès en matière de CSU. Elles vous aident non seulement à évaluer les progrès réalisés au fil du temps, mais également à identifier les prochaines étapes et priorités pour votre pays, par exemple, approfondir les travaux d’analyse ou élaborer/réviser une stratégie de financement de la santé. L’OMS recommande que les matrices soient utilisées en deux étapes : tout d’abord, un expert technique les complète en compilant des informations pertinentes et utiles provenant, par exemple, de documents clés et de données quantitatives. Deuxièmement, l’expert technique anime une discussion autour de ces matrices, avec les principales parties prenantes. Les matrices peuvent être complétées en intégralité ou en partie, selon vos priorités actuelles et le temps dont vous disposez. Certaines questions peuvent ne pas être pertinentes dans votre pays et vous avez la possibilité de l’indiquer pour chaque question. Enfin, votre évaluation ne fait pas partie d’une évaluation officielle de l’OMS et aucune comparaison directe ne sera faite avec les performances d’autres pays
C15: # 1 : | F15: Commencez par compléter les informations suivantes, qui seront incluses dans la première page de votre rapport imprimé :
G19: Nom du pays :
G21: Rempli par :
G23: Processus suivi:
I25: Année | K25: Mois
G26: Période couverte : | H26: De :
G27: consideration: | H27: À :
C30: # 2 : | F30: • Pour l'étape 2, nous recommandons de compléter un aperçu descriptif des différents dispositifs de couverture santé dans votre pays. Cela permet, de manière synthétique de faire le point sur comment la couverture santé est fournie dans votre pays, par exemple à travers un système de santé financé par l'État, des programmes de soins gratuits ciblés et/ou une assurance maladie obligatoire pour les travailleurs salariés. Pour chacun de ces dispositifs, détaillez les principales caractéristiques décrites dans les colonnes du tableau.
C33: # 3 : | F33: • Une fois la description générale de l'étape 2 terminée, passez à l'étape 3. Comme indiqué ci-dessus, vous pouvez aborder les matrices soit par une fonction de financement de la santé, un objectif intermédiaire ou final de couverture, ou une combinaison des deux. Examinez chaque question dans une matrice et les quatre "étapes de progression" qui s'y rapportent. Recueillez les informations pertinentes et faites une évaluation de la situation dans votre pays. suivant..... • Il y a deux cases à la fin de chaque matrice ; dans la première, vous pouvez indiquer les points d'action clés découlant des discussions, qui seront inclus dans votre rapport imprimé. Dans la seconde case, vous pouvez suggérer des améliorations des matrices proposées.
C43: # 4 : | F43: Vous pouvez vérifier l’état de votre évaluation en retournant dans le menu et en cliquant sur « Vérifier l’état d’avancement ».
C46: # 5 : | F46: Vous pouvez vérifier l’état de votre évaluation en retournant dans le menu et en cliquant sur « Votre évaluation ».
C49: # 6 : | F49: Vous pouvez obtenir un résumé de l’impact de la politique de financement de la santé dans votre pays sur les objectifs du système de santé en cliquant sur « Objectifs du système de santé » sur la page Menu.
C52: # 7 : | F52: Imprimez vos résultats à partir de la page Menu. Votre évaluation sera exportée dans un fichier PDF en format résumé ou complet, ou en format texte dans un fichier Excel.
C55: Commencez à compléter les matrices en cliquant ci-dessous.
C56: En remplissant les matrices de progrès, vous confirmez que votre organisation vous autorise à signer le présent contrat en lieu
C57: place de l’organisation et que vous avez lu et accepté les conditions de la | K57: collecte de données.
C58: organization’s behalf and that you have read and agree with the terms for data collection

Sheet Your Assessment (hidden)
A1: 1
D3: MATRICE DE PROGRÈS POUR LE FINANCEMENT DE LA SANTÉ
C4: RÉSUMÉ DE VOTRE ÉVALUATION
D5: ↓
C6: Cliquez sur la zone de texte pour sélectionner une matrice | D6: Processus d’élaboration des politiques | G6: Votre évaluation
L7: Points d’action
C8: Questions
C10: =Results!P9 -> 1. Processus d’élaboration des politiques | L10: =Results!T8 -> 
C12: =Results!R8 -> 1.1. Le système de financement de la santé de votre pays a-t-il récemment fait l’objet d’un diagnostic ou d’une évaluation approfondie qui examine son impact sur les performances du système de santé ainsi que les causes des problèmes de performance ?
C16: =Results!R9 -> 1.2. A-t-on transposé en textes de loi/décrets une déclaration de politique récente relative au financement de la santé ?
C20: =Results!R10 -> 1.3. Existe-t-il un système de suivi régulier du financement de la santé, et si oui les données sont-elles utilisées pour suivre les progrès effectués (par exemple sur les modèles de dépenses et la protection financière) et pour renforcer la reddition de comptes ?
C24: =Results!R11 -> 1.4. Les études d’évaluation sont-elles réalisées sur une base systématique pour mesurer les conséquences de la mise en œuvre de réformes spécifiques du financement sur les objectifs du système de santé et dans quelles mesure les résultats servent-ils à guider la conception et la révision des politiques de financement de la santé ?
C28: =Results!R12 -> 
C32: =Results!R13 -> 
C36: =Results!R14 -> 
C40: =Results!R15 -> 
C44: =Results!R16 -> 
C48: =Results!R17 -> 
C52: =Results!R18 -> 

Sheet Completeness (hidden)
A1: 1
D3: MATRICE DE PROGRÈS POUR LE FINANCEMENT DE LA SANTÉ
C4: Quel est l’état d’avancement de votre évaluation ?
C6: ='Policy Development Process'!D5 -> 1. Processus d’élaboration des politiques | M6: Réponse « zone de texte » | O6: Réponse « curseur »
C7: =Results!C8&" "&Results!D8 -> Q1.1 Le système de financement de la santé de votre pays a-t-il récemment fait l’objet d’un diagnostic ou d’une évaluation approfondie qui examine son impact sur les performances du système de santé ainsi que les causes des problèmes de performance ? | M7: =IF(Results!G8=TRUE,"Non pertinent",IF(Results!F8="","Non terminé","Terminé")) -> Non terminé | O7: =IF(Results!G8=TRUE,"Non pertinent",IF(Results!E8=0,"Non terminé","Terminé")) -> Non terminé
C10: =Results!C9&" "&Results!D9 -> Q1.2 A-t-on transposé en textes de loi/décrets une déclaration de politique récente relative au financement de la santé ? | M10: =IF(Results!G9=TRUE,"Non pertinent",IF(Results!F9="","Non terminé","Terminé")) -> Non terminé | O10: =IF(Results!G9=TRUE,"Non pertinent",IF(Results!E9=0,"Non terminé","Terminé")) -> Non terminé
C13: =Results!C10&" "&Results!D10 -> Q1.3 Existe-t-il un système de suivi régulier du financement de la santé, et si oui les données sont-elles utilisées pour suivre les progrès effectués (par exemple sur les modèles de dépenses et la protection financière) et pour renforcer la reddition de comptes ? | M13: =IF(Results!G10=TRUE,"Non pertinent",IF(Results!F10="","Non terminé","Terminé")) -> Non terminé | O13: =IF(Results!G10=TRUE,"Non pertinent",IF(Results!E10=0,"Non terminé","Terminé")) -> Non terminé
C16: =Results!C11&" "&Results!D11 -> Q1.4 Les études d’évaluation sont-elles réalisées sur une base systématique pour mesurer les conséquences de la mise en œuvre de réformes spécifiques du financement sur les objectifs du système de santé et dans quelles mesure les résultats servent-ils à guider la conception et la révision des politiques de financement de la santé ? | M16: =IF(Results!G11=TRUE,"Non pertinent",IF(Results!F11="","Non terminé","Terminé")) -> Non terminé | O16: =IF(Results!G11=TRUE,"Non pertinent",IF(Results!E11=0,"Non terminé","Terminé")) -> Non terminé
C20: ='Revenue Raising'!D5 -> 2. Collecte de recettes | M20: Réponse « zone de texte » | O20: Réponse « curseur »
C21: =Results!C12&" "&Results!D12 -> Q2.1 Quelle approche est en vigueur dans votre pays en matière d’élaboration de politiques et de stratégies de collecte de revenus ? Cette approche s'inscrit-elle dans le cadre du processus global d’élaboration et de planification de la mise en œuvre des politiques de financement de la santé ? | M21: =IF(Results!G12=TRUE,"Non pertinent",IF(Results!F12="","Non terminé","Terminé")) -> Non terminé | O21: =IF(Results!G12=TRUE,"Non pertinent",IF(Results!E12=0,"Non terminé","Terminé")) -> Non terminé
C24: =Results!C13&" "&Results!D13 -> Q2.2 Dans quelle mesure le financement de la santé dans votre pays repose-t-il sur des sources de financement public/obligatoire (par exemple, fiscalité/recettes publiques, y compris les cotisations obligatoires à l’assurance-maladie nationale/sociale) ? | M24: =IF(Results!G13=TRUE,"Non pertinent",IF(Results!F13="","Non terminé","Terminé")) -> Non terminé | O24: =IF(Results!G13=TRUE,"Non pertinent",IF(Results!E13=0,"Non terminé","Terminé")) -> Non terminé
C27: =Results!C14&" "&Results!D14 -> Q2.3 Dans quelle mesure le financement public de la santé dans votre pays est-il prédictible sur plusieurs années ? | M27: =IF(Results!G14=TRUE,"Non pertinent",IF(Results!F14="","Non terminé","Terminé")) -> Non terminé | O27: =IF(Results!G14=TRUE,"Non pertinent",IF(Results!E14=0,"Non terminé","Terminé")) -> Non terminé
C30: =Results!C15&" "&Results!D15 -> Q2.4 Dans quelle mesure le flux de fonds publics est-il stable, notamment grâce à une exécution budgétaire régulière, c’est-à-dire un déblocage des fonds dans les délais, conformément aux budgets de santé approuvés ? | M30: =IF(Results!G15=TRUE,"Non pertinent",IF(Results!F15="","Non terminé","Terminé")) -> Non terminé | O30: =IF(Results!G15=TRUE,"Non pertinent",IF(Results!E15=0,"Non terminé","Terminé")) -> Non terminé
C33: =Results!C16&" "&Results!D16 -> Q2.5 Dans quelle mesure les différentes sources de revenus sont-elles collectées de façon progressive (c.-à-d. en fonction de la capacité de payer), et partant de là favorisent l’équité dans le mode de financement du système de santé ? | M33: =IF(Results!G16=TRUE,"Non pertinent",IF(Results!F16="","Non terminé","Terminé")) -> Non terminé | O33: =IF(Results!G16=TRUE,"Non pertinent",IF(Results!E16=0,"Non terminé","Terminé")) -> Non terminé
C37: ='Pooling Revenues'!D5 -> 3. Mise en commun des recettes | M37: Réponse « zone de texte » | O37: Réponse « curseur »
C38: =Results!C17&" "&Results!D17 -> Q3.1 Cette question a été maintenant remplacé par l’étape 1 et le tableau de vue d’ensemble et ne constitue donc plus une question distincte. Merci de bien vous assurer que vous avez complété l’étape 1 car cela vous aidera à remplir les questions de cette section. | M38: N'est pas applicable
C41: =Results!C18&" "&Results!D18 -> Q3.2 Dans le cadre du processus global d’élaboration et de planification de la mise en œuvre des politiques de financement de la santé, quelle est l’approche de votre pays en matière de dispositifs de mise en commun des ressources ? | M41: =IF(Results!G18=TRUE,"Non pertinent",IF(Results!F18="","Non terminé","Terminé")) -> Non terminé | O41: =IF(Results!G18=TRUE,"Non pertinent",IF(Results!E18=0,"Non terminé","Terminé")) -> Non terminé
C44: =Results!C19&" "&Results!D19 -> Q3.3 Dans quelle mesure la capacité de redistribution des fonds prépayés dans votre pays est-elle limitée par le cadre institutionnel du financement de la santé ? | M44: =IF(Results!G19=TRUE,"Non pertinent",IF(Results!F19="","Non terminé","Terminé")) -> Non terminé | O44: =IF(Results!G19=TRUE,"Non pertinent",IF(Results!E19=0,"Non terminé","Terminé")) -> Non terminé
C47: =Results!C20&" "&Results!D20 -> Q3.4 Y-a-il des mesures, dans la conception des prestations, le paiement des prestataires ou les systèmes sous-jacents non financiers, qui visent à contrecarrer les problèmes découlant de la fragmentation de l’architecture du financement de la santé ? | M47: =IF(Results!G20=TRUE,"Non pertinent",IF(Results!F20="","Non terminé","Terminé")) -> Non terminé | O47: =IF(Results!G20=TRUE,"Non pertinent",IF(Results!E20=0,"Non terminé","Terminé")) -> Non terminé
C50: =Results!C21&" "&Results!D21 -> Q3.5 Dans quelle mesure les différentes sources de revenus et de financement sont-elles organisées de manière complémentaire, afin de financer un paquet de prestations pour l’ensemble de la population ? | M50: =IF(Results!G21=TRUE,"Non pertinent",IF(Results!F21="","Non terminé","Terminé")) -> Non terminé | O50: =IF(Results!G21=TRUE,"Non pertinent",IF(Results!E21=0,"Non terminé","Terminé")) -> Non terminé
C53: =Results!C22&" "&Results!D22 -> Q3.6 Dans quelle mesure les dispositifs d’assurance-maladie volontaire sont-ils une source d’inégalités, créant des effets de contagion potentiellement néfastes pour l’ensemble du système de santé ? | M53: =IF(Results!G22=TRUE,"Non pertinent",IF(Results!F22="","Non terminé","Terminé")) -> Non terminé | O53: =IF(Results!G22=TRUE,"Non pertinent",IF(Results!E22=0,"Non terminé","Terminé")) -> Non terminé
C56: =Results!C23&" "&Results!D23 -> Q3.7 Dans quelle mesure les flux financiers sont-ils incohérents et redondants, et empêchent d’utiliser efficacement le budget public et les fonds des donateurs ? | M56: =IF(Results!G23=TRUE,"Non pertinent",IF(Results!F23="","Non terminé","Terminé")) -> Non terminé | O56: =IF(Results!G23=TRUE,"Non pertinent",IF(Results!E23=0,"Non terminé","Terminé")) -> Non terminé
C60: ='Purchasing and Provider Payment'!D5 -> 4. Achats et paiement des prestataires | M60: Réponse « zone de texte » | O60: Réponse « curseur »
C61: =Results!C24&" "&Results!D24 -> Q4.1 Dans quelle mesure les allocations de fonds aux acheteurs de niveau inférieur, par exemple les administrations locales, et/ou les taux de paiement aux prestataires sont-ils le reflet des besoins de santé de la population ? | M61: =IF(Results!G24=TRUE,"Non pertinent",IF(Results!F24="","Non terminé","Terminé")) -> Non terminé | O61: =IF(Results!G24=TRUE,"Non pertinent",IF(Results!E24=0,"Non terminé","Terminé")) -> Non terminé
C64: =Results!C25&" "&Results!D25 -> Q4.2 Dans quelle mesure les paiements des prestataires sont-ils harmonisés entre régimes/sources de revenus et entre secteurs public et privé, afin de garantir des incitations cohérentes aux prestataires ? | M64: =IF(Results!G25=TRUE,"Non pertinent",IF(Results!F25="","Non terminé","Terminé")) -> Non terminé | O64: =IF(Results!G25=TRUE,"Non pertinent",IF(Results!E25=0,"Non terminé","Terminé")) -> Non terminé
C67: =Results!C26&" "&Results!D26 -> Q4.3 Dans quelle mesure les méthodes de paiement des prestataires et les achats en général favorisent-ils la qualité des soins et la coordination des soins entre les spécialités et les différents niveaux de soins ? | M67: =IF(Results!G26=TRUE,"Non pertinent",IF(Results!F26="","Non terminé","Terminé")) -> Non terminé | O67: =IF(Results!G26=TRUE,"Non pertinent",IF(Results!E26=0,"Non terminé","Terminé")) -> Non terminé
C70: =Results!C27&" "&Results!D27 -> Q4.4 Dans quelle mesure les contrats d’achat précisent-ils des exigences en matière de qualité des soins, y compris la disponibilité et la pertinence des soins, puis vérifient-ils de façon régulière qu’elles sont bien respectées ? | M70: =IF(Results!G27=TRUE,"Non pertinent",IF(Results!F27="","Non terminé","Terminé")) -> Non terminé | O70: =IF(Results!G27=TRUE,"Non pertinent",IF(Results!E27=0,"Non terminé","Terminé")) -> Non terminé
C73: =Results!C28&" "&Results!D28 -> Q4.5 Dans quelle mesure les méthodes de paiement des prestataires favorisent-elles l’efficacité de l’allocation des ressources, par exemple en réduisant la prestation excessive ou en augmentant celle insuffisante des services, et gèrent-elles la croissance des dépenses ? | M73: =IF(Results!G28=TRUE,"Non pertinent",IF(Results!F28="","Non terminé","Terminé")) -> Non terminé | O73: =IF(Results!G28=TRUE,"Non pertinent",IF(Results!E28=0,"Non terminé","Terminé")) -> Non terminé
C76: =Results!C29&" "&Results!D29 -> Q4.6 Dans quelle mesure les formulaires de consultation des patients sont-ils normalisés dans l'ensemble du système de santé et utilisés pour analyser et évaluer l'activité de l’ensemble des prestataires et de la population | M76: =IF(Results!G29=TRUE,"Non pertinent",IF(Results!F29="","Non terminé","Terminé")) -> Non terminé | O76: =IF(Results!G29=TRUE,"Non pertinent",IF(Results!E29=0,"Non terminé","Terminé")) -> Non terminé
C79: =Results!C30&" "&Results!D30 -> Q4.7 Dans quelle mesure les paiements des prestataires couvrent uniquement une partie ou l’ensemble des coûts totaux (y compris les salaires, les dépenses récurrentes, etc.) ? | M79: =IF(Results!G30=TRUE,"Non pertinent",IF(Results!F30="","Non terminé","Terminé")) -> Non terminé | O79: =IF(Results!G30=TRUE,"Non pertinent",IF(Results!E30=0,"Non terminé","Terminé")) -> Non terminé
C82: =Results!C31&" "&Results!D31 -> Q4.8 Dans quelle mesure les prestataires jouissent-ils d’une autonomie financière et sont-ils tenus responsables, dans une mesure réaliste et conforme à leurs capacités ? | M82: =IF(Results!G31=TRUE,"Non pertinent",IF(Results!F31="","Non terminé","Terminé")) -> Non terminé | O82: =IF(Results!G31=TRUE,"Non pertinent",IF(Results!E31=0,"Non terminé","Terminé")) -> Non terminé
C85: =Results!C32&" "&Results!D32 -> Q4.9 Dans quelle mesure l’accréditation des prestataires ou les contrats sélectifs sont-ils établis, fonctionnels et utilisés pour les achats ? | M85: =IF(Results!G32=TRUE,"Non pertinent",IF(Results!F32="","Non terminé","Terminé")) -> Non terminé | O85: =IF(Results!G32=TRUE,"Non pertinent",IF(Results!E32=0,"Non terminé","Terminé")) -> Non terminé
C88: =Results!C33&" "&Results!D33 -> Q4.10 Dans quelle mesure l’achat et le paiement des produits pharmaceutiques sont-ils mis en œuvre pour promouvoir l’utilisation efficace des médicaments (par exemple le recours aux génériques plutôt qu’aux princeps) et pour améliorer la protection financière des patients ? | M88: =IF(Results!G33=TRUE,"Non pertinent",IF(Results!F33="","Non terminé","Terminé")) -> Non terminé | O88: =IF(Results!G33=TRUE,"Non pertinent",IF(Results!E33=0,"Non terminé","Terminé")) -> Non terminé
C92: ='Benefits and Entitlements'!D5 -> 5. Prestations et droits | M92: Réponse « zone de texte » | O92: Réponse « curseur »
C93: =Results!C34&" "&Results!D34 -> Q5.1 Cette question a été maintenant remplacé par l’étape 1 et le tableau de vue d’ensemble et ne constitue donc plus une question distincte. Merci de bien vous assurer que vous avez complété l’étape 1 car cela vous aidera à remplir les questions de cette section. | M93: N'est pas applicable
C96: =Results!C35&" "&Results!D35 -> Q5.2 Dans quelle mesure les décisions et les révisions relatives aux prestations sont-elles prises de manière transparente, sur la base d’un processus clairement défini et de critères convenus, tels que le rapport coût-efficacité, la protection financière, l’impact budgétaire ? | M96: =IF(Results!G35=TRUE,"Non pertinent",IF(Results!F35="","Non terminé","Terminé")) -> Non terminé | O96: =IF(Results!G35=TRUE,"Non pertinent",IF(Results!E35=0,"Non terminé","Terminé")) -> Non terminé
C99: =Results!C36&" "&Results!D36 -> Q5.3 Dans quelle mesure les droits à prestation reflètent-ils explicitement les besoins de santé de la population ? | M99: =IF(Results!G36=TRUE,"Non pertinent",IF(Results!F36="","Non terminé","Terminé")) -> Non terminé | O99: =IF(Results!G36=TRUE,"Non pertinent",IF(Results!E36=0,"Non terminé","Terminé")) -> Non terminé
C102: =Results!C37&" "&Results!D37 -> Q5.4 Dans quelle mesure les prestations accordent-elles la priorité aux catégories de population prioritaires, par exemple pour une meilleure utilisation des services hautement prioritaires et pour la protection financière ? | M102: =IF(Results!G37=TRUE,"Non pertinent",IF(Results!F37="","Non terminé","Terminé")) -> Non terminé | O102: =IF(Results!G37=TRUE,"Non pertinent",IF(Results!E37=0,"Non terminé","Terminé")) -> Non terminé
C105: =Results!C38&" "&Results!D38 -> Q5.5 Dans quelle mesure les droits et obligations de la population sont-ils explicitement définis et compris par les intéressés ? | M105: =IF(Results!G38=TRUE,"Non pertinent",IF(Results!F38="","Non terminé","Terminé")) -> Non terminé | O105: =IF(Results!G38=TRUE,"Non pertinent",IF(Results!E38=0,"Non terminé","Terminé")) -> Non terminé
C108: =Results!C39&" "&Results!D39 -> Q5.6 Dans quelle mesure les prestations sont-elles alignées sur le paiement des prestataires, afin de s’assurer qu’elles sont fournies et que les patients bénéficient d’une protection financière ? | M108: =IF(Results!G39=TRUE,"Non pertinent",IF(Results!F39="","Non terminé","Terminé")) -> Non terminé | O108: =IF(Results!G39=TRUE,"Non pertinent",IF(Results!E39=0,"Non terminé","Terminé")) -> Non terminé
C111: =Results!C40&" "&Results!D40 -> Q5.7 Dans quelle mesure les prestations, y compris le partage des coûts pour les patients, sont-elles alignées sur les recettes, afin d’assurer un financement adéquat des droits à prestations approuvés ? | M111: =IF(Results!G40=TRUE,"Non pertinent",IF(Results!F40="","Non terminé","Terminé")) -> Non terminé | O111: =IF(Results!G40=TRUE,"Non pertinent",IF(Results!E40=0,"Non terminé","Terminé")) -> Non terminé
C115: =PFM!D5 -> 6. Gestion des finances publiques (GFP) | M115: Réponse « zone de texte » | O115: Réponse « curseur »
C116: =PFM!D8 -> Q6.1 Est-ce qu’un diagnostic/une évaluation approfondi(e) des goulets d’étranglement de la GFP dans le secteur de la santé a été effectué(e) récemment, par exemple au cours des trois dernières années ? | M116: =IF(Results!G41=TRUE,"Non pertinent",IF(Results!F41="","Non terminé","Terminé")) -> Non terminé | O116: =IF(Results!G41=TRUE,"Non pertinent",IF(Results!E41=0,"Non terminé","Terminé")) -> Non terminé
C119: =PFM!D24 -> Q6.2 Le personnel du Ministère de la santé dispose-t-il de capacités à comprendre les (nouvelles) règles de GFP et à les appliquer au processus budgétaire du secteur de la santé ? | M119: =IF(Results!G42=TRUE,"Non pertinent",IF(Results!F42="","Non terminé","Terminé")) -> Non terminé | O119: =IF(Results!G42=TRUE,"Non pertinent",IF(Results!E42=0,"Non terminé","Terminé")) -> Non terminé
C122: =PFM!D40 -> Q6.3 Existe-il un processus budgétaire pluriannuel mis en œuvre efficacement ? | M122: =IF(Results!G43=TRUE,"Non pertinent",IF(Results!F43="","Non terminé","Terminé")) -> Non terminé | O122: =IF(Results!G543=TRUE,"Non pertinent",IF(Results!E43=0,"Non terminé","Terminé")) -> Non terminé
C125: =PFM!D56 -> Q6.4 Dans quelle mesure les allocations budgétaires annuelles en matière de santé sont alignées sur les priorités du secteur de la santé (niveau, structure, nature/objectif) ? | M125: =IF(Results!G44=TRUE,"Non pertinent",IF(Results!F44="","Non terminé","Terminé")) -> Non terminé | O125: =IF(Results!G44=TRUE,"Non pertinent",IF(Results!E44=0,"Non terminé","Terminé")) -> Non terminé
C128: =PFM!D72 -> Q6.5 Dans quelle mesure le processus budgétaire est consultatif, transparent et un processus d’examen et d’ajustement budgétaire à mi-parcours est établi ? | M128: =IF(Results!G45=TRUE,"Non pertinent",IF(Results!F45="","Non terminé","Terminé")) -> Non terminé | O128: =IF(Results!G45=TRUE,"Non pertinent",IF(Results!E45=0,"Non terminé","Terminé")) -> Non terminé
C131: =PFM!D88 -> Q6.6 Dans quelle mesure les transferts fiscaux sont conçus et mis en œuvre de sorte à améliorer l’équité de la distribution des ressources dans le secteur de la santé? | M131: =IF(Results!G46=TRUE,"Non pertinent",IF(Results!F46="","Non terminé","Terminé")) -> Non terminé | O131: =IF(Results!G46=TRUE,"Non pertinent",IF(Results!E46=0,"Non terminé","Terminé")) -> Non terminé
C134: =PFM!D104 -> Q6.7 Dans quelle mesure les règles du budget de la santé permettent-elles une certaine souplesse des dépenses? | M134: =IF(Results!G47=TRUE,"Non pertinent",IF(Results!F47="","Non terminé","Terminé")) -> Non terminé | O134: =IF(Results!G47=TRUE,"Non pertinent",IF(Results!E47=0,"Non terminé","Terminé")) -> Non terminé
C137: =PFM!D120 -> Q6.8 La flexibilité dans l’utilisation des ressources est-elle assurée ou déléguée au bon niveau? | M137: =IF(Results!G48=TRUE,"Non pertinent",IF(Results!F48="","Non terminé","Terminé")) -> Non terminé | O137: =IF(Results!G48=TRUE,"Non pertinent",IF(Results!E48=0,"Non terminé","Terminé")) -> Non terminé
C140: =PFM!D136 -> Q6.9 Dans quelle mesure des politiques de discipline budgétaire visant à contrôler les dépenses sont en vigueur (par exemple, gestion de la trésorerie, respect des règles d’approvisionnement) et mises en œuvre efficacement? | M140: =IF(Results!G49=TRUE,"Non pertinent",IF(Results!F49="","Non terminé","Terminé")) -> Non terminé | O140: =IF(Results!G49=TRUE,"Non pertinent",IF(Results!E49=0,"Non terminé","Terminé")) -> Non terminé
C143: =PFM!D152 -> Q6.10 Dans quelle mesure des systèmes d’information sont en place pour répondre aux besoins en matière de responsabilité financière et pour assurer le suivi des performances du secteur de la santé? | M143: =IF(Results!G50=TRUE,"Non pertinent",IF(Results!F50="","Non terminé","Terminé")) -> Non terminé | O143: =IF(Results!G50=TRUE,"Non pertinent",IF(Results!E50=0,"Non terminé","Terminé")) -> Non terminé
C146: =PFM!D168 -> Q6.11 Dans quelle mesure les flux financiers multiples, la structure budgétaire et les règles de GFP sont alignés sur les politiques d’achats stratégiques? | M146: =IF(Results!G51=TRUE,"Non pertinent",IF(Results!F51="","Non terminé","Terminé")) -> Non terminé | O146: =IF(Results!G51=TRUE,"Non pertinent",IF(Results!E51=0,"Non terminé","Terminé")) -> Non terminé
C150: =Governance!D5 -> 7. Gouvernance | M150: Réponse « zone de texte » | O150: Réponse « curseur »
C151: =Results!C52&" "&Results!D52 -> Q7.1 Dans quelle mesure les rôles et les responsabilités (liés aux objectifs de financement de la santé et au rendement en matière de collecte de recettes, de mise en commun, d’achats, de prestations, etc.) sont clairement définis et répartis entre les institutions responsables du financement de la santé ? | M151: =IF(Results!G52=TRUE,"Non pertinent",IF(Results!F52="","Non terminé","Terminé")) -> Non terminé | O151: =IF(Results!G52=TRUE,"Non pertinent",IF(Results!E52=0,"Non terminé","Terminé")) -> Non terminé
C154: =Results!C53&" "&Results!D53 -> Q7.2 Dans quelle mesure les institutions responsables du financement de la santé disposent-elles de capacités adéquates, notamment en matière de ressources humaines (capacités techniques et managériales) et de TIC ? | M154: =IF(Results!G53=TRUE,"Non pertinent",IF(Results!F53="","Non terminé","Terminé")) -> Non terminé | O154: =IF(Results!G53=TRUE,"Non pertinent",IF(Results!E53=0,"Non terminé","Terminé")) -> Non terminé
C157: =Results!C54&" "&Results!D54 -> Q7.3 Dans quelle mesure les mécanismes de responsabilisation des organismes d’achat/de financement (y compris l’autonomie et le conseil d’administration de l’agence d’assurance-maladie, les mécanismes de récompense/sanction, etc.) sont-ils en place pour s’assurer que la politique de financement de la santé appuie les progrès vers les objectifs du secteur et que les fonds sont utilisés efficacement pour les populations, programmes et services prioritaires ? | M157: =IF(Results!G54=TRUE,"Non pertinent",IF(Results!F54="","Non terminé","Terminé")) -> Non terminé | O157: =IF(Results!G54=TRUE,"Non pertinent",IF(Results!E54=0,"Non terminé","Terminé")) -> Non terminé
C160: =Results!C55&" "&Results!D55 -> Q7.4 L’utilisation des fonds ou les performances des institutions achetant des services auprès des prestataires de services de santé ou le budget de la santé ont-ils été communiqués au public (par exemple sous forme de rapport annuel) ? | M160: =IF(Results!G55=TRUE,"Non pertinent",IF(Results!F55="","Non terminé","Terminé")) -> Non terminé | O160: =IF(Results!G55=TRUE,"Non pertinent",IF(Results!E55=0,"Non terminé","Terminé")) -> Non terminé
C163: =Results!C56&" "&Results!D56 -> Q7.5 Dans quelle mesure le Ministère des finances, le Ministère de la santé et l’organisme national d’assurance-maladie participent au processus d’élaboration des politiques de financement de la santé et en sont informés ? | M163: =IF(Results!G56=TRUE,"Non pertinent",IF(Results!F56="","Non terminé","Terminé")) -> Non terminé | O163: =IF(Results!G56=TRUE,"Non pertinent",IF(Results!E56=0,"Non terminé","Terminé")) -> Non terminé
C166: =Results!C57&" "&Results!D57 -> Q7.6 Dans quelle mesure le processus d’élaboration des politiques de financement de la santé est transparent et participatif? | M166: =IF(Results!G57=TRUE,"Non pertinent",IF(Results!F57="","Non terminé","Terminé")) -> Non terminé | O166: =IF(Results!G57=TRUE,"Non pertinent",IF(Results!E57=0,"Non terminé","Terminé")) -> Non terminé

Sheet Etape_1_Resume (hidden)
A1: 1
C3: APERÇU DES PRINCIPAUX DISPOSITIFS DE COUVERTURE DE SANTÉ DANS VOTRE PAYS
C5: CRITERES | D5: SYSTÈME PUBLIC | E5: AUTRE DISPOSTIF DE COUVERTURE (Ajouter nom spéficique dans votre pays) | F5: AUTRE DISPOSTIF DE COUVERTURE (Ajouter nom spéficique dans votre pays) | G5: AUTRE DISPOSTIF DE COUVERTURE (Ajouter nom spéficique dans votre pays) | H5: AUTRE DISPOSTIF DE COUVERTURE (Ajouter nom spéficique dans votre pays) | I5: AUTRE DISPOSTIF DE COUVERTURE (Ajouter nom spéficique dans votre pays)
C6: POPULATION CIBLE Tous les citoyens sont-ils couverts ou un sous-groupe spécifique, par exemple moins de 5 ans, salariés?
C7: POPULATION COUVERTE / souscrite Nombre réel relatif à la pop cible.
C8: BASE DE COUVERTURE / SOUSCRIPTION Par exemple. obligatoire, automatique, volontaire
C9: AVANTAGES / DROITS Une liste de services ou niveau de soins est-elle définie? Est-ce que les utilisateurs doivent faire des co-paiements?
C10: SOURCES DE REVENUS D'où vient l'argent? Allocations / transferts budgétaires; contributions prépayées.
C11: ACCORDS DE MISE EN COMMUN Le budget de la santé est-il alloué aux autorités régionales, existe-t-il un ou plusieurs fonds d '«assurance»?
C12: MODALITES D'ACHAT Décrivez les arrangements de gestion et de gouvernance?
C13: PAIEMENT DU FOURNISSEUR Par exemple. les entrées par ligne ou poste budgétaire; Ticket de soins/Service, paiement au cas par cas, capitation, basé sur performances?
C14: PRESTATION DE SERVICES & CONTRACTUALISATION De quels fournisseurs les services sont-ils achetés? Public-privé? Des contrats / accords de services sont-ils utilisés?

Sheet Completeness-Obj (hidden)
A1: 1
D3: MATRICE DE PROGRÈS POUR LE FINANCEMENT DE LA SANTÉ
C4: Quel est l’état d’avancement de votre évaluation ?
C6: Efficience | M6: Réponse « zone de texte » | O6: Réponse « curseur »
C7: =Results!C15&" "&Results!D15 -> Q2.4 Dans quelle mesure le flux de fonds publics est-il stable, notamment grâce à une exécution budgétaire régulière, c’est-à-dire un déblocage des fonds dans les délais, conformément aux budgets de santé approuvés ? | M7: =IF(Results!G15=TRUE,"Non pertinent",IF(Results!F15="","Non terminé","Terminé")) -> Non terminé | O7: =IF(Results!G15=TRUE,"Non pertinent",IF(Results!E15=0,"Non terminé","Terminé")) -> Non terminé
C10: =Results!C18&" "&Results!D18 -> Q3.2 Dans le cadre du processus global d’élaboration et de planification de la mise en œuvre des politiques de financement de la santé, quelle est l’approche de votre pays en matière de dispositifs de mise en commun des ressources ? | M10: =IF(Results!G18=TRUE,"Non pertinent",IF(Results!F18="","Non terminé","Terminé")) -> Non terminé | O10: =IF(Results!G18=TRUE,"Non pertinent",IF(Results!E18=0,"Non terminé","Terminé")) -> Non terminé
C13: =Results!C19&" "&Results!D19 -> Q3.3 Dans quelle mesure la capacité de redistribution des fonds prépayés dans votre pays est-elle limitée par le cadre institutionnel du financement de la santé ? | M13: =IF(Results!G19=TRUE,"Non pertinent",IF(Results!F19="","Non terminé","Terminé")) -> Non terminé | O13: =IF(Results!G19=TRUE,"Non pertinent",IF(Results!E19=0,"Non terminé","Terminé")) -> Non terminé
C16: =Results!C20&" "&Results!D20 -> Q3.4 Y-a-il des mesures, dans la conception des prestations, le paiement des prestataires ou les systèmes sous-jacents non financiers, qui visent à contrecarrer les problèmes découlant de la fragmentation de l’architecture du financement de la santé ? | M16: =IF(Results!G20=TRUE,"Non pertinent",IF(Results!F20="","Non terminé","Terminé")) -> Non terminé | O16: =IF(Results!G20=TRUE,"Non pertinent",IF(Results!E20=0,"Non terminé","Terminé")) -> Non terminé
C19: =Results!C21&" "&Results!D21 -> Q3.5 Dans quelle mesure les différentes sources de revenus et de financement sont-elles organisées de manière complémentaire, afin de financer un paquet de prestations pour l’ensemble de la population ? | M19: =IF(Results!G21=TRUE,"Non pertinent",IF(Results!F21="","Non terminé","Terminé")) -> Non terminé | O19: =IF(Results!G21=TRUE,"Non pertinent",IF(Results!E21=0,"Non terminé","Terminé")) -> Non terminé
C22: =Results!C23&" "&Results!D23 -> Q3.7 Dans quelle mesure les flux financiers sont-ils incohérents et redondants, et empêchent d’utiliser efficacement le budget public et les fonds des donateurs ? | M22: =IF(Results!G23=TRUE,"Non pertinent",IF(Results!F23="","Non terminé","Terminé")) -> Non terminé | O22: =IF(Results!G23=TRUE,"Non pertinent",IF(Results!E23=0,"Non terminé","Terminé")) -> Non terminé
C25: =Results!C28&" "&Results!D28 -> Q4.5 Dans quelle mesure les méthodes de paiement des prestataires favorisent-elles l’efficacité de l’allocation des ressources, par exemple en réduisant la prestation excessive ou en augmentant celle insuffisante des services, et gèrent-elles la croissance des dépenses ? | M25: =IF(Results!G28=TRUE,"Non pertinent",IF(Results!F28="","Non terminé","Terminé")) -> Non terminé | O25: =IF(Results!G28=TRUE,"Non pertinent",IF(Results!E28=0,"Non terminé","Terminé")) -> Non terminé
C28: =Results!C31&" "&Results!D31 -> Q4.8 Dans quelle mesure les prestataires jouissent-ils d’une autonomie financière et sont-ils tenus responsables, dans une mesure réaliste et conforme à leurs capacités ? | M28: =IF(Results!G31=TRUE,"Non pertinent",IF(Results!F31="","Non terminé","Terminé")) -> Non terminé | O28: =IF(Results!G31=TRUE,"Non pertinent",IF(Results!E31=0,"Non terminé","Terminé")) -> Non terminé
C31: =Results!C32&" "&Results!D32 -> Q4.9 Dans quelle mesure l’accréditation des prestataires ou les contrats sélectifs sont-ils établis, fonctionnels et utilisés pour les achats ? | M31: =IF(Results!G32=TRUE,"Non pertinent",IF(Results!F32="","Non terminé","Terminé")) -> Non terminé | O31: =IF(Results!G32=TRUE,"Non pertinent",IF(Results!E32=0,"Non terminé","Terminé")) -> Non terminé
C34: =Results!C33&" "&Results!D33 -> Q4.10 Dans quelle mesure l’achat et le paiement des produits pharmaceutiques sont-ils mis en œuvre pour promouvoir l’utilisation efficace des médicaments (par exemple le recours aux génériques plutôt qu’aux princeps) et pour améliorer la protection financière des patients ? | M34: =IF(Results!G33=TRUE,"Non pertinent",IF(Results!F33="","Non terminé","Terminé")) -> Non terminé | O34: =IF(Results!G33=TRUE,"Non pertinent",IF(Results!E33=0,"Non terminé","Terminé")) -> Non terminé
C37: =PFM!D104 -> Q6.7 Dans quelle mesure les règles du budget de la santé permettent-elles une certaine souplesse des dépenses? | M37: =IF(Results!G47=TRUE,"Non pertinent",IF(Results!F47="","Non terminé","Terminé")) -> Non terminé | O37: =IF(Results!G47=TRUE,"Non pertinent",IF(Results!E47=0,"Non terminé","Terminé")) -> Non terminé
C40: =PFM!D120 -> Q6.8 La flexibilité dans l’utilisation des ressources est-elle assurée ou déléguée au bon niveau? | M40: =IF(Results!G48=TRUE,"Non pertinent",IF(Results!F48="","Non terminé","Terminé")) -> Non terminé | O40: =IF(Results!G48=TRUE,"Non pertinent",IF(Results!E48=0,"Non terminé","Terminé")) -> Non terminé
C43: =PFM!D136 -> Q6.9 Dans quelle mesure des politiques de discipline budgétaire visant à contrôler les dépenses sont en vigueur (par exemple, gestion de la trésorerie, respect des règles d’approvisionnement) et mises en œuvre efficacement? | M43: =IF(Results!G49=TRUE,"Non pertinent",IF(Results!F49="","Non terminé","Terminé")) -> Non terminé | O43: =IF(Results!G49=TRUE,"Non pertinent",IF(Results!E49=0,"Non terminé","Terminé")) -> Non terminé
C46: =PFM!D168 -> Q6.11 Dans quelle mesure les flux financiers multiples, la structure budgétaire et les règles de GFP sont alignés sur les politiques d’achats stratégiques? | M46: =IF(Results!G51=TRUE,"Non pertinent",IF(Results!F51="","Non terminé","Terminé")) -> Non terminé | O46: =IF(Results!G51=TRUE,"Non pertinent",IF(Results!E51=0,"Non terminé","Terminé")) -> Non terminé
C50: Équité dans la distribution des ressources | M50: Text box response | O50: Slider response
C51: =C10 -> Q3.2 Dans le cadre du processus global d’élaboration et de planification de la mise en œuvre des politiques de financement de la santé, quelle est l’approche de votre pays en matière de dispositifs de mise en commun des ressources ? | M51: =M10 -> Non terminé | O51: =O10 -> Non terminé
C54: =C13 -> Q3.3 Dans quelle mesure la capacité de redistribution des fonds prépayés dans votre pays est-elle limitée par le cadre institutionnel du financement de la santé ? | M54: =M13 -> Non terminé | O54: =O13 -> Non terminé
C57: =C16 -> Q3.4 Y-a-il des mesures, dans la conception des prestations, le paiement des prestataires ou les systèmes sous-jacents non financiers, qui visent à contrecarrer les problèmes découlant de la fragmentation de l’architecture du financement de la santé ? | M57: =M16 -> Non terminé | O57: =O16 -> Non terminé
C60: =C19 -> Q3.5 Dans quelle mesure les différentes sources de revenus et de financement sont-elles organisées de manière complémentaire, afin de financer un paquet de prestations pour l’ensemble de la population ? | M60: =M19 -> Non terminé | O60: =O19 -> Non terminé
C63: =Results!C22&" "&Results!D22 -> Q3.6 Dans quelle mesure les dispositifs d’assurance-maladie volontaire sont-ils une source d’inégalités, créant des effets de contagion potentiellement néfastes pour l’ensemble du système de santé ? | M63: =IF(Results!G22=TRUE,"Non pertinent",IF(Results!F22="","Non terminé","Terminé")) -> Non terminé | O63: =IF(Results!G22=TRUE,"Non pertinent",IF(Results!E22=0,"Non terminé","Terminé")) -> Non terminé
C66: =Results!C24&" "&Results!D24 -> Q4.1 Dans quelle mesure les allocations de fonds aux acheteurs de niveau inférieur, par exemple les administrations locales, et/ou les taux de paiement aux prestataires sont-ils le reflet des besoins de santé de la population ? | M66: =IF(Results!G24=TRUE,"Non pertinent",IF(Results!F24="","Non terminé","Terminé")) -> Non terminé | O66: =IF(Results!G24=TRUE,"Non pertinent",IF(Results!E24=0,"Non terminé","Terminé")) -> Non terminé
C69: =Results!C25&" "&Results!D25 -> Q4.2 Dans quelle mesure les paiements des prestataires sont-ils harmonisés entre régimes/sources de revenus et entre secteurs public et privé, afin de garantir des incitations cohérentes aux prestataires ? | M69: =IF(Results!G25=TRUE,"Non pertinent",IF(Results!F25="","Non terminé","Terminé")) -> Non terminé | O69: =IF(Results!G25=TRUE,"Non pertinent",IF(Results!E25=0,"Non terminé","Terminé")) -> Non terminé
C72: =PFM!D56 -> Q6.4 Dans quelle mesure les allocations budgétaires annuelles en matière de santé sont alignées sur les priorités du secteur de la santé (niveau, structure, nature/objectif) ? | M72: =IF(Results!G44=TRUE,"Non pertinent",IF(Results!F44="","Non terminé","Terminé")) -> Non terminé | O72: =IF(Results!G44=TRUE,"Non pertinent",IF(Results!E44=0,"Non terminé","Terminé")) -> Non terminé
C75: =PFM!D88 -> Q6.6 Dans quelle mesure les transferts fiscaux sont conçus et mis en œuvre de sorte à améliorer l’équité de la distribution des ressources dans le secteur de la santé? | M75: =IF(Results!G46=TRUE,"Non pertinent",IF(Results!F46="","Non terminé","Terminé")) -> Non terminé | O75: =IF(Results!G46=TRUE,"Non pertinent",IF(Results!E46=0,"Non terminé","Terminé")) -> Non terminé
C78: =C46 -> Q6.11 Dans quelle mesure les flux financiers multiples, la structure budgétaire et les règles de GFP sont alignés sur les politiques d’achats stratégiques? | M78: =M46 -> Non terminé | O78: =O46 -> Non terminé
C82: Transparence et responsabilité | M82: Text box response | O82: Slider response
C83: =Results!C12&" "&Results!D12 -> Q2.1 Quelle approche est en vigueur dans votre pays en matière d’élaboration de politiques et de stratégies de collecte de revenus ? Cette approche s'inscrit-elle dans le cadre du processus global d’élaboration et de planification de la mise en œuvre des politiques de financement de la santé ? | M83: =IF(Results!G12=TRUE,"Non pertinent",IF(Results!F12="","Non terminé","Terminé")) -> Non terminé | O83: =IF(Results!G12=TRUE,"Non pertinent",IF(Results!E12=0,"Non terminé","Terminé")) -> Non terminé
C86: =Results!C14&" "&Results!D14 -> Q2.3 Dans quelle mesure le financement public de la santé dans votre pays est-il prédictible sur plusieurs années ? | M86: =IF(Results!G14=TRUE,"Non pertinent",IF(Results!F14="","Non terminé","Terminé")) -> Non terminé | O86: =IF(Results!G14=TRUE,"Non pertinent",IF(Results!E14=0,"Non terminé","Terminé")) -> Non terminé
C89: =Results!C27&" "&Results!D27 -> Q4.4 Dans quelle mesure les contrats d’achat précisent-ils des exigences en matière de qualité des soins, y compris la disponibilité et la pertinence des soins, puis vérifient-ils de façon régulière qu’elles sont bien respectées ? | M89: =IF(Results!G27=TRUE,"Non pertinent",IF(Results!F27="","Non terminé","Terminé")) -> Non terminé | O89: =IF(Results!G27=TRUE,"Non pertinent",IF(Results!E27=0,"Non terminé","Terminé")) -> Non terminé
C92: =C28 -> Q4.8 Dans quelle mesure les prestataires jouissent-ils d’une autonomie financière et sont-ils tenus responsables, dans une mesure réaliste et conforme à leurs capacités ? | M92: =M28 -> Non terminé | O92: =O28 -> Non terminé
C95: =Results!C35&" "&Results!D35 -> Q5.2 Dans quelle mesure les décisions et les révisions relatives aux prestations sont-elles prises de manière transparente, sur la base d’un processus clairement défini et de critères convenus, tels que le rapport coût-efficacité, la protection financière, l’impact budgétaire ? | M95: =IF(Results!G35=TRUE,"Non pertinent",IF(Results!F35="","Non terminé","Terminé")) -> Non terminé | O95: =IF(Results!G35=TRUE,"Non pertinent",IF(Results!E35=0,"Non terminé","Terminé")) -> Non terminé
C98: =Results!C38&" "&Results!D38 -> Q5.5 Dans quelle mesure les droits et obligations de la population sont-ils explicitement définis et compris par les intéressés ? | M98: =IF(Results!G38=TRUE,"Non pertinent",IF(Results!F38="","Non terminé","Terminé")) -> Non terminé | O98: =IF(Results!G38=TRUE,"Non pertinent",IF(Results!E38=0,"Non terminé","Terminé")) -> Non terminé
C101: =Results!C40&" "&Results!D40 -> Q5.7 Dans quelle mesure les prestations, y compris le partage des coûts pour les patients, sont-elles alignées sur les recettes, afin d’assurer un financement adéquat des droits à prestations approuvés ? | M101: =IF(Results!G40=TRUE,"Non pertinent",IF(Results!F40="","Non terminé","Terminé")) -> Non terminé | O101: =IF(Results!G40=TRUE,"Non pertinent",IF(Results!E40=0,"Non terminé","Terminé")) -> Non terminé
C104: =PFM!D72 -> Q6.5 Dans quelle mesure le processus budgétaire est consultatif, transparent et un processus d’examen et d’ajustement budgétaire à mi-parcours est établi ? | M104: =IF(Results!G45=TRUE,"Non pertinent",IF(Results!F45="","Non terminé","Terminé")) -> Non terminé | O104: =IF(Results!G45=TRUE,"Non pertinent",IF(Results!E45=0,"Non terminé","Terminé")) -> Non terminé
C107: =C37 -> Q6.7 Dans quelle mesure les règles du budget de la santé permettent-elles une certaine souplesse des dépenses? | M107: =M37 -> Non terminé | O107: =O37 -> Non terminé
C110: =C43 -> Q6.9 Dans quelle mesure des politiques de discipline budgétaire visant à contrôler les dépenses sont en vigueur (par exemple, gestion de la trésorerie, respect des règles d’approvisionnement) et mises en œuvre efficacement? | M110: =M43 -> Non terminé | O110: =O43 -> Non terminé
C113: =Results!C52&" "&Results!D52 -> Q7.1 Dans quelle mesure les rôles et les responsabilités (liés aux objectifs de financement de la santé et au rendement en matière de collecte de recettes, de mise en commun, d’achats, de prestations, etc.) sont clairement définis et répartis entre les institutions responsables du financement de la santé ? | M113: =IF(Results!G52=TRUE,"Non pertinent",IF(Results!F52="","Non terminé","Terminé")) -> Non terminé | O113: =IF(Results!G52=TRUE,"Non pertinent",IF(Results!E52=0,"Non terminé","Terminé")) -> Non terminé
C116: =Results!C53&" "&Results!D53 -> Q7.2 Dans quelle mesure les institutions responsables du financement de la santé disposent-elles de capacités adéquates, notamment en matière de ressources humaines (capacités techniques et managériales) et de TIC ? | M116: =IF(Results!G53=TRUE,"Non pertinent",IF(Results!F53="","Non terminé","Terminé")) -> Non terminé | O116: =IF(Results!G53=TRUE,"Non pertinent",IF(Results!E53=0,"Non terminé","Terminé")) -> Non terminé
C119: =Results!C54&" "&Results!D54 -> Q7.3 Dans quelle mesure les mécanismes de responsabilisation des organismes d’achat/de financement (y compris l’autonomie et le conseil d’administration de l’agence d’assurance-maladie, les mécanismes de récompense/sanction, etc.) sont-ils en place pour s’assurer que la politique de financement de la santé appuie les progrès vers les objectifs du secteur et que les fonds sont utilisés efficacement pour les populations, programmes et services prioritaires ? | M119: =IF(Results!G54=TRUE,"Non pertinent",IF(Results!F54="","Non terminé","Terminé")) -> Non terminé | O119: =IF(Results!G54=TRUE,"Non pertinent",IF(Results!E54=0,"Non terminé","Terminé")) -> Non terminé
C122: =Results!C55&" "&Results!D55 -> Q7.4 L’utilisation des fonds ou les performances des institutions achetant des services auprès des prestataires de services de santé ou le budget de la santé ont-ils été communiqués au public (par exemple sous forme de rapport annuel) ? | M122: =IF(Results!G55=TRUE,"Non pertinent",IF(Results!F55="","Non terminé","Terminé")) -> Non terminé | O122: =IF(Results!G55=TRUE,"Non pertinent",IF(Results!E55=0,"Non terminé","Terminé")) -> Non terminé
C125: =Results!C56&" "&Results!D56 -> Q7.5 Dans quelle mesure le Ministère des finances, le Ministère de la santé et l’organisme national d’assurance-maladie participent au processus d’élaboration des politiques de financement de la santé et en sont informés ? | M125: =IF(Results!G56=TRUE,"Non pertinent",IF(Results!F56="","Non terminé","Terminé")) -> Non terminé | O125: =IF(Results!G56=TRUE,"Non pertinent",IF(Results!E56=0,"Non terminé","Terminé")) -> Non terminé
C128: =Results!C57&" "&Results!D57 -> Q7.6 Dans quelle mesure le processus d’élaboration des politiques de financement de la santé est transparent et participatif? | M128: =IF(Results!G57=TRUE,"Non pertinent",IF(Results!F57="","Non terminé","Terminé")) -> Non terminé | O128: =IF(Results!G57=TRUE,"Non pertinent",IF(Results!E57=0,"Non terminé","Terminé")) -> Non terminé
C132: Équité des financements | M132: Text box response | O132: Slider response
C133: =C83 -> Q2.1 Quelle approche est en vigueur dans votre pays en matière d’élaboration de politiques et de stratégies de collecte de revenus ? Cette approche s'inscrit-elle dans le cadre du processus global d’élaboration et de planification de la mise en œuvre des politiques de financement de la santé ? | M133: =M83 -> Non terminé | O133: =O83 -> Non terminé
C136: =Results!C13&" "&Results!D13 -> Q2.2 Dans quelle mesure le financement de la santé dans votre pays repose-t-il sur des sources de financement public/obligatoire (par exemple, fiscalité/recettes publiques, y compris les cotisations obligatoires à l’assurance-maladie nationale/sociale) ? | M136: =IF(Results!G13=TRUE,"Non pertinent",IF(Results!F13="","Non terminé","Terminé")) -> Non terminé | O136: =IF(Results!G13=TRUE,"Non pertinent",IF(Results!E13=0,"Non terminé","Terminé")) -> Non terminé
C139: =C7 -> Q2.4 Dans quelle mesure le flux de fonds publics est-il stable, notamment grâce à une exécution budgétaire régulière, c’est-à-dire un déblocage des fonds dans les délais, conformément aux budgets de santé approuvés ? | M139: =M7 -> Non terminé | O139: =O7 -> Non terminé
C142: =Results!C16&" "&Results!D16 -> Q2.5 Dans quelle mesure les différentes sources de revenus sont-elles collectées de façon progressive (c.-à-d. en fonction de la capacité de payer), et partant de là favorisent l’équité dans le mode de financement du système de santé ? | M142: =IF(Results!G16=TRUE,"Non pertinent",IF(Results!F16="","Non terminé","Terminé")) -> Non terminé | O142: =IF(Results!G16=TRUE,"Non pertinent",IF(Results!E16=0,"Non terminé","Terminé")) -> Non terminé
C145: =C57 -> Q3.4 Y-a-il des mesures, dans la conception des prestations, le paiement des prestataires ou les systèmes sous-jacents non financiers, qui visent à contrecarrer les problèmes découlant de la fragmentation de l’architecture du financement de la santé ? | M145: =M57 -> Non terminé | O145: =O57 -> Non terminé
C148: =C63 -> Q3.6 Dans quelle mesure les dispositifs d’assurance-maladie volontaire sont-ils une source d’inégalités, créant des effets de contagion potentiellement néfastes pour l’ensemble du système de santé ? | M148: =M63 -> Non terminé | O148: =O63 -> Non terminé
C151: =C34 -> Q4.10 Dans quelle mesure l’achat et le paiement des produits pharmaceutiques sont-ils mis en œuvre pour promouvoir l’utilisation efficace des médicaments (par exemple le recours aux génériques plutôt qu’aux princeps) et pour améliorer la protection financière des patients ? | M151: =M34 -> Non terminé | O151: =O34 -> Non terminé
C154: =Results!C37&" "&Results!D37 -> Q5.4 Dans quelle mesure les prestations accordent-elles la priorité aux catégories de population prioritaires, par exemple pour une meilleure utilisation des services hautement prioritaires et pour la protection financière ? | M154: =IF(Results!G37=TRUE,"Non pertinent",IF(Results!F37="","Non terminé","Terminé")) -> Non terminé | O154: =IF(Results!G37=TRUE,"Non pertinent",IF(Results!E37=0,"Non terminé","Terminé")) -> Non terminé
C157: =Results!C39&" "&Results!D39 -> Q5.6 Dans quelle mesure les prestations sont-elles alignées sur le paiement des prestataires, afin de s’assurer qu’elles sont fournies et que les patients bénéficient d’une protection financière ? | M157: =IF(Results!G39=TRUE,"Non pertinent",IF(Results!F39="","Non terminé","Terminé")) -> Non terminé | O157: =IF(Results!G39=TRUE,"Non pertinent",IF(Results!E39=0,"Non terminé","Terminé")) -> Non terminé
C161: Protection financière | M161: Text box response | O161: Slider response
C162: =C133 -> Q2.1 Quelle approche est en vigueur dans votre pays en matière d’élaboration de politiques et de stratégies de collecte de revenus ? Cette approche s'inscrit-elle dans le cadre du processus global d’élaboration et de planification de la mise en œuvre des politiques de financement de la santé ? | M162: =M133 -> Non terminé | O162: =O133 -> Non terminé
C165: =C136 -> Q2.2 Dans quelle mesure le financement de la santé dans votre pays repose-t-il sur des sources de financement public/obligatoire (par exemple, fiscalité/recettes publiques, y compris les cotisations obligatoires à l’assurance-maladie nationale/sociale) ? | M165: =M136 -> Non terminé | O165: =O136 -> Non terminé
C168: =C139 -> Q2.4 Dans quelle mesure le flux de fonds publics est-il stable, notamment grâce à une exécution budgétaire régulière, c’est-à-dire un déblocage des fonds dans les délais, conformément aux budgets de santé approuvés ? | M168: =M139 -> Non terminé | O168: =O139 -> Non terminé
C171: =C142 -> Q2.5 Dans quelle mesure les différentes sources de revenus sont-elles collectées de façon progressive (c.-à-d. en fonction de la capacité de payer), et partant de là favorisent l’équité dans le mode de financement du système de santé ? | M171: =M142 -> Non terminé | O171: =O142 -> Non terminé
C174: =C51 -> Q3.2 Dans le cadre du processus global d’élaboration et de planification de la mise en œuvre des politiques de financement de la santé, quelle est l’approche de votre pays en matière de dispositifs de mise en commun des ressources ? | M174: =M51 -> Non terminé | O174: =O51 -> Non terminé
C177: =C54 -> Q3.3 Dans quelle mesure la capacité de redistribution des fonds prépayés dans votre pays est-elle limitée par le cadre institutionnel du financement de la santé ? | M177: =M54 -> Non terminé | O177: =O54 -> Non terminé
C180: =C57 -> Q3.4 Y-a-il des mesures, dans la conception des prestations, le paiement des prestataires ou les systèmes sous-jacents non financiers, qui visent à contrecarrer les problèmes découlant de la fragmentation de l’architecture du financement de la santé ? | M180: =M57 -> Non terminé | O180: =O57 -> Non terminé
C183: =C60 -> Q3.5 Dans quelle mesure les différentes sources de revenus et de financement sont-elles organisées de manière complémentaire, afin de financer un paquet de prestations pour l’ensemble de la population ? | M183: =M60 -> Non terminé | O183: =O60 -> Non terminé
C186: =C63 -> Q3.6 Dans quelle mesure les dispositifs d’assurance-maladie volontaire sont-ils une source d’inégalités, créant des effets de contagion potentiellement néfastes pour l’ensemble du système de santé ? | M186: =M63 -> Non terminé | O186: =O63 -> Non terminé
C189: =C151 -> Q4.10 Dans quelle mesure l’achat et le paiement des produits pharmaceutiques sont-ils mis en œuvre pour promouvoir l’utilisation efficace des médicaments (par exemple le recours aux génériques plutôt qu’aux princeps) et pour améliorer la protection financière des patients ? | M189: =M151 -> Non terminé | O189: =O151 -> Non terminé
C192: =C154 -> Q5.4 Dans quelle mesure les prestations accordent-elles la priorité aux catégories de population prioritaires, par exemple pour une meilleure utilisation des services hautement prioritaires et pour la protection financière ? | M192: =M154 -> Non terminé | O192: =O154 -> Non terminé
C195: =C157 -> Q5.6 Dans quelle mesure les prestations sont-elles alignées sur le paiement des prestataires, afin de s’assurer qu’elles sont fournies et que les patients bénéficient d’une protection financière ? | M195: =M157 -> Non terminé | O195: =O157 -> Non terminé
C199: Qualité | M199: Text box response | O199: Slider response
C200: =C69 -> Q4.2 Dans quelle mesure les paiements des prestataires sont-ils harmonisés entre régimes/sources de revenus et entre secteurs public et privé, afin de garantir des incitations cohérentes aux prestataires ? | M200: =M69 -> Non terminé | O200: =O69 -> Non terminé
C203: =Results!C26&" "&Results!D26 -> Q4.3 Dans quelle mesure les méthodes de paiement des prestataires et les achats en général favorisent-ils la qualité des soins et la coordination des soins entre les spécialités et les différents niveaux de soins ? | M203: =IF(Results!G26=TRUE,"Non pertinent",IF(Results!F26="","Non terminé","Terminé")) -> Non terminé | O203: =IF(Results!G26=TRUE,"Non pertinent",IF(Results!E26=0,"Non terminé","Terminé")) -> Non terminé
C206: =C89 -> Q4.4 Dans quelle mesure les contrats d’achat précisent-ils des exigences en matière de qualité des soins, y compris la disponibilité et la pertinence des soins, puis vérifient-ils de façon régulière qu’elles sont bien respectées ? | M206: =M89 -> Non terminé | O206: =O89 -> Non terminé
C209: =C25 -> Q4.5 Dans quelle mesure les méthodes de paiement des prestataires favorisent-elles l’efficacité de l’allocation des ressources, par exemple en réduisant la prestation excessive ou en augmentant celle insuffisante des services, et gèrent-elles la croissance des dépenses ? | M209: =M25 -> Non terminé | O209: =O25 -> Non terminé
C212: =Results!C29&" "&Results!D29 -> Q4.6 Dans quelle mesure les formulaires de consultation des patients sont-ils normalisés dans l'ensemble du système de santé et utilisés pour analyser et évaluer l'activité de l’ensemble des prestataires et de la population | M212: =IF(Results!G29=TRUE,"Non pertinent",IF(Results!F29="","Non terminé","Terminé")) -> Non terminé | O212: =IF(Results!G29=TRUE,"Non pertinent",IF(Results!E29=0,"Non terminé","Terminé")) -> Non terminé
C215: =Results!C30&" "&Results!D30 -> Q4.7 Dans quelle mesure les paiements des prestataires couvrent uniquement une partie ou l’ensemble des coûts totaux (y compris les salaires, les dépenses récurrentes, etc.) ? | M215: =IF(Results!G30=TRUE,"Non pertinent",IF(Results!F30="","Non terminé","Terminé")) -> Non terminé | O215: =IF(Results!G30=TRUE,"Non pertinent",IF(Results!E30=0,"Non terminé","Terminé")) -> Non terminé
C218: =C28 -> Q4.8 Dans quelle mesure les prestataires jouissent-ils d’une autonomie financière et sont-ils tenus responsables, dans une mesure réaliste et conforme à leurs capacités ? | M218: =M28 -> Non terminé | O218: =O28 -> Non terminé
C221: =C31 -> Q4.9 Dans quelle mesure l’accréditation des prestataires ou les contrats sélectifs sont-ils établis, fonctionnels et utilisés pour les achats ? | M221: =M31 -> Non terminé | O221: =O31 -> Non terminé
C224: =C116 -> Q7.2 Dans quelle mesure les institutions responsables du financement de la santé disposent-elles de capacités adéquates, notamment en matière de ressources humaines (capacités techniques et managériales) et de TIC ? | M224: =M116 -> Non terminé | O224: =O116 -> Non terminé
C228: Utilisation par rapport aux besoins | M228: Text box response | O228: Slider response
C229: =C86 -> Q2.3 Dans quelle mesure le financement public de la santé dans votre pays est-il prédictible sur plusieurs années ? | M229: =M86 -> Non terminé | O229: =O86 -> Non terminé
C232: =C168 -> Q2.4 Dans quelle mesure le flux de fonds publics est-il stable, notamment grâce à une exécution budgétaire régulière, c’est-à-dire un déblocage des fonds dans les délais, conformément aux budgets de santé approuvés ? | M232: =M168 -> Non terminé | O232: =O168 -> Non terminé
C235: =C171 -> Q2.5 Dans quelle mesure les différentes sources de revenus sont-elles collectées de façon progressive (c.-à-d. en fonction de la capacité de payer), et partant de là favorisent l’équité dans le mode de financement du système de santé ? | M235: =M171 -> Non terminé | O235: =O171 -> Non terminé
C238: =C10 -> Q3.2 Dans le cadre du processus global d’élaboration et de planification de la mise en œuvre des politiques de financement de la santé, quelle est l’approche de votre pays en matière de dispositifs de mise en commun des ressources ? | M238: =M10 -> Non terminé | O238: =O10 -> Non terminé
C241: =C13 -> Q3.3 Dans quelle mesure la capacité de redistribution des fonds prépayés dans votre pays est-elle limitée par le cadre institutionnel du financement de la santé ? | M241: =M13 -> Non terminé | O241: =O13 -> Non terminé
C244: =C16 -> Q3.4 Y-a-il des mesures, dans la conception des prestations, le paiement des prestataires ou les systèmes sous-jacents non financiers, qui visent à contrecarrer les problèmes découlant de la fragmentation de l’architecture du financement de la santé ? | M244: =M16 -> Non terminé | O244: =O16 -> Non terminé
C247: =C19 -> Q3.5 Dans quelle mesure les différentes sources de revenus et de financement sont-elles organisées de manière complémentaire, afin de financer un paquet de prestations pour l’ensemble de la population ? | M247: =M19 -> Non terminé | O247: =O19 -> Non terminé
C250: =C66 -> Q4.1 Dans quelle mesure les allocations de fonds aux acheteurs de niveau inférieur, par exemple les administrations locales, et/ou les taux de paiement aux prestataires sont-ils le reflet des besoins de santé de la population ? | M250: =M66 -> Non terminé | O250: =O66 -> Non terminé
C253: =Results!C36&" "&Results!D36 -> Q5.3 Dans quelle mesure les droits à prestation reflètent-ils explicitement les besoins de santé de la population ? | M253: =IF(Results!G36=TRUE,"Non pertinent",IF(Results!F36="","Non terminé","Terminé")) -> Non terminé | O253: =IF(Results!G36=TRUE,"Non pertinent",IF(Results!E36=0,"Non terminé","Terminé")) -> Non terminé
C256: =C192 -> Q5.4 Dans quelle mesure les prestations accordent-elles la priorité aux catégories de population prioritaires, par exemple pour une meilleure utilisation des services hautement prioritaires et pour la protection financière ? | M256: =M192 -> Non terminé | O256: =O192 -> Non terminé
C259: =C98 -> Q5.5 Dans quelle mesure les droits et obligations de la population sont-ils explicitement définis et compris par les intéressés ? | M259: =M98 -> Non terminé | O259: =O98 -> Non terminé
C262: =C195 -> Q5.6 Dans quelle mesure les prestations sont-elles alignées sur le paiement des prestataires, afin de s’assurer qu’elles sont fournies et que les patients bénéficient d’une protection financière ? | M262: =M195 -> Non terminé | O262: =O195 -> Non terminé
C265: =C101 -> Q5.7 Dans quelle mesure les prestations, y compris le partage des coûts pour les patients, sont-elles alignées sur les recettes, afin d’assurer un financement adéquat des droits à prestations approuvés ? | M265: =M101 -> Non terminé | O265: =O101 -> Non terminé
C268: =C72 -> Q6.4 Dans quelle mesure les allocations budgétaires annuelles en matière de santé sont alignées sur les priorités du secteur de la santé (niveau, structure, nature/objectif) ? | M268: =M72 -> Non terminé | O268: =O72 -> Non terminé
C271: =C75 -> Q6.6 Dans quelle mesure les transferts fiscaux sont conçus et mis en œuvre de sorte à améliorer l’équité de la distribution des ressources dans le secteur de la santé? | M271: =M75 -> Non terminé | O271: =O75 -> Non terminé
C274: =C107 -> Q6.7 Dans quelle mesure les règles du budget de la santé permettent-elles une certaine souplesse des dépenses? | M274: =M107 -> Non terminé | O274: =O107 -> Non terminé
C277: =C78 -> Q6.11 Dans quelle mesure les flux financiers multiples, la structure budgétaire et les règles de GFP sont alignés sur les politiques d’achats stratégiques? | M277: =M78 -> Non terminé | O277: =O78 -> Non terminé

Sheet Check (hidden)
A1: 1
C3: Vérifiez l'exhaustivité
C5: Choisir
I14: © Organisation Mondiale de la Santé 2019. Tous les droits sont réservés.

Sheet Assessment-check (hidden)
A1: 1
C3: Résumé de votre évaluation
C5: Choisir
I14: © Organisation Mondiale de la Santé 2019. Tous les droits sont réservés.

Sheet Your Assessment-Obj (hidden)
D3: MATRICE DE PROGRÈS POUR LE FINANCEMENT DE LA SANTÉ
C4: RÉSUMÉ DE VOTRE ÉVALUATION
D5: ↓
C6: Cliquez sur la zone de texte pour sélectionner une matrice | D6: Équité dans la distribution des ressources | G6: Votre évaluation
C7: Questions
C9: =Results!P21 -> Équité dans la distribution des ressources
C11: =Results!S20 -> 3.2. Dans le cadre du processus global d’élaboration et de planification de la mise en œuvre des politiques de financement de la santé, quelle est l’approche de votre pays en matière de dispositifs de mise en commun des ressources ?
C15: =Results!S21 -> 3.3. Dans quelle mesure la capacité de redistribution des fonds prépayés dans votre pays est-elle limitée par le cadre institutionnel du financement de la santé ?
C19: =Results!S22 -> 3.4. Y-a-il des mesures, dans la conception des prestations, le paiement des prestataires ou les systèmes sous-jacents non financiers, qui visent à contrecarrer les problèmes découlant de la fragmentation de l’architecture du financement de la santé ?
C23: =Results!S23 -> 3.5. Dans quelle mesure les différentes sources de revenus et de financement sont-elles organisées de manière complémentaire, afin de financer un paquet de prestations pour l’ensemble de la population ?
C27: =Results!S24 -> 3.6. Dans quelle mesure les dispositifs d’assurance-maladie volontaire sont-ils une source d’inégalités, créant des effets de contagion potentiellement néfastes pour l’ensemble du système de santé ?
C31: =Results!S25 -> 4.1. Dans quelle mesure les allocations de fonds aux acheteurs de niveau inférieur, par exemple les administrations locales, et/ou les taux de paiement aux prestataires sont-ils le reflet des besoins de santé de la population ?
C35: =Results!S26 -> 4.2. Dans quelle mesure les paiements des prestataires sont-ils harmonisés entre régimes/sources de revenus et entre secteurs public et privé, afin de garantir des incitations cohérentes aux prestataires ?
C39: =Results!S27 -> 6.4. Dans quelle mesure les allocations budgétaires annuelles en matière de santé sont alignées sur les priorités du secteur de la santé (niveau, structure, nature/objectif) ?
C43: =Results!S28 -> 6.6. Dans quelle mesure les transferts fiscaux sont conçus et mis en œuvre de sorte à améliorer l’équité de la distribution des ressources dans le secteur de la santé?
C47: =Results!S29 -> 6,11. Dans quelle mesure les flux financiers multiples, la structure budgétaire et les règles de GFP sont alignés sur les politiques d’achats stratégiques?
C51: =Results!S30 -> 
C55: =Results!S31 -> 
C59: =Results!S32 -> 
C63: =Results!S33 -> 
C67: =Results!S34 -> 
C71: =Results!S35 -> 
C75: =Results!S36 -> 

Sheet Print_option (hidden)
A1: 1
C3: Imprimez vos résultats
C5: Imprimé par
I14: © Organisation Mondiale de la Santé 2019. Tous les droits sont réservés.

Sheet Dataset (hidden)
A1: Country_Name | B1: ISO_Code | C1: WHO region | D1: income | E1: Completed_by | F1: Process followed: | G1: Period_from | H1: Period_to | I1: Question_required | J1: Function_Objective | K1: Question_code | L1: Question_description | M1: Result_text | N1: score_number
A2: =Results!$B$2 -> 0 | B2: =code ->  | C2: =Results!$G$4 ->  | D2: =Results!G5 ->  | E2: =Results!$B$6 -> 0 | G2: =CONCATENATE(Results!$C$4," - ",Results!$B$4) -> 0 - 0 | H2: =CONCATENATE(Results!$C$5," - ",Results!$B$5) -> 0 - 0 | I2: =Results!G8 -> FALSE | J2: Policy development process | K2: =Results!C8 -> Q1.1 | L2: =Results!D8 -> Le système de financement de la santé de votre pays a-t-il récemment fait l’objet d’un diagnostic ou d’une évaluation approfondie qui examine son impact sur les performances du système de santé ainsi que les causes des problèmes de performance ? | M2: =Results!F8 ->  | N2: =Q1.1 -> 0
A3: =Results!$B$2 -> 0 | C3: =C2 ->  | D3: =D2 ->  | E3: =Results!$B$6 -> 0 | G3: =CONCATENATE(Results!$C$4," - ",Results!$B$4) -> 0 - 0 | H3: =CONCATENATE(Results!$C$5," - ",Results!$B$5) -> 0 - 0 | I3: =Results!G9 -> FALSE | J3: Policy development process | K3: =Results!C9 -> Q1.2 | L3: =Results!D9 -> A-t-on transposé en textes de loi/décrets une déclaration de politique récente relative au financement de la santé ? | M3: =Results!F9 ->  | N3: =Q1.2 -> 0
A4: =Results!$B$2 -> 0 | C4: =C3 ->  | D4: =D3 ->  | E4: =Results!$B$6 -> 0 | G4: =CONCATENATE(Results!$C$4," - ",Results!$B$4) -> 0 - 0 | H4: =CONCATENATE(Results!$C$5," - ",Results!$B$5) -> 0 - 0 | I4: =Results!G10 -> FALSE | J4: Policy development process | K4: =Results!C10 -> Q1.3 | L4: =Results!D10 -> Existe-t-il un système de suivi régulier du financement de la santé, et si oui les données sont-elles utilisées pour suivre les progrès effectués (par exemple sur les modèles de dépenses et la protection financière) et pour renforcer la reddition de comptes ? | M4: =Results!F10 ->  | N4: =Q1.3 -> 0
A5: =Results!$B$2 -> 0 | E5: =Results!$B$6 -> 0 | G5: =CONCATENATE(Results!$C$4," - ",Results!$B$4) -> 0 - 0 | H5: =CONCATENATE(Results!$C$5," - ",Results!$B$5) -> 0 - 0 | I5: =Results!G11 -> FALSE | J5: Policy development process | K5: =Results!C11 -> Q1.4 | L5: =Results!D11 -> Les études d’évaluation sont-elles réalisées sur une base systématique pour mesurer les conséquences de la mise en œuvre de réformes spécifiques du financement sur les objectifs du système de santé et dans quelles mesure les résultats servent-ils à guider la conception et la révision des politiques de financement de la santé ? | M5: =Results!F11 ->  | N5: =Q1.4 -> 0
A6: =Results!$B$2 -> 0 | E6: =Results!$B$6 -> 0 | G6: =CONCATENATE(Results!$C$4," - ",Results!$B$4) -> 0 - 0 | H6: =CONCATENATE(Results!$C$5," - ",Results!$B$5) -> 0 - 0 | I6: =Results!G12 -> FALSE | J6: Revenue raising | K6: =Results!C12 -> Q2.1 | L6: =Results!D12 -> Quelle approche est en vigueur dans votre pays en matière d’élaboration de politiques et de stratégies de collecte de revenus ? Cette approche s'inscrit-elle dans le cadre du processus global d’élaboration et de planification de la mise en œuvre des politiques de financement de la santé ? | M6: =Results!F12 ->  | N6: =Q2.1 -> 0
A7: =Results!$B$2 -> 0 | E7: =Results!$B$6 -> 0 | G7: =CONCATENATE(Results!$C$4," - ",Results!$B$4) -> 0 - 0 | H7: =CONCATENATE(Results!$C$5," - ",Results!$B$5) -> 0 - 0 | I7: =Results!G13 -> FALSE | J7: Revenue raising | K7: =Results!C13 -> Q2.2 | L7: =Results!D13 -> Dans quelle mesure le financement de la santé dans votre pays repose-t-il sur des sources de financement public/obligatoire (par exemple, fiscalité/recettes publiques, y compris les cotisations obligatoires à l’assurance-maladie nationale/sociale) ? | M7: =Results!F13 ->  | N7: =Q2.2 -> 0
A8: =Results!$B$2 -> 0 | E8: =Results!$B$6 -> 0 | G8: =CONCATENATE(Results!$C$4," - ",Results!$B$4) -> 0 - 0 | H8: =CONCATENATE(Results!$C$5," - ",Results!$B$5) -> 0 - 0 | I8: =Results!G14 -> FALSE | J8: Revenue raising | K8: =Results!C14 -> Q2.3 | L8: =Results!D14 -> Dans quelle mesure le financement public de la santé dans votre pays est-il prédictible sur plusieurs années ? | M8: =Results!F14 ->  | N8: =Q2.3 -> 0
A9: =Results!$B$2 -> 0 | E9: =Results!$B$6 -> 0 | G9: =CONCATENATE(Results!$C$4," - ",Results!$B$4) -> 0 - 0 | H9: =CONCATENATE(Results!$C$5," - ",Results!$B$5) -> 0 - 0 | I9: =Results!G15 -> FALSE | J9: Revenue raising | K9: =Results!C15 -> Q2.4 | L9: =Results!D15 -> Dans quelle mesure le flux de fonds publics est-il stable, notamment grâce à une exécution budgétaire régulière, c’est-à-dire un déblocage des fonds dans les délais, conformément aux budgets de santé approuvés ? | M9: =Results!F15 ->  | N9: =Q2.4 -> 0
A10: =Results!$B$2 -> 0 | E10: =Results!$B$6 -> 0 | G10: =CONCATENATE(Results!$C$4," - ",Results!$B$4) -> 0 - 0 | H10: =CONCATENATE(Results!$C$5," - ",Results!$B$5) -> 0 - 0 | I10: =Results!G16 -> FALSE | J10: Revenue raising | K10: =Results!C16 -> Q2.5 | L10: =Results!D16 -> Dans quelle mesure les différentes sources de revenus sont-elles collectées de façon progressive (c.-à-d. en fonction de la capacité de payer), et partant de là favorisent l’équité dans le mode de financement du système de santé ? | M10: =Results!F16 ->  | N10: =Q2.5 -> 0
A11: =Results!$B$2 -> 0 | E11: =Results!$B$6 -> 0 | G11: =CONCATENATE(Results!$C$4," - ",Results!$B$4) -> 0 - 0 | H11: =CONCATENATE(Results!$C$5," - ",Results!$B$5) -> 0 - 0 | I11: =Results!G17 -> FALSE | J11: other | K11: =Results!C17 -> Q3.1 | L11: =Results!D17 -> Cette question a été maintenant remplacé par l’étape 1 et le tableau de vue d’ensemble et ne constitue donc plus une question distincte. Merci de bien vous assurer que vous avez complété l’étape 1 car cela vous aidera à remplir les questions de cette section. | M11: =Results!F17 ->  | N11: =Q3.1 -> 0
A12: =Results!$B$2 -> 0 | E12: =Results!$B$6 -> 0 | G12: =CONCATENATE(Results!$C$4," - ",Results!$B$4) -> 0 - 0 | H12: =CONCATENATE(Results!$C$5," - ",Results!$B$5) -> 0 - 0 | I12: =Results!G18 -> FALSE | J12: Pooling | K12: =Results!C18 -> Q3.2 | L12: =Results!D18 -> Dans le cadre du processus global d’élaboration et de planification de la mise en œuvre des politiques de financement de la santé, quelle est l’approche de votre pays en matière de dispositifs de mise en commun des ressources ? | M12: =Results!F18 ->  | N12: =Q3.2 -> 0
A13: =Results!$B$2 -> 0 | E13: =Results!$B$6 -> 0 | G13: =CONCATENATE(Results!$C$4," - ",Results!$B$4) -> 0 - 0 | H13: =CONCATENATE(Results!$C$5," - ",Results!$B$5) -> 0 - 0 | I13: =Results!G19 -> FALSE | J13: Pooling | K13: =Results!C19 -> Q3.3 | L13: =Results!D19 -> Dans quelle mesure la capacité de redistribution des fonds prépayés dans votre pays est-elle limitée par le cadre institutionnel du financement de la santé ? | M13: =Results!F19 ->  | N13: =Q3.3 -> 0
A14: =Results!$B$2 -> 0 | E14: =Results!$B$6 -> 0 | G14: =CONCATENATE(Results!$C$4," - ",Results!$B$4) -> 0 - 0 | H14: =CONCATENATE(Results!$C$5," - ",Results!$B$5) -> 0 - 0 | I14: =Results!G20 -> FALSE | J14: Pooling | K14: =Results!C20 -> Q3.4 | L14: =Results!D20 -> Y-a-il des mesures, dans la conception des prestations, le paiement des prestataires ou les systèmes sous-jacents non financiers, qui visent à contrecarrer les problèmes découlant de la fragmentation de l’architecture du financement de la santé ? | M14: =Results!F20 ->  | N14: =Q3.4 -> 0
A15: =Results!$B$2 -> 0 | E15: =Results!$B$6 -> 0 | G15: =CONCATENATE(Results!$C$4," - ",Results!$B$4) -> 0 - 0 | H15: =CONCATENATE(Results!$C$5," - ",Results!$B$5) -> 0 - 0 | I15: =Results!G21 -> FALSE | J15: Pooling | K15: =Results!C21 -> Q3.5 | L15: =Results!D21 -> Dans quelle mesure les différentes sources de revenus et de financement sont-elles organisées de manière complémentaire, afin de financer un paquet de prestations pour l’ensemble de la population ? | M15: =Results!F21 ->  | N15: =Q3.5 -> 0
A16: =Results!$B$2 -> 0 | E16: =Results!$B$6 -> 0 | G16: =CONCATENATE(Results!$C$4," - ",Results!$B$4) -> 0 - 0 | H16: =CONCATENATE(Results!$C$5," - ",Results!$B$5) -> 0 - 0 | I16: =Results!G22 -> FALSE | J16: Pooling | K16: =Results!C22 -> Q3.6 | L16: =Results!D22 -> Dans quelle mesure les dispositifs d’assurance-maladie volontaire sont-ils une source d’inégalités, créant des effets de contagion potentiellement néfastes pour l’ensemble du système de santé ? | M16: =Results!F22 ->  | N16: =Q3.6 -> 0
A17: =Results!$B$2 -> 0 | E17: =Results!$B$6 -> 0 | G17: =CONCATENATE(Results!$C$4," - ",Results!$B$4) -> 0 - 0 | H17: =CONCATENATE(Results!$C$5," - ",Results!$B$5) -> 0 - 0 | I17: =Results!G23 -> FALSE | J17: Pooling | K17: =Results!C23 -> Q3.7 | L17: =Results!D23 -> Dans quelle mesure les flux financiers sont-ils incohérents et redondants, et empêchent d’utiliser efficacement le budget public et les fonds des donateurs ? | M17: =Results!F23 ->  | N17: =Q3.7 -> 0
A18: =Results!$B$2 -> 0 | E18: =Results!$B$6 -> 0 | G18: =CONCATENATE(Results!$C$4," - ",Results!$B$4) -> 0 - 0 | H18: =CONCATENATE(Results!$C$5," - ",Results!$B$5) -> 0 - 0 | I18: =Results!G24 -> FALSE | J18: Purchasing | K18: =Results!C24 -> Q4.1 | L18: =Results!D24 -> Dans quelle mesure les allocations de fonds aux acheteurs de niveau inférieur, par exemple les administrations locales, et/ou les taux de paiement aux prestataires sont-ils le reflet des besoins de santé de la population ? | M18: =Results!F24 ->  | N18: =Q4.1 -> 0
A19: =Results!$B$2 -> 0 | E19: =Results!$B$6 -> 0 | G19: =CONCATENATE(Results!$C$4," - ",Results!$B$4) -> 0 - 0 | H19: =CONCATENATE(Results!$C$5," - ",Results!$B$5) -> 0 - 0 | I19: =Results!G25 -> FALSE | J19: Purchasing | K19: =Results!C25 -> Q4.2 | L19: =Results!D25 -> Dans quelle mesure les paiements des prestataires sont-ils harmonisés entre régimes/sources de revenus et entre secteurs public et privé, afin de garantir des incitations cohérentes aux prestataires ? | M19: =Results!F25 ->  | N19: =Q4.2 -> 0
A20: =Results!$B$2 -> 0 | E20: =Results!$B$6 -> 0 | G20: =CONCATENATE(Results!$C$4," - ",Results!$B$4) -> 0 - 0 | H20: =CONCATENATE(Results!$C$5," - ",Results!$B$5) -> 0 - 0 | I20: =Results!G26 -> FALSE | J20: Purchasing | K20: =Results!C26 -> Q4.3 | L20: =Results!D26 -> Dans quelle mesure les méthodes de paiement des prestataires et les achats en général favorisent-ils la qualité des soins et la coordination des soins entre les spécialités et les différents niveaux de soins ? | M20: =Results!F26 ->  | N20: =Q4.3 -> 0
A21: =Results!$B$2 -> 0 | E21: =Results!$B$6 -> 0 | G21: =CONCATENATE(Results!$C$4," - ",Results!$B$4) -> 0 - 0 | H21: =CONCATENATE(Results!$C$5," - ",Results!$B$5) -> 0 - 0 | I21: =Results!G27 -> FALSE | J21: Purchasing | K21: =Results!C27 -> Q4.4 | L21: =Results!D27 -> Dans quelle mesure les contrats d’achat précisent-ils des exigences en matière de qualité des soins, y compris la disponibilité et la pertinence des soins, puis vérifient-ils de façon régulière qu’elles sont bien respectées ? | M21: =Results!F27 ->  | N21: =Q4.4 -> 0
A22: =Results!$B$2 -> 0 | E22: =Results!$B$6 -> 0 | G22: =CONCATENATE(Results!$C$4," - ",Results!$B$4) -> 0 - 0 | H22: =CONCATENATE(Results!$C$5," - ",Results!$B$5) -> 0 - 0 | I22: =Results!G28 -> FALSE | J22: Purchasing | K22: =Results!C28 -> Q4.5 | L22: =Results!D28 -> Dans quelle mesure les méthodes de paiement des prestataires favorisent-elles l’efficacité de l’allocation des ressources, par exemple en réduisant la prestation excessive ou en augmentant celle insuffisante des services, et gèrent-elles la croissance des dépenses ? | M22: =Results!F28 ->  | N22: =Q4.5 -> 0
A23: =Results!$B$2 -> 0 | E23: =Results!$B$6 -> 0 | G23: =CONCATENATE(Results!$C$4," - ",Results!$B$4) -> 0 - 0 | H23: =CONCATENATE(Results!$C$5," - ",Results!$B$5) -> 0 - 0 | I23: =Results!G29 -> FALSE | J23: Purchasing | K23: =Results!C29 -> Q4.6 | L23: =Results!D29 -> Dans quelle mesure les formulaires de consultation des patients sont-ils normalisés dans l'ensemble du système de santé et utilisés pour analyser et évaluer l'activité de l’ensemble des prestataires et de la population | M23: =Results!F29 ->  | N23: =Q4.6 -> 0
A24: =Results!$B$2 -> 0 | E24: =Results!$B$6 -> 0 | G24: =CONCATENATE(Results!$C$4," - ",Results!$B$4) -> 0 - 0 | H24: =CONCATENATE(Results!$C$5," - ",Results!$B$5) -> 0 - 0 | I24: =Results!G30 -> FALSE | J24: Purchasing | K24: =Results!C30 -> Q4.7 | L24: =Results!D30 -> Dans quelle mesure les paiements des prestataires couvrent uniquement une partie ou l’ensemble des coûts totaux (y compris les salaires, les dépenses récurrentes, etc.) ? | M24: =Results!F30 ->  | N24: =Q4.7 -> 0
A25: =Results!$B$2 -> 0 | E25: =Results!$B$6 -> 0 | G25: =CONCATENATE(Results!$C$4," - ",Results!$B$4) -> 0 - 0 | H25: =CONCATENATE(Results!$C$5," - ",Results!$B$5) -> 0 - 0 | I25: =Results!G31 -> FALSE | J25: Purchasing | K25: =Results!C31 -> Q4.8 | L25: =Results!D31 -> Dans quelle mesure les prestataires jouissent-ils d’une autonomie financière et sont-ils tenus responsables, dans une mesure réaliste et conforme à leurs capacités ? | M25: =Results!F31 ->  | N25: =Q4.8 -> 0
A26: =Results!$B$2 -> 0 | E26: =Results!$B$6 -> 0 | G26: =CONCATENATE(Results!$C$4," - ",Results!$B$4) -> 0 - 0 | H26: =CONCATENATE(Results!$C$5," - ",Results!$B$5) -> 0 - 0 | I26: =Results!G32 -> FALSE | J26: Purchasing | K26: =Results!C32 -> Q4.9 | L26: =Results!D32 -> Dans quelle mesure l’accréditation des prestataires ou les contrats sélectifs sont-ils établis, fonctionnels et utilisés pour les achats ? | M26: =Results!F32 ->  | N26: =Q4.9 -> 0
A27: =Results!$B$2 -> 0 | E27: =Results!$B$6 -> 0 | G27: =CONCATENATE(Results!$C$4," - ",Results!$B$4) -> 0 - 0 | H27: =CONCATENATE(Results!$C$5," - ",Results!$B$5) -> 0 - 0 | I27: =Results!G33 -> FALSE | J27: Purchasing | K27: =Results!C33 -> Q4.10 | L27: =Results!D33 -> Dans quelle mesure l’achat et le paiement des produits pharmaceutiques sont-ils mis en œuvre pour promouvoir l’utilisation efficace des médicaments (par exemple le recours aux génériques plutôt qu’aux princeps) et pour améliorer la protection financière des patients ? | M27: =Results!F33 ->  | N27: =Q4.10 -> 0
A28: =Results!$B$2 -> 0 | E28: =Results!$B$6 -> 0 | G28: =CONCATENATE(Results!$C$4," - ",Results!$B$4) -> 0 - 0 | H28: =CONCATENATE(Results!$C$5," - ",Results!$B$5) -> 0 - 0 | I28: =Results!G34 -> FALSE | J28: other | K28: =Results!C34 -> Q5.1 | L28: =Results!D34 -> Cette question a été maintenant remplacé par l’étape 1 et le tableau de vue d’ensemble et ne constitue donc plus une question distincte. Merci de bien vous assurer que vous avez complété l’étape 1 car cela vous aidera à remplir les questions de cette section. | M28: =Results!F34 ->  | N28: =Q5.1 -> 0
A29: =Results!$B$2 -> 0 | E29: =Results!$B$6 -> 0 | G29: =CONCATENATE(Results!$C$4," - ",Results!$B$4) -> 0 - 0 | H29: =CONCATENATE(Results!$C$5," - ",Results!$B$5) -> 0 - 0 | I29: =Results!G35 -> FALSE | J29: Benefits | K29: =Results!C35 -> Q5.2 | L29: =Results!D35 -> Dans quelle mesure les décisions et les révisions relatives aux prestations sont-elles prises de manière transparente, sur la base d’un processus clairement défini et de critères convenus, tels que le rapport coût-efficacité, la protection financière, l’impact budgétaire ? | M29: =Results!F35 ->  | N29: =Q5.2 -> 0
A30: =Results!$B$2 -> 0 | E30: =Results!$B$6 -> 0 | G30: =CONCATENATE(Results!$C$4," - ",Results!$B$4) -> 0 - 0 | H30: =CONCATENATE(Results!$C$5," - ",Results!$B$5) -> 0 - 0 | I30: =Results!G36 -> FALSE | J30: Benefits | K30: =Results!C36 -> Q5.3 | L30: =Results!D36 -> Dans quelle mesure les droits à prestation reflètent-ils explicitement les besoins de santé de la population ? | M30: =Results!F36 ->  | N30: =Q5.3 -> 0
A31: =Results!$B$2 -> 0 | E31: =Results!$B$6 -> 0 | G31: =CONCATENATE(Results!$C$4," - ",Results!$B$4) -> 0 - 0 | H31: =CONCATENATE(Results!$C$5," - ",Results!$B$5) -> 0 - 0 | I31: =Results!G37 -> FALSE | J31: Benefits | K31: =Results!C37 -> Q5.4 | L31: =Results!D37 -> Dans quelle mesure les prestations accordent-elles la priorité aux catégories de population prioritaires, par exemple pour une meilleure utilisation des services hautement prioritaires et pour la protection financière ? | M31: =Results!F37 ->  | N31: =Q5.4 -> 0
A32: =Results!$B$2 -> 0 | E32: =Results!$B$6 -> 0 | G32: =CONCATENATE(Results!$C$4," - ",Results!$B$4) -> 0 - 0 | H32: =CONCATENATE(Results!$C$5," - ",Results!$B$5) -> 0 - 0 | I32: =Results!G38 -> FALSE | J32: Benefits | K32: =Results!C38 -> Q5.5 | L32: =Results!D38 -> Dans quelle mesure les droits et obligations de la population sont-ils explicitement définis et compris par les intéressés ? | M32: =Results!F38 ->  | N32: =Q5.5 -> 0
A33: =Results!$B$2 -> 0 | E33: =Results!$B$6 -> 0 | G33: =CONCATENATE(Results!$C$4," - ",Results!$B$4) -> 0 - 0 | H33: =CONCATENATE(Results!$C$5," - ",Results!$B$5) -> 0 - 0 | I33: =Results!G39 -> FALSE | J33: Benefits | K33: =Results!C39 -> Q5.6 | L33: =Results!D39 -> Dans quelle mesure les prestations sont-elles alignées sur le paiement des prestataires, afin de s’assurer qu’elles sont fournies et que les patients bénéficient d’une protection financière ? | M33: =Results!F39 ->  | N33: =Q5.6 -> 0
A34: =Results!$B$2 -> 0 | B34: =code ->  | E34: =Results!$B$6 -> 0 | G34: =CONCATENATE(Results!$C$4," - ",Results!$B$4) -> 0 - 0 | H34: =CONCATENATE(Results!$C$5," - ",Results!$B$5) -> 0 - 0 | I34: =Results!G40 -> FALSE | J34: Benefits | K34: =Results!C40 -> Q5.7 | L34: =Results!D40 -> Dans quelle mesure les prestations, y compris le partage des coûts pour les patients, sont-elles alignées sur les recettes, afin d’assurer un financement adéquat des droits à prestations approuvés ? | M34: =Results!F40 ->  | N34: =Q5.7 -> 0
A35: =Results!$B$2 -> 0 | E35: =Results!$B$6 -> 0 | G35: =CONCATENATE(Results!$C$4," - ",Results!$B$4) -> 0 - 0 | H35: =CONCATENATE(Results!$C$5," - ",Results!$B$5) -> 0 - 0 | I35: =Results!G41 -> FALSE | J35: PFM | K35: =Results!C41 -> Q6.1 | L35: =Results!D41 -> Est-ce qu’un diagnostic/une évaluation approfondi(e) des goulets d’étranglement de la GFP dans le secteur de la santé a été effectué(e) récemment, par exemple au cours des trois dernières années ? | M35: =Results!F41 ->  | N35: =Q6.1 -> 0
A36: =Results!$B$2 -> 0 | E36: =Results!$B$6 -> 0 | G36: =CONCATENATE(Results!$C$4," - ",Results!$B$4) -> 0 - 0 | H36: =CONCATENATE(Results!$C$5," - ",Results!$B$5) -> 0 - 0 | I36: =Results!G42 -> FALSE | J36: PFM | K36: =Results!C42 -> Q6.2 | L36: =Results!D42 -> Le personnel du Ministère de la santé dispose-t-il de capacités à comprendre les (nouvelles) règles de GFP et à les appliquer au processus budgétaire du secteur de la santé ? | M36: =Results!F42 ->  | N36: =Q6.2 -> 0
A37: =Results!$B$2 -> 0 | E37: =Results!$B$6 -> 0 | G37: =CONCATENATE(Results!$C$4," - ",Results!$B$4) -> 0 - 0 | H37: =CONCATENATE(Results!$C$5," - ",Results!$B$5) -> 0 - 0 | I37: =Results!G43 -> FALSE | J37: PFM | K37: =Results!C43 -> Q6.3 | L37: =Results!D43 -> Existe-il un processus budgétaire pluriannuel mis en œuvre efficacement ? | M37: =Results!F43 ->  | N37: =Q6.3 -> 0
A38: =Results!$B$2 -> 0 | E38: =Results!$B$6 -> 0 | G38: =CONCATENATE(Results!$C$4," - ",Results!$B$4) -> 0 - 0 | H38: =CONCATENATE(Results!$C$5," - ",Results!$B$5) -> 0 - 0 | I38: =Results!G44 -> FALSE | J38: PFM | K38: =Results!C44 -> Q6.4 | L38: =Results!D44 -> Dans quelle mesure les allocations budgétaires annuelles en matière de santé sont alignées sur les priorités du secteur de la santé (niveau, structure, nature/objectif) ? | M38: =Results!F44 ->  | N38: =Q6.4 -> 0
A39: =Results!$B$2 -> 0 | E39: =Results!$B$6 -> 0 | G39: =CONCATENATE(Results!$C$4," - ",Results!$B$4) -> 0 - 0 | H39: =CONCATENATE(Results!$C$5," - ",Results!$B$5) -> 0 - 0 | I39: =Results!G45 -> FALSE | J39: PFM | K39: =Results!C45 -> Q6.5 | L39: =Results!D45 -> Dans quelle mesure le processus budgétaire est consultatif, transparent et un processus d’examen et d’ajustement budgétaire à mi-parcours est établi ? | M39: =Results!F45 ->  | N39: =Q6.5 -> 0
A40: =Results!$B$2 -> 0 | E40: =Results!$B$6 -> 0 | G40: =CONCATENATE(Results!$C$4," - ",Results!$B$4) -> 0 - 0 | H40: =CONCATENATE(Results!$C$5," - ",Results!$B$5) -> 0 - 0 | I40: =Results!G46 -> FALSE | J40: PFM | K40: =Results!C46 -> Q6.6 | L40: =Results!D46 -> Dans quelle mesure les transferts fiscaux sont conçus et mis en œuvre de sorte à améliorer l’équité de la distribution des ressources dans le secteur de la santé? | M40: =Results!F46 ->  | N40: =Q6.6 -> 0
A41: =Results!$B$2 -> 0 | E41: =Results!$B$6 -> 0 | G41: =CONCATENATE(Results!$C$4," - ",Results!$B$4) -> 0 - 0 | H41: =CONCATENATE(Results!$C$5," - ",Results!$B$5) -> 0 - 0 | I41: =Results!G47 -> FALSE | J41: PFM | K41: =Results!C47 -> Q6.7 | L41: =Results!D47 -> Dans quelle mesure les règles du budget de la santé permettent-elles une certaine souplesse des dépenses? | M41: =Results!F47 ->  | N41: =Q6.7 -> 0
A42: =Results!$B$2 -> 0 | E42: =Results!$B$6 -> 0 | G42: =CONCATENATE(Results!$C$4," - ",Results!$B$4) -> 0 - 0 | H42: =CONCATENATE(Results!$C$5," - ",Results!$B$5) -> 0 - 0 | I42: =Results!G48 -> FALSE | J42: PFM | K42: =Results!C48 -> Q6.8 | L42: =Results!D48 -> La flexibilité dans l’utilisation des ressources est-elle assurée ou déléguée au bon niveau? | M42: =Results!F48 ->  | N42: =Q6.8 -> 0
A43: =Results!$B$2 -> 0 | E43: =Results!$B$6 -> 0 | G43: =CONCATENATE(Results!$C$4," - ",Results!$B$4) -> 0 - 0 | H43: =CONCATENATE(Results!$C$5," - ",Results!$B$5) -> 0 - 0 | I43: =Results!G49 -> FALSE | J43: PFM | K43: =Results!C49 -> Q6.9 | L43: =Results!D49 -> Dans quelle mesure des politiques de discipline budgétaire visant à contrôler les dépenses sont en vigueur (par exemple, gestion de la trésorerie, respect des règles d’approvisionnement) et mises en œuvre efficacement? | M43: =Results!F49 ->  | N43: =Q6.9 -> 0
A44: =Results!$B$2 -> 0 | E44: =Results!$B$6 -> 0 | G44: =CONCATENATE(Results!$C$4," - ",Results!$B$4) -> 0 - 0 | H44: =CONCATENATE(Results!$C$5," - ",Results!$B$5) -> 0 - 0 | I44: =Results!G50 -> FALSE | J44: PFM | K44: =Results!C50 -> Q6.10 | L44: =Results!D50 -> Dans quelle mesure des systèmes d’information sont en place pour répondre aux besoins en matière de responsabilité financière et pour assurer le suivi des performances du secteur de la santé? | M44: =Results!F50 ->  | N44: =Q6.10 -> 0
A45: =Results!$B$2 -> 0 | E45: =Results!$B$6 -> 0 | G45: =CONCATENATE(Results!$C$4," - ",Results!$B$4) -> 0 - 0 | H45: =CONCATENATE(Results!$C$5," - ",Results!$B$5) -> 0 - 0 | I45: =Results!G51 -> FALSE | J45: PFM | K45: =Results!C51 -> Q6.11 | L45: =Results!D51 -> Dans quelle mesure les flux financiers multiples, la structure budgétaire et les règles de GFP sont alignés sur les politiques d’achats stratégiques? | M45: =Results!F51 ->  | N45: =Q6.11 -> 0
A46: =Results!$B$2 -> 0 | E46: =Results!$B$6 -> 0 | G46: =CONCATENATE(Results!$C$4," - ",Results!$B$4) -> 0 - 0 | H46: =CONCATENATE(Results!$C$5," - ",Results!$B$5) -> 0 - 0 | I46: =Results!G52 -> FALSE | J46: Governance | K46: =Results!C52 -> Q7.1 | L46: =Results!D52 -> Dans quelle mesure les rôles et les responsabilités (liés aux objectifs de financement de la santé et au rendement en matière de collecte de recettes, de mise en commun, d’achats, de prestations, etc.) sont clairement définis et répartis entre les institutions responsables du financement de la santé ? | M46: =Results!F52 ->  | N46: =Q7.1 -> 0
A47: =Results!$B$2 -> 0 | E47: =Results!$B$6 -> 0 | G47: =CONCATENATE(Results!$C$4," - ",Results!$B$4) -> 0 - 0 | H47: =CONCATENATE(Results!$C$5," - ",Results!$B$5) -> 0 - 0 | I47: =Results!G53 -> FALSE | J47: Governance | K47: =Results!C53 -> Q7.2 | L47: =Results!D53 -> Dans quelle mesure les institutions responsables du financement de la santé disposent-elles de capacités adéquates, notamment en matière de ressources humaines (capacités techniques et managériales) et de TIC ? | M47: =Results!F53 ->  | N47: =Q7.2 -> 0
A48: =Results!$B$2 -> 0 | E48: =Results!$B$6 -> 0 | G48: =CONCATENATE(Results!$C$4," - ",Results!$B$4) -> 0 - 0 | H48: =CONCATENATE(Results!$C$5," - ",Results!$B$5) -> 0 - 0 | I48: =Results!G54 -> FALSE | J48: Governance | K48: =Results!C54 -> Q7.3 | L48: =Results!D54 -> Dans quelle mesure les mécanismes de responsabilisation des organismes d’achat/de financement (y compris l’autonomie et le conseil d’administration de l’agence d’assurance-maladie, les mécanismes de récompense/sanction, etc.) sont-ils en place pour s’assurer que la politique de financement de la santé appuie les progrès vers les objectifs du secteur et que les fonds sont utilisés efficacement pour les populations, programmes et services prioritaires ? | M48: =Results!F54 ->  | N48: =Q7.3 -> 0
A49: =Results!$B$2 -> 0 | E49: =Results!$B$6 -> 0 | G49: =CONCATENATE(Results!$C$4," - ",Results!$B$4) -> 0 - 0 | H49: =CONCATENATE(Results!$C$5," - ",Results!$B$5) -> 0 - 0 | I49: =Results!G55 -> FALSE | J49: Governance | K49: =Results!C55 -> Q7.4 | L49: =Results!D55 -> L’utilisation des fonds ou les performances des institutions achetant des services auprès des prestataires de services de santé ou le budget de la santé ont-ils été communiqués au public (par exemple sous forme de rapport annuel) ? | M49: =Results!F55 ->  | N49: =Q7.4 -> 0
A50: =Results!$B$2 -> 0 | E50: =Results!$B$6 -> 0 | G50: =CONCATENATE(Results!$C$4," - ",Results!$B$4) -> 0 - 0 | H50: =CONCATENATE(Results!$C$5," - ",Results!$B$5) -> 0 - 0 | I50: =Results!G56 -> FALSE | J50: Governance | K50: =Results!C56 -> Q7.5 | L50: =Results!D56 -> Dans quelle mesure le Ministère des finances, le Ministère de la santé et l’organisme national d’assurance-maladie participent au processus d’élaboration des politiques de financement de la santé et en sont informés ? | M50: =Results!F56 ->  | N50: =Q7.5 -> 0
A51: =Results!$B$2 -> 0 | E51: =Results!$B$6 -> 0 | G51: =CONCATENATE(Results!$C$4," - ",Results!$B$4) -> 0 - 0 | H51: =CONCATENATE(Results!$C$5," - ",Results!$B$5) -> 0 - 0 | I51: =Results!G57 -> FALSE | J51: Governance | K51: =Results!C57 -> Q7.6 | L51: =Results!D57 -> Dans quelle mesure le processus d’élaboration des politiques de financement de la santé est transparent et participatif? | M51: =Results!F57 ->  | N51: =Q7.6 -> 0
A52: =Results!$B$2 -> 0 | E52: =Results!$B$6 -> 0 | G52: =CONCATENATE(Results!$C$4," - ",Results!$B$4) -> 0 - 0 | H52: =CONCATENATE(Results!$C$5," - ",Results!$B$5) -> 0 - 0 | I52: FALSE | J52: Stage1 | K52: =Results!$B$63 -> HEALTH INSURANCE SCHEME (add specific name in your country) | L52: =Results!A64 -> POPULATION CIBLE Tous les citoyens sont-ils couverts ou un sous-groupe spécifique, par exemple moins de 5 ans, salariés? | M52: =QA.1.1 -> 0 | N52: 0
A53: =Results!$B$2 -> 0 | E53: =Results!$B$6 -> 0 | G53: =CONCATENATE(Results!$C$4," - ",Results!$B$4) -> 0 - 0 | H53: =CONCATENATE(Results!$C$5," - ",Results!$B$5) -> 0 - 0 | I53: FALSE | J53: Stage1 | K53: =Results!$B$63 -> HEALTH INSURANCE SCHEME (add specific name in your country) | L53: =Results!A65 -> POPULATION COUVERTE / souscrite Nombre réel relatif à la pop cible. | M53: =QA.1.2 -> 0 | N53: 0
A54: =Results!$B$2 -> 0 | E54: =Results!$B$6 -> 0 | G54: =CONCATENATE(Results!$C$4," - ",Results!$B$4) -> 0 - 0 | H54: =CONCATENATE(Results!$C$5," - ",Results!$B$5) -> 0 - 0 | I54: FALSE | J54: Stage1 | K54: =Results!$B$63 -> HEALTH INSURANCE SCHEME (add specific name in your country) | L54: =Results!A66 -> BASE DE COUVERTURE / SOUSCRIPTION Par exemple. obligatoire, automatique, volontaire | M54: =QA.1.3 -> 0 | N54: 0
A55: =Results!$B$2 -> 0 | E55: =Results!$B$6 -> 0 | G55: =CONCATENATE(Results!$C$4," - ",Results!$B$4) -> 0 - 0 | H55: =CONCATENATE(Results!$C$5," - ",Results!$B$5) -> 0 - 0 | I55: FALSE | J55: Stage1 | K55: =Results!$B$63 -> HEALTH INSURANCE SCHEME (add specific name in your country) | L55: =Results!A67 -> AVANTAGES / DROITS Une liste de services ou niveau de soins est-elle définie? Est-ce que les utilisateurs doivent faire des co-paiements? | M55: =QA.1.4 -> 0 | N55: 0
A56: =Results!$B$2 -> 0 | E56: =Results!$B$6 -> 0 | G56: =CONCATENATE(Results!$C$4," - ",Results!$B$4) -> 0 - 0 | H56: =CONCATENATE(Results!$C$5," - ",Results!$B$5) -> 0 - 0 | I56: FALSE | J56: Stage1 | K56: =Results!$B$63 -> HEALTH INSURANCE SCHEME (add specific name in your country) | L56: =Results!A68 -> SOURCES DE REVENUS D'où vient l'argent? Allocations / transferts budgétaires; contributions prépayées. | M56: =QA.1.5 -> 0 | N56: 0
A57: =Results!$B$2 -> 0 | E57: =Results!$B$6 -> 0 | G57: =CONCATENATE(Results!$C$4," - ",Results!$B$4) -> 0 - 0 | H57: =CONCATENATE(Results!$C$5," - ",Results!$B$5) -> 0 - 0 | I57: FALSE | J57: Stage1 | K57: =Results!$B$63 -> HEALTH INSURANCE SCHEME (add specific name in your country) | L57: =Results!A69 -> ACCORDS DE MISE EN COMMUN Le budget de la santé est-il alloué aux autorités régionales, existe-t-il un ou plusieurs fonds d '«assurance»? | M57: =QA.1.6 -> 0 | N57: 0
A58: =Results!$B$2 -> 0 | E58: =Results!$B$6 -> 0 | G58: =CONCATENATE(Results!$C$4," - ",Results!$B$4) -> 0 - 0 | H58: =CONCATENATE(Results!$C$5," - ",Results!$B$5) -> 0 - 0 | I58: FALSE | J58: Stage1 | K58: =Results!$B$63 -> HEALTH INSURANCE SCHEME (add specific name in your country) | L58: =Results!A70 -> MODALITES D'ACHAT Décrivez les arrangements de gestion et de gouvernance? | M58: =QA.1.7 -> 0 | N58: 0
A59: =Results!$B$2 -> 0 | E59: =Results!$B$6 -> 0 | G59: =CONCATENATE(Results!$C$4," - ",Results!$B$4) -> 0 - 0 | H59: =CONCATENATE(Results!$C$5," - ",Results!$B$5) -> 0 - 0 | I59: FALSE | J59: Stage1 | K59: =Results!$B$63 -> HEALTH INSURANCE SCHEME (add specific name in your country) | L59: =Results!A71 -> PAIEMENT DU FOURNISSEUR Par exemple. les entrées par ligne ou poste budgétaire; Ticket de soins/Service, paiement au cas par cas, capitation, basé sur performances? | M59: =QA.1.8 -> 0 | N59: 0
A60: =Results!$B$2 -> 0 | E60: =Results!$B$6 -> 0 | G60: =CONCATENATE(Results!$C$4," - ",Results!$B$4) -> 0 - 0 | H60: =CONCATENATE(Results!$C$5," - ",Results!$B$5) -> 0 - 0 | I60: FALSE | J60: Stage1 | K60: =Results!$B$63 -> HEALTH INSURANCE SCHEME (add specific name in your country) | L60: =Results!A72 -> PRESTATION DE SERVICES & CONTRACTUALISATION De quels fournisseurs les services sont-ils achetés? Public-privé? Des contrats / accords de services sont-ils utilisés? | M60: =QA.1.9 -> 0 | N60: 0
A61: =Results!$B$2 -> 0 | E61: =Results!$B$6 -> 0 | G61: =CONCATENATE(Results!$C$4," - ",Results!$B$4) -> 0 - 0 | H61: =CONCATENATE(Results!$C$5," - ",Results!$B$5) -> 0 - 0 | I61: FALSE | J61: Stage1 | K61: =Results!$C$63 -> OTHER COVERAGE SCHEME (add specific name in your country) | L61: =L52 -> POPULATION CIBLE Tous les citoyens sont-ils couverts ou un sous-groupe spécifique, par exemple moins de 5 ans, salariés? | M61: =QA.2.1 -> 0 | N61: 0
A62: =Results!$B$2 -> 0 | E62: =Results!$B$6 -> 0 | G62: =CONCATENATE(Results!$C$4," - ",Results!$B$4) -> 0 - 0 | H62: =CONCATENATE(Results!$C$5," - ",Results!$B$5) -> 0 - 0 | I62: FALSE | J62: Stage1 | K62: =K61 -> OTHER COVERAGE SCHEME (add specific name in your country) | L62: =L53 -> POPULATION COUVERTE / souscrite Nombre réel relatif à la pop cible. | M62: =QA.2.2 -> 0 | N62: 0
A63: =Results!$B$2 -> 0 | E63: =Results!$B$6 -> 0 | G63: =CONCATENATE(Results!$C$4," - ",Results!$B$4) -> 0 - 0 | H63: =CONCATENATE(Results!$C$5," - ",Results!$B$5) -> 0 - 0 | I63: FALSE | J63: Stage1 | K63: =K62 -> OTHER COVERAGE SCHEME (add specific name in your country) | L63: BASE DE COUVERTURE / SOUSCRIPTION Par exemple. obligatoire, automatique, volontaire | M63: =QA.2.3 -> 0 | N63: 0
A64: =Results!$B$2 -> 0 | E64: =Results!$B$6 -> 0 | G64: =CONCATENATE(Results!$C$4," - ",Results!$B$4) -> 0 - 0 | H64: =CONCATENATE(Results!$C$5," - ",Results!$B$5) -> 0 - 0 | I64: FALSE | J64: Stage1 | K64: OTHER COVERAGE SCHEME (add specific name in your country) | L64: AVANTAGES / DROITS Une liste de services ou niveau de soins est-elle définie? Est-ce que les utilisateurs doivent faire des co-paiements? | M64: =QA.2.4 -> 0 | N64: 0
A65: =Results!$B$2 -> 0 | E65: =Results!$B$6 -> 0 | G65: =CONCATENATE(Results!$C$4," - ",Results!$B$4) -> 0 - 0 | H65: =CONCATENATE(Results!$C$5," - ",Results!$B$5) -> 0 - 0 | I65: FALSE | J65: Stage1 | K65: OTHER COVERAGE SCHEME (add specific name in your country) | L65: SOURCES DE REVENUS D'où vient l'argent? Allocations / transferts budgétaires; contributions prépayées. | M65: =QA.2.5 -> 0 | N65: 0
A66: =Results!$B$2 -> 0 | E66: =Results!$B$6 -> 0 | G66: =CONCATENATE(Results!$C$4," - ",Results!$B$4) -> 0 - 0 | H66: =CONCATENATE(Results!$C$5," - ",Results!$B$5) -> 0 - 0 | I66: FALSE | J66: Stage1 | K66: OTHER COVERAGE SCHEME (add specific name in your country) | L66: ACCORDS DE MISE EN COMMUN Le budget de la santé est-il alloué aux autorités régionales, existe-t-il un ou plusieurs fonds d '«assurance»? | M66: =QA.2.6 -> 0 | N66: 0
A67: =Results!$B$2 -> 0 | E67: =Results!$B$6 -> 0 | G67: =CONCATENATE(Results!$C$4," - ",Results!$B$4) -> 0 - 0 | H67: =CONCATENATE(Results!$C$5," - ",Results!$B$5) -> 0 - 0 | I67: FALSE | J67: Stage1 | K67: OTHER COVERAGE SCHEME (add specific name in your country) | L67: MODALITES D'ACHAT Décrivez les arrangements de gestion et de gouvernance? | M67: =QA.2.7 -> 0 | N67: 0
A68: =Results!$B$2 -> 0 | C68: =C67 ->  | D68: =D67 ->  | E68: =Results!$B$6 -> 0 | G68: =CONCATENATE(Results!$C$4," - ",Results!$B$4) -> 0 - 0 | H68: =CONCATENATE(Results!$C$5," - ",Results!$B$5) -> 0 - 0 | I68: FALSE | J68: Stage1 | K68: OTHER COVERAGE SCHEME (add specific name in your country) | L68: PAIEMENT DU FOURNISSEUR Par exemple. les entrées par ligne ou poste budgétaire; Ticket de soins/Service, paiement au cas par cas, capitation, basé sur performances? | M68: =QA.2.8 -> 0 | N68: 0
A69: =Results!$B$2 -> 0 | E69: =Results!$B$6 -> 0 | G69: =CONCATENATE(Results!$C$4," - ",Results!$B$4) -> 0 - 0 | H69: =CONCATENATE(Results!$C$5," - ",Results!$B$5) -> 0 - 0 | I69: FALSE | J69: Stage1 | K69: OTHER COVERAGE SCHEME (add specific name in your country) | L69: PRESTATION DE SERVICES & CONTRACTUALISATION De quels fournisseurs les services sont-ils achetés? Public-privé? Des contrats / accords de services sont-ils utilisés? | M69: =QA.2.9 -> 0 | N69: 0
A70: =Results!$B$2 -> 0 | E70: =Results!$B$6 -> 0 | G70: =CONCATENATE(Results!$C$4," - ",Results!$B$4) -> 0 - 0 | H70: =CONCATENATE(Results!$C$5," - ",Results!$B$5) -> 0 - 0 | I70: FALSE | J70: Stage1 | K70: =Results!$D$63 -> OTHER COVERAGE SCHEME (add specific name in your country) | L70: =L61 -> POPULATION CIBLE Tous les citoyens sont-ils couverts ou un sous-groupe spécifique, par exemple moins de 5 ans, salariés? | M70: =QA.3.1 -> 0 | N70: 0
A71: =Results!$B$2 -> 0 | E71: =Results!$B$6 -> 0 | G71: =CONCATENATE(Results!$C$4," - ",Results!$B$4) -> 0 - 0 | H71: =CONCATENATE(Results!$C$5," - ",Results!$B$5) -> 0 - 0 | I71: FALSE | J71: Stage1 | K71: =K70 -> OTHER COVERAGE SCHEME (add specific name in your country) | L71: POPULATION COUVERTE / souscrite Nombre réel relatif à la pop cible. | M71: =QA.3.2 -> 0 | N71: 0
A72: =Results!$B$2 -> 0 | E72: =Results!$B$6 -> 0 | G72: =CONCATENATE(Results!$C$4," - ",Results!$B$4) -> 0 - 0 | H72: =CONCATENATE(Results!$C$5," - ",Results!$B$5) -> 0 - 0 | I72: FALSE | J72: Stage1 | K72: =K71 -> OTHER COVERAGE SCHEME (add specific name in your country) | L72: BASE DE COUVERTURE / SOUSCRIPTION Par exemple. obligatoire, automatique, volontaire | M72: =QA.3.3 -> 0 | N72: 0
A73: =Results!$B$2 -> 0 | E73: =Results!$B$6 -> 0 | G73: =CONCATENATE(Results!$C$4," - ",Results!$B$4) -> 0 - 0 | H73: =CONCATENATE(Results!$C$5," - ",Results!$B$5) -> 0 - 0 | I73: FALSE | J73: Stage1 | K73: OTHER COVERAGE SCHEME (add specific name in your country) | L73: AVANTAGES / DROITS Une liste de services ou niveau de soins est-elle définie? Est-ce que les utilisateurs doivent faire des co-paiements? | M73: =QA.3.4 -> 0 | N73: 0
A74: =Results!$B$2 -> 0 | E74: =Results!$B$6 -> 0 | G74: =CONCATENATE(Results!$C$4," - ",Results!$B$4) -> 0 - 0 | H74: =CONCATENATE(Results!$C$5," - ",Results!$B$5) -> 0 - 0 | I74: FALSE | J74: Stage1 | K74: OTHER COVERAGE SCHEME (add specific name in your country) | L74: SOURCES DE REVENUS D'où vient l'argent? Allocations / transferts budgétaires; contributions prépayées. | M74: =QA.3.5 -> 0 | N74: 0
A75: =Results!$B$2 -> 0 | E75: =Results!$B$6 -> 0 | G75: =CONCATENATE(Results!$C$4," - ",Results!$B$4) -> 0 - 0 | H75: =CONCATENATE(Results!$C$5," - ",Results!$B$5) -> 0 - 0 | I75: FALSE | J75: Stage1 | K75: OTHER COVERAGE SCHEME (add specific name in your country) | L75: ACCORDS DE MISE EN COMMUN Le budget de la santé est-il alloué aux autorités régionales, existe-t-il un ou plusieurs fonds d '«assurance»? | M75: =QA.3.6 -> 0 | N75: 0
A76: =Results!$B$2 -> 0 | E76: =Results!$B$6 -> 0 | G76: =CONCATENATE(Results!$C$4," - ",Results!$B$4) -> 0 - 0 | H76: =CONCATENATE(Results!$C$5," - ",Results!$B$5) -> 0 - 0 | I76: FALSE | J76: Stage1 | K76: OTHER COVERAGE SCHEME (add specific name in your country) | L76: MODALITES D'ACHAT Décrivez les arrangements de gestion et de gouvernance? | M76: =QA.3.7 -> 0 | N76: 0
A77: =Results!$B$2 -> 0 | E77: =Results!$B$6 -> 0 | G77: =CONCATENATE(Results!$C$4," - ",Results!$B$4) -> 0 - 0 | H77: =CONCATENATE(Results!$C$5," - ",Results!$B$5) -> 0 - 0 | I77: FALSE | J77: Stage1 | K77: OTHER COVERAGE SCHEME (add specific name in your country) | L77: PAIEMENT DU FOURNISSEUR Par exemple. les entrées par ligne ou poste budgétaire; Ticket de soins/Service, paiement au cas par cas, capitation, basé sur performances? | M77: =QA.3.8 -> 0 | N77: 0
A78: =Results!$B$2 -> 0 | E78: =Results!$B$6 -> 0 | G78: =CONCATENATE(Results!$C$4," - ",Results!$B$4) -> 0 - 0 | H78: =CONCATENATE(Results!$C$5," - ",Results!$B$5) -> 0 - 0 | I78: FALSE | J78: Stage1 | K78: OTHER COVERAGE SCHEME (add specific name in your country) | L78: PRESTATION DE SERVICES & CONTRACTUALISATION De quels fournisseurs les services sont-ils achetés? Public-privé? Des contrats / accords de services sont-ils utilisés? | M78: =QA.3.9 -> 0 | N78: 0
A79: =Results!$B$2 -> 0 | E79: =Results!$B$6 -> 0 | G79: =CONCATENATE(Results!$C$4," - ",Results!$B$4) -> 0 - 0 | H79: =CONCATENATE(Results!$C$5," - ",Results!$B$5) -> 0 - 0 | I79: FALSE | J79: Stage1 | K79: =Results!$E$63 -> OTHER COVERAGE SCHEME (add specific name in your country) | L79: =L70 -> POPULATION CIBLE Tous les citoyens sont-ils couverts ou un sous-groupe spécifique, par exemple moins de 5 ans, salariés? | M79: =QA.4.1 -> 0 | N79: 0
A80: =Results!$B$2 -> 0 | E80: =Results!$B$6 -> 0 | G80: =CONCATENATE(Results!$C$4," - ",Results!$B$4) -> 0 - 0 | H80: =CONCATENATE(Results!$C$5," - ",Results!$B$5) -> 0 - 0 | I80: FALSE | J80: Stage1 | K80: =K79 -> OTHER COVERAGE SCHEME (add specific name in your country) | L80: POPULATION COUVERTE / souscrite Nombre réel relatif à la pop cible. | M80: =QA.4.2 -> 0 | N80: 0
A81: =Results!$B$2 -> 0 | E81: =Results!$B$6 -> 0 | G81: =CONCATENATE(Results!$C$4," - ",Results!$B$4) -> 0 - 0 | H81: =CONCATENATE(Results!$C$5," - ",Results!$B$5) -> 0 - 0 | I81: FALSE | J81: Stage1 | K81: =K80 -> OTHER COVERAGE SCHEME (add specific name in your country) | L81: BASE DE COUVERTURE / SOUSCRIPTION Par exemple. obligatoire, automatique, volontaire | M81: =QA.4.3 -> 0 | N81: 0
A82: =Results!$B$2 -> 0 | E82: =Results!$B$6 -> 0 | G82: =CONCATENATE(Results!$C$4," - ",Results!$B$4) -> 0 - 0 | H82: =CONCATENATE(Results!$C$5," - ",Results!$B$5) -> 0 - 0 | I82: FALSE | J82: Stage1 | K82: OTHER COVERAGE SCHEME (add specific name in your country) | L82: AVANTAGES / DROITS Une liste de services ou niveau de soins est-elle définie? Est-ce que les utilisateurs doivent faire des co-paiements? | M82: =QA.4.4 -> 0 | N82: 0
A83: =Results!$B$2 -> 0 | E83: =Results!$B$6 -> 0 | G83: =CONCATENATE(Results!$C$4," - ",Results!$B$4) -> 0 - 0 | H83: =CONCATENATE(Results!$C$5," - ",Results!$B$5) -> 0 - 0 | I83: FALSE | J83: Stage1 | K83: OTHER COVERAGE SCHEME (add specific name in your country) | L83: SOURCES DE REVENUS D'où vient l'argent? Allocations / transferts budgétaires; contributions prépayées. | M83: =QA.4.5 -> 0 | N83: 0
A84: =Results!$B$2 -> 0 | E84: =Results!$B$6 -> 0 | G84: =CONCATENATE(Results!$C$4," - ",Results!$B$4) -> 0 - 0 | H84: =CONCATENATE(Results!$C$5," - ",Results!$B$5) -> 0 - 0 | I84: FALSE | J84: Stage1 | K84: OTHER COVERAGE SCHEME (add specific name in your country) | L84: ACCORDS DE MISE EN COMMUN Le budget de la santé est-il alloué aux autorités régionales, existe-t-il un ou plusieurs fonds d '«assurance»? | M84: =QA.4.6 -> 0 | N84: 0
A85: =Results!$B$2 -> 0 | E85: =Results!$B$6 -> 0 | G85: =CONCATENATE(Results!$C$4," - ",Results!$B$4) -> 0 - 0 | H85: =CONCATENATE(Results!$C$5," - ",Results!$B$5) -> 0 - 0 | I85: FALSE | J85: Stage1 | K85: OTHER COVERAGE SCHEME (add specific name in your country) | L85: MODALITES D'ACHAT Décrivez les arrangements de gestion et de gouvernance? | M85: =QA.4.7 -> 0 | N85: 0
A86: =Results!$B$2 -> 0 | E86: =Results!$B$6 -> 0 | G86: =CONCATENATE(Results!$C$4," - ",Results!$B$4) -> 0 - 0 | H86: =CONCATENATE(Results!$C$5," - ",Results!$B$5) -> 0 - 0 | I86: FALSE | J86: Stage1 | K86: OTHER COVERAGE SCHEME (add specific name in your country) | L86: PAIEMENT DU FOURNISSEUR Par exemple. les entrées par ligne ou poste budgétaire; Ticket de soins/Service, paiement au cas par cas, capitation, basé sur performances? | M86: =QA.4.8 -> 0 | N86: 0
A87: =Results!$B$2 -> 0 | E87: =Results!$B$6 -> 0 | G87: =CONCATENATE(Results!$C$4," - ",Results!$B$4) -> 0 - 0 | H87: =CONCATENATE(Results!$C$5," - ",Results!$B$5) -> 0 - 0 | I87: FALSE | J87: Stage1 | K87: OTHER COVERAGE SCHEME (add specific name in your country) | L87: PRESTATION DE SERVICES & CONTRACTUALISATION De quels fournisseurs les services sont-ils achetés? Public-privé? Des contrats / accords de services sont-ils utilisés? | M87: =QA.4.9 -> 0 | N87: 0
A88: =Results!$B$2 -> 0 | E88: =Results!$B$6 -> 0 | G88: =CONCATENATE(Results!$C$4," - ",Results!$B$4) -> 0 - 0 | H88: =CONCATENATE(Results!$C$5," - ",Results!$B$5) -> 0 - 0 | I88: FALSE | J88: Stage1 | K88: =Results!$F$63 -> OTHER COVERAGE SCHEME (add specific name in your country) | L88: =L79 -> POPULATION CIBLE Tous les citoyens sont-ils couverts ou un sous-groupe spécifique, par exemple moins de 5 ans, salariés? | M88: =QA.5.1 -> 0 | N88: 0
A89: =Results!$B$2 -> 0 | E89: =Results!$B$6 -> 0 | G89: =CONCATENATE(Results!$C$4," - ",Results!$B$4) -> 0 - 0 | H89: =CONCATENATE(Results!$C$5," - ",Results!$B$5) -> 0 - 0 | I89: FALSE | J89: Stage1 | K89: =K88 -> OTHER COVERAGE SCHEME (add specific name in your country) | L89: POPULATION COUVERTE / souscrite Nombre réel relatif à la pop cible. | M89: =QA.5.2 -> 0 | N89: 0
A90: =Results!$B$2 -> 0 | E90: =Results!$B$6 -> 0 | G90: =CONCATENATE(Results!$C$4," - ",Results!$B$4) -> 0 - 0 | H90: =CONCATENATE(Results!$C$5," - ",Results!$B$5) -> 0 - 0 | I90: FALSE | J90: Stage1 | K90: =K89 -> OTHER COVERAGE SCHEME (add specific name in your country) | L90: BASE DE COUVERTURE / SOUSCRIPTION Par exemple. obligatoire, automatique, volontaire | M90: =QA.5.3 -> 0 | N90: 0
A91: =Results!$B$2 -> 0 | E91: =Results!$B$6 -> 0 | G91: =CONCATENATE(Results!$C$4," - ",Results!$B$4) -> 0 - 0 | H91: =CONCATENATE(Results!$C$5," - ",Results!$B$5) -> 0 - 0 | I91: FALSE | J91: Stage1 | K91: OTHER COVERAGE SCHEME (add specific name in your country) | L91: AVANTAGES / DROITS Une liste de services ou niveau de soins est-elle définie? Est-ce que les utilisateurs doivent faire des co-paiements? | M91: =QA.5.4 -> 0 | N91: 0
A92: =Results!$B$2 -> 0 | E92: =Results!$B$6 -> 0 | G92: =CONCATENATE(Results!$C$4," - ",Results!$B$4) -> 0 - 0 | H92: =CONCATENATE(Results!$C$5," - ",Results!$B$5) -> 0 - 0 | I92: FALSE | J92: Stage1 | K92: OTHER COVERAGE SCHEME (add specific name in your country) | L92: SOURCES DE REVENUS D'où vient l'argent? Allocations / transferts budgétaires; contributions prépayées. | M92: =QA.5.5 -> 0 | N92: 0
A93: =Results!$B$2 -> 0 | E93: =Results!$B$6 -> 0 | G93: =CONCATENATE(Results!$C$4," - ",Results!$B$4) -> 0 - 0 | H93: =CONCATENATE(Results!$C$5," - ",Results!$B$5) -> 0 - 0 | I93: FALSE | J93: Stage1 | K93: OTHER COVERAGE SCHEME (add specific name in your country) | L93: ACCORDS DE MISE EN COMMUN Le budget de la santé est-il alloué aux autorités régionales, existe-t-il un ou plusieurs fonds d '«assurance»? | M93: =QA.5.6 -> 0 | N93: 0
A94: =Results!$B$2 -> 0 | E94: =Results!$B$6 -> 0 | G94: =CONCATENATE(Results!$C$4," - ",Results!$B$4) -> 0 - 0 | H94: =CONCATENATE(Results!$C$5," - ",Results!$B$5) -> 0 - 0 | I94: FALSE | J94: Stage1 | K94: OTHER COVERAGE SCHEME (add specific name in your country) | L94: MODALITES D'ACHAT Décrivez les arrangements de gestion et de gouvernance? | M94: =QA.5.7 -> 0 | N94: 0
A95: =Results!$B$2 -> 0 | E95: =Results!$B$6 -> 0 | G95: =CONCATENATE(Results!$C$4," - ",Results!$B$4) -> 0 - 0 | H95: =CONCATENATE(Results!$C$5," - ",Results!$B$5) -> 0 - 0 | I95: FALSE | J95: Stage1 | K95: OTHER COVERAGE SCHEME (add specific name in your country) | L95: PAIEMENT DU FOURNISSEUR Par exemple. les entrées par ligne ou poste budgétaire; Ticket de soins/Service, paiement au cas par cas, capitation, basé sur performances? | M95: =QA.5.8 -> 0 | N95: 0
A96: =Results!$B$2 -> 0 | E96: =Results!$B$6 -> 0 | G96: =CONCATENATE(Results!$C$4," - ",Results!$B$4) -> 0 - 0 | H96: =CONCATENATE(Results!$C$5," - ",Results!$B$5) -> 0 - 0 | I96: FALSE | J96: Stage1 | K96: OTHER COVERAGE SCHEME (add specific name in your country) | L96: PRESTATION DE SERVICES & CONTRACTUALISATION De quels fournisseurs les services sont-ils achetés? Public-privé? Des contrats / accords de services sont-ils utilisés? | M96: =QA.5.9 -> 0 | N96: 0
A97: =Results!$B$2 -> 0 | E97: =Results!$B$6 -> 0 | G97: =CONCATENATE(Results!$C$4," - ",Results!$B$4) -> 0 - 0 | H97: =CONCATENATE(Results!$C$5," - ",Results!$B$5) -> 0 - 0 | I97: FALSE | J97: Stage1 | K97: =Results!$G$63 -> OTHER COVERAGE SCHEME (add specific name in your country) | L97: =L88 -> POPULATION CIBLE Tous les citoyens sont-ils couverts ou un sous-groupe spécifique, par exemple moins de 5 ans, salariés? | M97: =QA.6.1 -> 0 | N97: 0
A98: =Results!$B$2 -> 0 | E98: =Results!$B$6 -> 0 | G98: =CONCATENATE(Results!$C$4," - ",Results!$B$4) -> 0 - 0 | H98: =CONCATENATE(Results!$C$5," - ",Results!$B$5) -> 0 - 0 | I98: FALSE | J98: Stage1 | K98: =K97 -> OTHER COVERAGE SCHEME (add specific name in your country) | L98: POPULATION COUVERTE / souscrite Nombre réel relatif à la pop cible. | M98: =QA.6.2 -> 0 | N98: 0
A99: =Results!$B$2 -> 0 | E99: =Results!$B$6 -> 0 | G99: =CONCATENATE(Results!$C$4," - ",Results!$B$4) -> 0 - 0 | H99: =CONCATENATE(Results!$C$5," - ",Results!$B$5) -> 0 - 0 | I99: FALSE | J99: Stage1 | K99: =K98 -> OTHER COVERAGE SCHEME (add specific name in your country) | L99: BASE DE COUVERTURE / SOUSCRIPTION Par exemple. obligatoire, automatique, volontaire | M99: =QA.6.3 -> 0 | N99: 0
A100: =Results!$B$2 -> 0 | E100: =Results!$B$6 -> 0 | G100: =CONCATENATE(Results!$C$4," - ",Results!$B$4) -> 0 - 0 | H100: =CONCATENATE(Results!$C$5," - ",Results!$B$5) -> 0 - 0 | I100: FALSE | J100: Stage1 | K100: OTHER COVERAGE SCHEME (add specific name in your country) | L100: AVANTAGES / DROITS Une liste de services ou niveau de soins est-elle définie? Est-ce que les utilisateurs doivent faire des co-paiements? | M100: =QA.6.4 -> 0 | N100: 0
A101: =Results!$B$2 -> 0 | E101: =Results!$B$6 -> 0 | G101: =CONCATENATE(Results!$C$4," - ",Results!$B$4) -> 0 - 0 | H101: =CONCATENATE(Results!$C$5," - ",Results!$B$5) -> 0 - 0 | I101: FALSE | J101: Stage1 | K101: OTHER COVERAGE SCHEME (add specific name in your country) | L101: SOURCES DE REVENUS D'où vient l'argent? Allocations / transferts budgétaires; contributions prépayées. | M101: =QA.6.5 -> 0 | N101: 0
A102: =Results!$B$2 -> 0 | E102: =Results!$B$6 -> 0 | G102: =CONCATENATE(Results!$C$4," - ",Results!$B$4) -> 0 - 0 | H102: =CONCATENATE(Results!$C$5," - ",Results!$B$5) -> 0 - 0 | I102: FALSE | J102: Stage1 | K102: OTHER COVERAGE SCHEME (add specific name in your country) | L102: ACCORDS DE MISE EN COMMUN Le budget de la santé est-il alloué aux autorités régionales, existe-t-il un ou plusieurs fonds d '«assurance»? | M102: =QA.6.6 -> 0 | N102: 0
A103: =Results!$B$2 -> 0 | E103: =Results!$B$6 -> 0 | G103: =CONCATENATE(Results!$C$4," - ",Results!$B$4) -> 0 - 0 | H103: =CONCATENATE(Results!$C$5," - ",Results!$B$5) -> 0 - 0 | I103: FALSE | J103: Stage1 | K103: OTHER COVERAGE SCHEME (add specific name in your country) | L103: MODALITES D'ACHAT Décrivez les arrangements de gestion et de gouvernance? | M103: =QA.6.7 -> 0 | N103: 0
A104: =Results!$B$2 -> 0 | B104: =code ->  | E104: =Results!$B$6 -> 0 | G104: =CONCATENATE(Results!$C$4," - ",Results!$B$4) -> 0 - 0 | H104: =CONCATENATE(Results!$C$5," - ",Results!$B$5) -> 0 - 0 | I104: FALSE | J104: Stage1 | K104: OTHER COVERAGE SCHEME (add specific name in your country) | L104: PAIEMENT DU FOURNISSEUR Par exemple. les entrées par ligne ou poste budgétaire; Ticket de soins/Service, paiement au cas par cas, capitation, basé sur performances? | M104: =QA.6.8 -> 0 | N104: 0
A105: =Results!$B$2 -> 0 | E105: =Results!$B$6 -> 0 | G105: =CONCATENATE(Results!$C$4," - ",Results!$B$4) -> 0 - 0 | H105: =CONCATENATE(Results!$C$5," - ",Results!$B$5) -> 0 - 0 | I105: FALSE | J105: Stage1 | K105: OTHER COVERAGE SCHEME (add specific name in your country) | L105: PRESTATION DE SERVICES & CONTRACTUALISATION De quels fournisseurs les services sont-ils achetés? Public-privé? Des contrats / accords de services sont-ils utilisés? | M105: =QA.6.9 -> 0 | N105: 0
A106: =Results!$B$2 -> 0 | C106: =C105 ->  | D106: =D105 ->  | E106: =Results!$B$6 -> 0 | G106: =CONCATENATE(Results!$C$4," - ",Results!$B$4) -> 0 - 0 | H106: =CONCATENATE(Results!$C$5," - ",Results!$B$5) -> 0 - 0 | I106: =Results!AZ7 -> FALSE | J106: =Results!AU7 -> Equity_in_resource_distribution | K106: =Results!AV7 -> Q3.2 | L106: =Results!AW7 -> Dans le cadre du processus global d’élaboration et de planification de la mise en œuvre des politiques de financement de la santé, quelle est l’approche de votre pays en matière de dispositifs de mise en commun des ressources ? | M106: =Results!AX7 ->  | N106: =Results!AY7 -> 0
A107: =Results!$B$2 -> 0 | E107: =Results!$B$6 -> 0 | G107: =CONCATENATE(Results!$C$4," - ",Results!$B$4) -> 0 - 0 | H107: =CONCATENATE(Results!$C$5," - ",Results!$B$5) -> 0 - 0 | I107: =Results!AZ8 -> FALSE | J107: =Results!AU8 -> Equity_in_resource_distribution | K107: =Results!AV8 -> Q3.3 | L107: =Results!AW8 -> Dans quelle mesure la capacité de redistribution des fonds prépayés dans votre pays est-elle limitée par le cadre institutionnel du financement de la santé ? | M107: =Results!AX8 ->  | N107: =Results!AY8 -> 0
A108: =Results!$B$2 -> 0 | E108: =Results!$B$6 -> 0 | G108: =CONCATENATE(Results!$C$4," - ",Results!$B$4) -> 0 - 0 | H108: =CONCATENATE(Results!$C$5," - ",Results!$B$5) -> 0 - 0 | I108: =Results!AZ9 -> FALSE | J108: =Results!AU9 -> Equity_in_resource_distribution | K108: =Results!AV9 -> Q3.4 | L108: =Results!AW9 -> Y-a-il des mesures, dans la conception des prestations, le paiement des prestataires ou les systèmes sous-jacents non financiers, qui visent à contrecarrer les problèmes découlant de la fragmentation de l’architecture du financement de la santé ? | M108: =Results!AX9 ->  | N108: =Results!AY9 -> 0
A109: =Results!$B$2 -> 0 | E109: =Results!$B$6 -> 0 | G109: =CONCATENATE(Results!$C$4," - ",Results!$B$4) -> 0 - 0 | H109: =CONCATENATE(Results!$C$5," - ",Results!$B$5) -> 0 - 0 | I109: =Results!AZ10 -> FALSE | J109: =Results!AU10 -> Equity_in_resource_distribution | K109: =Results!AV10 -> Q3.5 | L109: =Results!AW10 -> Dans quelle mesure les différentes sources de revenus et de financement sont-elles organisées de manière complémentaire, afin de financer un paquet de prestations pour l’ensemble de la population ? | M109: =Results!AX10 ->  | N109: =Results!AY10 -> 0
A110: =Results!$B$2 -> 0 | E110: =Results!$B$6 -> 0 | G110: =CONCATENATE(Results!$C$4," - ",Results!$B$4) -> 0 - 0 | H110: =CONCATENATE(Results!$C$5," - ",Results!$B$5) -> 0 - 0 | I110: =Results!AZ11 -> FALSE | J110: =Results!AU11 -> Equity_in_resource_distribution | K110: =Results!AV11 -> Q3.6 | L110: =Results!AW11 -> Dans quelle mesure les dispositifs d’assurance-maladie volontaire sont-ils une source d’inégalités, créant des effets de contagion potentiellement néfastes pour l’ensemble du système de santé ? | M110: =Results!AX11 ->  | N110: =Results!AY11 -> 0
A111: =Results!$B$2 -> 0 | E111: =Results!$B$6 -> 0 | G111: =CONCATENATE(Results!$C$4," - ",Results!$B$4) -> 0 - 0 | H111: =CONCATENATE(Results!$C$5," - ",Results!$B$5) -> 0 - 0 | I111: =Results!AZ12 -> FALSE | J111: =Results!AU12 -> Equity_in_resource_distribution | K111: =Results!AV12 -> Q4.1 | L111: =Results!AW12 -> Dans quelle mesure les allocations de fonds aux acheteurs de niveau inférieur, par exemple les administrations locales, et/ou les taux de paiement aux prestataires sont-ils le reflet des besoins de santé de la population ? | M111: =Results!AX12 ->  | N111: =Results!AY12 -> 0
A112: =Results!$B$2 -> 0 | E112: =Results!$B$6 -> 0 | G112: =CONCATENATE(Results!$C$4," - ",Results!$B$4) -> 0 - 0 | H112: =CONCATENATE(Results!$C$5," - ",Results!$B$5) -> 0 - 0 | I112: =Results!AZ13 -> FALSE | J112: =Results!AU13 -> Equity_in_resource_distribution | K112: =Results!AV13 -> Q4.2 | L112: =Results!AW13 -> Dans quelle mesure les paiements des prestataires sont-ils harmonisés entre régimes/sources de revenus et entre secteurs public et privé, afin de garantir des incitations cohérentes aux prestataires ? | M112: =Results!AX13 ->  | N112: =Results!AY13 -> 0
A113: =Results!$B$2 -> 0 | E113: =Results!$B$6 -> 0 | G113: =CONCATENATE(Results!$C$4," - ",Results!$B$4) -> 0 - 0 | H113: =CONCATENATE(Results!$C$5," - ",Results!$B$5) -> 0 - 0 | I113: =Results!AZ14 -> FALSE | J113: =Results!AU14 -> Equity_in_resource_distribution | K113: =Results!AV14 -> Q6.4 | L113: =Results!AW14 -> Dans quelle mesure les allocations budgétaires annuelles en matière de santé sont alignées sur les priorités du secteur de la santé (niveau, structure, nature/objectif) ? | M113: =Results!AX14 ->  | N113: =Results!AY14 -> 0
A114: =Results!$B$2 -> 0 | E114: =Results!$B$6 -> 0 | G114: =CONCATENATE(Results!$C$4," - ",Results!$B$4) -> 0 - 0 | H114: =CONCATENATE(Results!$C$5," - ",Results!$B$5) -> 0 - 0 | I114: =Results!AZ15 -> FALSE | J114: =Results!AU15 -> Equity_in_resource_distribution | K114: =Results!AV15 -> Q6.6 | L114: =Results!AW15 -> Dans quelle mesure les transferts fiscaux sont conçus et mis en œuvre de sorte à améliorer l’équité de la distribution des ressources dans le secteur de la santé? | M114: =Results!AX15 ->  | N114: =Results!AY15 -> 0
A115: =Results!$B$2 -> 0 | E115: =Results!$B$6 -> 0 | G115: =CONCATENATE(Results!$C$4," - ",Results!$B$4) -> 0 - 0 | H115: =CONCATENATE(Results!$C$5," - ",Results!$B$5) -> 0 - 0 | I115: =Results!AZ16 -> FALSE | J115: =Results!AU16 -> Equity_in_resource_distribution | K115: =Results!AV16 -> Q6.11 | L115: =Results!AW16 -> Dans quelle mesure les flux financiers multiples, la structure budgétaire et les règles de GFP sont alignés sur les politiques d’achats stratégiques? | M115: =Results!AX16 ->  | N115: =Results!AY16 -> 0
A116: =Results!$B$2 -> 0 | E116: =Results!$B$6 -> 0 | G116: =CONCATENATE(Results!$C$4," - ",Results!$B$4) -> 0 - 0 | H116: =CONCATENATE(Results!$C$5," - ",Results!$B$5) -> 0 - 0 | I116: =Results!AZ17 -> FALSE | J116: =Results!AU17 -> Efficiency | K116: =Results!AV17 -> Q2.4 | L116: =Results!AW17 -> Dans quelle mesure le flux de fonds publics est-il stable, notamment grâce à une exécution budgétaire régulière, c’est-à-dire un déblocage des fonds dans les délais, conformément aux budgets de santé approuvés ? | M116: =Results!AX17 ->  | N116: =Results!AY17 -> 0
A117: =Results!$B$2 -> 0 | E117: =Results!$B$6 -> 0 | G117: =CONCATENATE(Results!$C$4," - ",Results!$B$4) -> 0 - 0 | H117: =CONCATENATE(Results!$C$5," - ",Results!$B$5) -> 0 - 0 | I117: =Results!AZ18 -> FALSE | J117: =Results!AU18 -> Efficiency | K117: =Results!AV18 -> Q3.2 | L117: =Results!AW18 -> Dans le cadre du processus global d’élaboration et de planification de la mise en œuvre des politiques de financement de la santé, quelle est l’approche de votre pays en matière de dispositifs de mise en commun des ressources ? | M117: =Results!AX18 ->  | N117: =Results!AY18 -> 0
A118: =Results!$B$2 -> 0 | E118: =Results!$B$6 -> 0 | G118: =CONCATENATE(Results!$C$4," - ",Results!$B$4) -> 0 - 0 | H118: =CONCATENATE(Results!$C$5," - ",Results!$B$5) -> 0 - 0 | I118: =Results!AZ19 -> FALSE | J118: =Results!AU19 -> Efficiency | K118: =Results!AV19 -> Q3.3 | L118: =Results!AW19 -> Dans quelle mesure la capacité de redistribution des fonds prépayés dans votre pays est-elle limitée par le cadre institutionnel du financement de la santé ? | M118: =Results!AX19 ->  | N118: =Results!AY19 -> 0
A119: =Results!$B$2 -> 0 | E119: =Results!$B$6 -> 0 | G119: =CONCATENATE(Results!$C$4," - ",Results!$B$4) -> 0 - 0 | H119: =CONCATENATE(Results!$C$5," - ",Results!$B$5) -> 0 - 0 | I119: =Results!AZ20 -> FALSE | J119: =Results!AU20 -> Efficiency | K119: =Results!AV20 -> Q3.4 | L119: =Results!AW20 -> Y-a-il des mesures, dans la conception des prestations, le paiement des prestataires ou les systèmes sous-jacents non financiers, qui visent à contrecarrer les problèmes découlant de la fragmentation de l’architecture du financement de la santé ? | M119: =Results!AX20 ->  | N119: =Results!AY20 -> 0
A120: =Results!$B$2 -> 0 | E120: =Results!$B$6 -> 0 | G120: =CONCATENATE(Results!$C$4," - ",Results!$B$4) -> 0 - 0 | H120: =CONCATENATE(Results!$C$5," - ",Results!$B$5) -> 0 - 0 | I120: =Results!AZ21 -> FALSE | J120: =Results!AU21 -> Efficiency | K120: =Results!AV21 -> Q3.5 | L120: =Results!AW21 -> Dans quelle mesure les différentes sources de revenus et de financement sont-elles organisées de manière complémentaire, afin de financer un paquet de prestations pour l’ensemble de la population ? | M120: =Results!AX21 ->  | N120: =Results!AY21 -> 0
A121: =Results!$B$2 -> 0 | E121: =Results!$B$6 -> 0 | G121: =CONCATENATE(Results!$C$4," - ",Results!$B$4) -> 0 - 0 | H121: =CONCATENATE(Results!$C$5," - ",Results!$B$5) -> 0 - 0 | I121: =Results!AZ22 -> FALSE | J121: =Results!AU22 -> Efficiency | K121: =Results!AV22 -> Q3.7 | L121: =Results!AW22 -> Dans quelle mesure les flux financiers sont-ils incohérents et redondants, et empêchent d’utiliser efficacement le budget public et les fonds des donateurs ? | M121: =Results!AX22 ->  | N121: =Results!AY22 -> 0
A122: =Results!$B$2 -> 0 | E122: =Results!$B$6 -> 0 | G122: =CONCATENATE(Results!$C$4," - ",Results!$B$4) -> 0 - 0 | H122: =CONCATENATE(Results!$C$5," - ",Results!$B$5) -> 0 - 0 | I122: =Results!AZ23 -> FALSE | J122: =Results!AU23 -> Efficiency | K122: =Results!AV23 -> Q4.5 | L122: =Results!AW23 -> Dans quelle mesure les méthodes de paiement des prestataires favorisent-elles l’efficacité de l’allocation des ressources, par exemple en réduisant la prestation excessive ou en augmentant celle insuffisante des services, et gèrent-elles la croissance des dépenses ? | M122: =Results!AX23 ->  | N122: =Results!AY23 -> 0
A123: =Results!$B$2 -> 0 | E123: =Results!$B$6 -> 0 | G123: =CONCATENATE(Results!$C$4," - ",Results!$B$4) -> 0 - 0 | H123: =CONCATENATE(Results!$C$5," - ",Results!$B$5) -> 0 - 0 | I123: =Results!AZ24 -> FALSE | J123: =Results!AU24 -> Efficiency | K123: =Results!AV24 -> Q4.8 | L123: =Results!AW24 -> Dans quelle mesure les prestataires jouissent-ils d’une autonomie financière et sont-ils tenus responsables, dans une mesure réaliste et conforme à leurs capacités ? | M123: =Results!AX24 ->  | N123: =Results!AY24 -> 0
A124: =Results!$B$2 -> 0 | E124: =Results!$B$6 -> 0 | G124: =CONCATENATE(Results!$C$4," - ",Results!$B$4) -> 0 - 0 | H124: =CONCATENATE(Results!$C$5," - ",Results!$B$5) -> 0 - 0 | I124: =Results!AZ25 -> FALSE | J124: =Results!AU25 -> Efficiency | K124: =Results!AV25 -> Q4.9 | L124: =Results!AW25 -> Dans quelle mesure l’accréditation des prestataires ou les contrats sélectifs sont-ils établis, fonctionnels et utilisés pour les achats ? | M124: =Results!AX25 ->  | N124: =Results!AY25 -> 0
A125: =Results!$B$2 -> 0 | E125: =Results!$B$6 -> 0 | G125: =CONCATENATE(Results!$C$4," - ",Results!$B$4) -> 0 - 0 | H125: =CONCATENATE(Results!$C$5," - ",Results!$B$5) -> 0 - 0 | I125: =Results!AZ26 -> FALSE | J125: =Results!AU26 -> Efficiency | K125: =Results!AV26 -> Q4.10 | L125: =Results!AW26 -> Dans quelle mesure l’achat et le paiement des produits pharmaceutiques sont-ils mis en œuvre pour promouvoir l’utilisation efficace des médicaments (par exemple le recours aux génériques plutôt qu’aux princeps) et pour améliorer la protection financière des patients ? | M125: =Results!AX26 ->  | N125: =Results!AY26 -> 0
A126: =Results!$B$2 -> 0 | E126: =Results!$B$6 -> 0 | G126: =CONCATENATE(Results!$C$4," - ",Results!$B$4) -> 0 - 0 | H126: =CONCATENATE(Results!$C$5," - ",Results!$B$5) -> 0 - 0 | I126: =Results!AZ27 -> FALSE | J126: =Results!AU27 -> Efficiency | K126: =Results!AV27 -> Q6.7 | L126: =Results!AW27 -> Dans quelle mesure les règles du budget de la santé permettent-elles une certaine souplesse des dépenses? | M126: =Results!AX27 ->  | N126: =Results!AY27 -> 0
A127: =Results!$B$2 -> 0 | E127: =Results!$B$6 -> 0 | G127: =CONCATENATE(Results!$C$4," - ",Results!$B$4) -> 0 - 0 | H127: =CONCATENATE(Results!$C$5," - ",Results!$B$5) -> 0 - 0 | I127: =Results!AZ28 -> FALSE | J127: =Results!AU28 -> Efficiency | K127: =Results!AV28 -> Q6.8 | L127: =Results!AW28 -> La flexibilité dans l’utilisation des ressources est-elle assurée ou déléguée au bon niveau? | M127: =Results!AX28 ->  | N127: =Results!AY28 -> 0
A128: =Results!$B$2 -> 0 | E128: =Results!$B$6 -> 0 | G128: =CONCATENATE(Results!$C$4," - ",Results!$B$4) -> 0 - 0 | H128: =CONCATENATE(Results!$C$5," - ",Results!$B$5) -> 0 - 0 | I128: =Results!AZ29 -> FALSE | J128: =Results!AU29 -> Efficiency | K128: =Results!AV29 -> Q6.9 | L128: =Results!AW29 -> Dans quelle mesure des politiques de discipline budgétaire visant à contrôler les dépenses sont en vigueur (par exemple, gestion de la trésorerie, respect des règles d’approvisionnement) et mises en œuvre efficacement? | M128: =Results!AX29 ->  | N128: =Results!AY29 -> 0
A129: =Results!$B$2 -> 0 | E129: =Results!$B$6 -> 0 | G129: =CONCATENATE(Results!$C$4," - ",Results!$B$4) -> 0 - 0 | H129: =CONCATENATE(Results!$C$5," - ",Results!$B$5) -> 0 - 0 | I129: =Results!AZ30 -> FALSE | J129: =Results!AU30 -> Efficiency | K129: =Results!AV30 -> Q6.11 | L129: =Results!AW30 -> Dans quelle mesure les flux financiers multiples, la structure budgétaire et les règles de GFP sont alignés sur les politiques d’achats stratégiques? | M129: =Results!AX30 ->  | N129: =Results!AY30 -> 0
A130: =Results!$B$2 -> 0 | E130: =Results!$B$6 -> 0 | G130: =CONCATENATE(Results!$C$4," - ",Results!$B$4) -> 0 - 0 | H130: =CONCATENATE(Results!$C$5," - ",Results!$B$5) -> 0 - 0 | I130: =Results!AZ31 -> FALSE | J130: =Results!AU31 -> Transparency_accountability | K130: =Results!AV31 -> Q2.1 | L130: =Results!AW31 -> Quelle approche est en vigueur dans votre pays en matière d’élaboration de politiques et de stratégies de collecte de revenus ? Cette approche s'inscrit-elle dans le cadre du processus global d’élaboration et de planification de la mise en œuvre des politiques de financement de la santé ? | M130: =Results!AX31 ->  | N130: =Results!AY31 -> 0
A131: =Results!$B$2 -> 0 | E131: =Results!$B$6 -> 0 | G131: =CONCATENATE(Results!$C$4," - ",Results!$B$4) -> 0 - 0 | H131: =CONCATENATE(Results!$C$5," - ",Results!$B$5) -> 0 - 0 | I131: =Results!AZ32 -> FALSE | J131: =Results!AU32 -> Transparency_accountability | K131: =Results!AV32 -> Q2.3 | L131: =Results!AW32 -> Dans quelle mesure le financement public de la santé dans votre pays est-il prédictible sur plusieurs années ? | M131: =Results!AX32 ->  | N131: =Results!AY32 -> 0
A132: =Results!$B$2 -> 0 | E132: =Results!$B$6 -> 0 | G132: =CONCATENATE(Results!$C$4," - ",Results!$B$4) -> 0 - 0 | H132: =CONCATENATE(Results!$C$5," - ",Results!$B$5) -> 0 - 0 | I132: =Results!AZ33 -> FALSE | J132: =Results!AU33 -> Transparency_accountability | K132: =Results!AV33 -> Q4.4 | L132: =Results!AW33 -> Dans quelle mesure les contrats d’achat précisent-ils des exigences en matière de qualité des soins, y compris la disponibilité et la pertinence des soins, puis vérifient-ils de façon régulière qu’elles sont bien respectées ? | M132: =Results!AX33 ->  | N132: =Results!AY33 -> 0
A133: =Results!$B$2 -> 0 | E133: =Results!$B$6 -> 0 | G133: =CONCATENATE(Results!$C$4," - ",Results!$B$4) -> 0 - 0 | H133: =CONCATENATE(Results!$C$5," - ",Results!$B$5) -> 0 - 0 | I133: =Results!AZ34 -> FALSE | J133: =Results!AU34 -> Transparency_accountability | K133: =Results!AV34 -> Q4.8 | L133: =Results!AW34 -> Dans quelle mesure les prestataires jouissent-ils d’une autonomie financière et sont-ils tenus responsables, dans une mesure réaliste et conforme à leurs capacités ? | M133: =Results!AX34 ->  | N133: =Results!AY34 -> 0
A134: =Results!$B$2 -> 0 | E134: =Results!$B$6 -> 0 | G134: =CONCATENATE(Results!$C$4," - ",Results!$B$4) -> 0 - 0 | H134: =CONCATENATE(Results!$C$5," - ",Results!$B$5) -> 0 - 0 | I134: =Results!AZ35 -> FALSE | J134: =Results!AU35 -> Transparency_accountability | K134: =Results!AV35 -> Q5.2 | L134: =Results!AW35 -> Dans quelle mesure les décisions et les révisions relatives aux prestations sont-elles prises de manière transparente, sur la base d’un processus clairement défini et de critères convenus, tels que le rapport coût-efficacité, la protection financière, l’impact budgétaire ? | M134: =Results!AX35 ->  | N134: =Results!AY35 -> 0
A135: =Results!$B$2 -> 0 | E135: =Results!$B$6 -> 0 | G135: =CONCATENATE(Results!$C$4," - ",Results!$B$4) -> 0 - 0 | H135: =CONCATENATE(Results!$C$5," - ",Results!$B$5) -> 0 - 0 | I135: =Results!AZ36 -> FALSE | J135: =Results!AU36 -> Transparency_accountability | K135: =Results!AV36 -> Q5.5 | L135: =Results!AW36 -> Dans quelle mesure les droits et obligations de la population sont-ils explicitement définis et compris par les intéressés ? | M135: =Results!AX36 ->  | N135: =Results!AY36 -> 0
A136: =Results!$B$2 -> 0 | B136: =code ->  | E136: =Results!$B$6 -> 0 | G136: =CONCATENATE(Results!$C$4," - ",Results!$B$4) -> 0 - 0 | H136: =CONCATENATE(Results!$C$5," - ",Results!$B$5) -> 0 - 0 | I136: =Results!AZ37 -> FALSE | J136: =Results!AU37 -> Transparency_accountability | K136: =Results!AV37 -> Q5.7 | L136: =Results!AW37 -> Dans quelle mesure les prestations, y compris le partage des coûts pour les patients, sont-elles alignées sur les recettes, afin d’assurer un financement adéquat des droits à prestations approuvés ? | M136: =Results!AX37 ->  | N136: =Results!AY37 -> 0
A137: =Results!$B$2 -> 0 | E137: =Results!$B$6 -> 0 | G137: =CONCATENATE(Results!$C$4," - ",Results!$B$4) -> 0 - 0 | H137: =CONCATENATE(Results!$C$5," - ",Results!$B$5) -> 0 - 0 | I137: =Results!AZ38 -> FALSE | J137: =Results!AU38 -> Transparency_accountability | K137: =Results!AV38 -> Q6.5 | L137: =Results!AW38 -> Dans quelle mesure le processus budgétaire est consultatif, transparent et un processus d’examen et d’ajustement budgétaire à mi-parcours est établi ? | M137: =Results!AX38 ->  | N137: =Results!AY38 -> 0
A138: =Results!$B$2 -> 0 | E138: =Results!$B$6 -> 0 | G138: =CONCATENATE(Results!$C$4," - ",Results!$B$4) -> 0 - 0 | H138: =CONCATENATE(Results!$C$5," - ",Results!$B$5) -> 0 - 0 | I138: =Results!AZ39 -> FALSE | J138: =Results!AU39 -> Transparency_accountability | K138: =Results!AV39 -> Q6.7 | L138: =Results!AW39 -> Dans quelle mesure les règles du budget de la santé permettent-elles une certaine souplesse des dépenses? | M138: =Results!AX39 ->  | N138: =Results!AY39 -> 0
A139: =Results!$B$2 -> 0 | E139: =Results!$B$6 -> 0 | G139: =CONCATENATE(Results!$C$4," - ",Results!$B$4) -> 0 - 0 | H139: =CONCATENATE(Results!$C$5," - ",Results!$B$5) -> 0 - 0 | I139: =Results!AZ40 -> FALSE | J139: =Results!AU40 -> Transparency_accountability | K139: =Results!AV40 -> Q6.9 | L139: =Results!AW40 -> Dans quelle mesure des politiques de discipline budgétaire visant à contrôler les dépenses sont en vigueur (par exemple, gestion de la trésorerie, respect des règles d’approvisionnement) et mises en œuvre efficacement? | M139: =Results!AX40 ->  | N139: =Results!AY40 -> 0
A140: =Results!$B$2 -> 0 | E140: =Results!$B$6 -> 0 | G140: =CONCATENATE(Results!$C$4," - ",Results!$B$4) -> 0 - 0 | H140: =CONCATENATE(Results!$C$5," - ",Results!$B$5) -> 0 - 0 | I140: =Results!AZ41 -> FALSE | J140: =Results!AU41 -> Transparency_accountability | K140: =Results!AV41 -> Q7.1 | L140: =Results!AW41 -> Dans quelle mesure les rôles et les responsabilités (liés aux objectifs de financement de la santé et au rendement en matière de collecte de recettes, de mise en commun, d’achats, de prestations, etc.) sont clairement définis et répartis entre les institutions responsables du financement de la santé ? | M140: =Results!AX41 ->  | N140: =Results!AY41 -> 0
A141: =Results!$B$2 -> 0 | E141: =Results!$B$6 -> 0 | G141: =CONCATENATE(Results!$C$4," - ",Results!$B$4) -> 0 - 0 | H141: =CONCATENATE(Results!$C$5," - ",Results!$B$5) -> 0 - 0 | I141: =Results!AZ42 -> FALSE | J141: =Results!AU42 -> Transparency_accountability | K141: =Results!AV42 -> Q7.2 | L141: =Results!AW42 -> Dans quelle mesure les institutions responsables du financement de la santé disposent-elles de capacités adéquates, notamment en matière de ressources humaines (capacités techniques et managériales) et de TIC ? | M141: =Results!AX42 ->  | N141: =Results!AY42 -> 0
A142: =Results!$B$2 -> 0 | E142: =Results!$B$6 -> 0 | G142: =CONCATENATE(Results!$C$4," - ",Results!$B$4) -> 0 - 0 | H142: =CONCATENATE(Results!$C$5," - ",Results!$B$5) -> 0 - 0 | I142: =Results!AZ43 -> FALSE | J142: =Results!AU43 -> Transparency_accountability | K142: =Results!AV43 -> Q7.3 | L142: =Results!AW43 -> Dans quelle mesure les mécanismes de responsabilisation des organismes d’achat/de financement (y compris l’autonomie et le conseil d’administration de l’agence d’assurance-maladie, les mécanismes de récompense/sanction, etc.) sont-ils en place pour s’assurer que la politique de financement de la santé appuie les progrès vers les objectifs du secteur et que les fonds sont utilisés efficacement pour les populations, programmes et services prioritaires ? | M142: =Results!AX43 ->  | N142: =Results!AY43 -> 0
A143: =Results!$B$2 -> 0 | E143: =Results!$B$6 -> 0 | G143: =CONCATENATE(Results!$C$4," - ",Results!$B$4) -> 0 - 0 | H143: =CONCATENATE(Results!$C$5," - ",Results!$B$5) -> 0 - 0 | I143: =Results!AZ44 -> FALSE | J143: =Results!AU44 -> Transparency_accountability | K143: =Results!AV44 -> Q7.4 | L143: =Results!AW44 -> L’utilisation des fonds ou les performances des institutions achetant des services auprès des prestataires de services de santé ou le budget de la santé ont-ils été communiqués au public (par exemple sous forme de rapport annuel) ? | M143: =Results!AX44 ->  | N143: =Results!AY44 -> 0
A144: =Results!$B$2 -> 0 | E144: =Results!$B$6 -> 0 | G144: =CONCATENATE(Results!$C$4," - ",Results!$B$4) -> 0 - 0 | H144: =CONCATENATE(Results!$C$5," - ",Results!$B$5) -> 0 - 0 | I144: =Results!AZ45 -> FALSE | J144: =Results!AU45 -> Transparency_accountability | K144: =Results!AV45 -> Q7.5 | L144: =Results!AW45 -> Dans quelle mesure le Ministère des finances, le Ministère de la santé et l’organisme national d’assurance-maladie participent au processus d’élaboration des politiques de financement de la santé et en sont informés ? | M144: =Results!AX45 ->  | N144: =Results!AY45 -> 0
A145: =Results!$B$2 -> 0 | E145: =Results!$B$6 -> 0 | G145: =CONCATENATE(Results!$C$4," - ",Results!$B$4) -> 0 - 0 | H145: =CONCATENATE(Results!$C$5," - ",Results!$B$5) -> 0 - 0 | I145: =Results!AZ46 -> FALSE | J145: =Results!AU46 -> Transparency_accountability | K145: =Results!AV46 -> Q7.6 | L145: =Results!AW46 -> Dans quelle mesure le processus d’élaboration des politiques de financement de la santé est transparent et participatif? | M145: =Results!AX46 ->  | N145: =Results!AY46 -> 0
A146: =Results!$B$2 -> 0 | E146: =Results!$B$6 -> 0 | G146: =CONCATENATE(Results!$C$4," - ",Results!$B$4) -> 0 - 0 | H146: =CONCATENATE(Results!$C$5," - ",Results!$B$5) -> 0 - 0 | I146: =Results!AZ47 -> FALSE | J146: =Results!AU47 -> Utilization_relative_need | K146: =Results!AV47 -> Q2.3 | L146: =Results!AW47 -> Dans quelle mesure le financement public de la santé dans votre pays est-il prédictible sur plusieurs années ? | M146: =Results!AX47 ->  | N146: =Results!AY47 -> 0
A147: =Results!$B$2 -> 0 | E147: =Results!$B$6 -> 0 | G147: =CONCATENATE(Results!$C$4," - ",Results!$B$4) -> 0 - 0 | H147: =CONCATENATE(Results!$C$5," - ",Results!$B$5) -> 0 - 0 | I147: =Results!AZ48 -> FALSE | J147: =Results!AU48 -> Utilization_relative_need | K147: =Results!AV48 -> Q2.4 | L147: =Results!AW48 -> Dans quelle mesure le flux de fonds publics est-il stable, notamment grâce à une exécution budgétaire régulière, c’est-à-dire un déblocage des fonds dans les délais, conformément aux budgets de santé approuvés ? | M147: =Results!AX48 ->  | N147: =Results!AY48 -> 0
A148: =Results!$B$2 -> 0 | E148: =Results!$B$6 -> 0 | G148: =CONCATENATE(Results!$C$4," - ",Results!$B$4) -> 0 - 0 | H148: =CONCATENATE(Results!$C$5," - ",Results!$B$5) -> 0 - 0 | I148: =Results!AZ49 -> FALSE | J148: =Results!AU49 -> Utilization_relative_need | K148: =Results!AV49 -> Q2.5 | L148: =Results!AW49 -> Dans quelle mesure les différentes sources de revenus sont-elles collectées de façon progressive (c.-à-d. en fonction de la capacité de payer), et partant de là favorisent l’équité dans le mode de financement du système de santé ? | M148: =Results!AX49 ->  | N148: =Results!AY49 -> 0
A149: =Results!$B$2 -> 0 | E149: =Results!$B$6 -> 0 | G149: =CONCATENATE(Results!$C$4," - ",Results!$B$4) -> 0 - 0 | H149: =CONCATENATE(Results!$C$5," - ",Results!$B$5) -> 0 - 0 | I149: =Results!AZ50 -> FALSE | J149: =Results!AU50 -> Utilization_relative_need | K149: =Results!AV50 -> Q3.2 | L149: =Results!AW50 -> Dans le cadre du processus global d’élaboration et de planification de la mise en œuvre des politiques de financement de la santé, quelle est l’approche de votre pays en matière de dispositifs de mise en commun des ressources ? | M149: =Results!AX50 ->  | N149: =Results!AY50 -> 0
A150: =Results!$B$2 -> 0 | E150: =Results!$B$6 -> 0 | G150: =CONCATENATE(Results!$C$4," - ",Results!$B$4) -> 0 - 0 | H150: =CONCATENATE(Results!$C$5," - ",Results!$B$5) -> 0 - 0 | I150: =Results!AZ51 -> FALSE | J150: =Results!AU51 -> Utilization_relative_need | K150: =Results!AV51 -> Q3.3 | L150: =Results!AW51 -> Dans quelle mesure la capacité de redistribution des fonds prépayés dans votre pays est-elle limitée par le cadre institutionnel du financement de la santé ? | M150: =Results!AX51 ->  | N150: =Results!AY51 -> 0
A151: =Results!$B$2 -> 0 | E151: =Results!$B$6 -> 0 | G151: =CONCATENATE(Results!$C$4," - ",Results!$B$4) -> 0 - 0 | H151: =CONCATENATE(Results!$C$5," - ",Results!$B$5) -> 0 - 0 | I151: =Results!AZ52 -> FALSE | J151: =Results!AU52 -> Utilization_relative_need | K151: =Results!AV52 -> Q3.4 | L151: =Results!AW52 -> Y-a-il des mesures, dans la conception des prestations, le paiement des prestataires ou les systèmes sous-jacents non financiers, qui visent à contrecarrer les problèmes découlant de la fragmentation de l’architecture du financement de la santé ? | M151: =Results!AX52 ->  | N151: =Results!AY52 -> 0
A152: =Results!$B$2 -> 0 | E152: =Results!$B$6 -> 0 | G152: =CONCATENATE(Results!$C$4," - ",Results!$B$4) -> 0 - 0 | H152: =CONCATENATE(Results!$C$5," - ",Results!$B$5) -> 0 - 0 | I152: =Results!AZ53 -> FALSE | J152: =Results!AU53 -> Utilization_relative_need | K152: =Results!AV53 -> Q3.5 | L152: =Results!AW53 -> Dans quelle mesure les différentes sources de revenus et de financement sont-elles organisées de manière complémentaire, afin de financer un paquet de prestations pour l’ensemble de la population ? | M152: =Results!AX53 ->  | N152: =Results!AY53 -> 0
A153: =Results!$B$2 -> 0 | E153: =Results!$B$6 -> 0 | G153: =CONCATENATE(Results!$C$4," - ",Results!$B$4) -> 0 - 0 | H153: =CONCATENATE(Results!$C$5," - ",Results!$B$5) -> 0 - 0 | I153: =Results!AZ54 -> FALSE | J153: =Results!AU54 -> Utilization_relative_need | K153: =Results!AV54 -> Q4.1 | L153: =Results!AW54 -> Dans quelle mesure les allocations de fonds aux acheteurs de niveau inférieur, par exemple les administrations locales, et/ou les taux de paiement aux prestataires sont-ils le reflet des besoins de santé de la population ? | M153: =Results!AX54 ->  | N153: =Results!AY54 -> 0
A154: =Results!$B$2 -> 0 | E154: =Results!$B$6 -> 0 | G154: =CONCATENATE(Results!$C$4," - ",Results!$B$4) -> 0 - 0 | H154: =CONCATENATE(Results!$C$5," - ",Results!$B$5) -> 0 - 0 | I154: =Results!AZ55 -> FALSE | J154: =Results!AU55 -> Utilization_relative_need | K154: =Results!AV55 -> Q5.3 | L154: =Results!AW55 -> Dans quelle mesure les droits à prestation reflètent-ils explicitement les besoins de santé de la population ? | M154: =Results!AX55 ->  | N154: =Results!AY55 -> 0
A155: =Results!$B$2 -> 0 | E155: =Results!$B$6 -> 0 | G155: =CONCATENATE(Results!$C$4," - ",Results!$B$4) -> 0 - 0 | H155: =CONCATENATE(Results!$C$5," - ",Results!$B$5) -> 0 - 0 | I155: =Results!AZ56 -> FALSE | J155: =Results!AU56 -> Utilization_relative_need | K155: =Results!AV56 -> Q5.4 | L155: =Results!AW56 -> Dans quelle mesure les prestations accordent-elles la priorité aux catégories de population prioritaires, par exemple pour une meilleure utilisation des services hautement prioritaires et pour la protection financière ? | M155: =Results!AX56 ->  | N155: =Results!AY56 -> 0
A156: =Results!$B$2 -> 0 | E156: =Results!$B$6 -> 0 | G156: =CONCATENATE(Results!$C$4," - ",Results!$B$4) -> 0 - 0 | H156: =CONCATENATE(Results!$C$5," - ",Results!$B$5) -> 0 - 0 | I156: =Results!AZ57 -> FALSE | J156: =Results!AU57 -> Utilization_relative_need | K156: =Results!AV57 -> Q5.5 | L156: =Results!AW57 -> Dans quelle mesure les droits et obligations de la population sont-ils explicitement définis et compris par les intéressés ? | M156: =Results!AX57 ->  | N156: =Results!AY57 -> 0
A157: =Results!$B$2 -> 0 | E157: =Results!$B$6 -> 0 | G157: =CONCATENATE(Results!$C$4," - ",Results!$B$4) -> 0 - 0 | H157: =CONCATENATE(Results!$C$5," - ",Results!$B$5) -> 0 - 0 | I157: =Results!AZ58 -> FALSE | J157: =Results!AU58 -> Utilization_relative_need | K157: =Results!AV58 -> Q5.6 | L157: =Results!AW58 -> Dans quelle mesure les prestations sont-elles alignées sur le paiement des prestataires, afin de s’assurer qu’elles sont fournies et que les patients bénéficient d’une protection financière ? | M157: =Results!AX58 ->  | N157: =Results!AY58 -> 0
A158: =Results!$B$2 -> 0 | E158: =Results!$B$6 -> 0 | G158: =CONCATENATE(Results!$C$4," - ",Results!$B$4) -> 0 - 0 | H158: =CONCATENATE(Results!$C$5," - ",Results!$B$5) -> 0 - 0 | I158: =Results!AZ59 -> FALSE | J158: =Results!AU59 -> Utilization_relative_need | K158: =Results!AV59 -> Q5.7 | L158: =Results!AW59 -> Dans quelle mesure les prestations, y compris le partage des coûts pour les patients, sont-elles alignées sur les recettes, afin d’assurer un financement adéquat des droits à prestations approuvés ? | M158: =Results!AX59 ->  | N158: =Results!AY59 -> 0
A159: =Results!$B$2 -> 0 | E159: =Results!$B$6 -> 0 | G159: =CONCATENATE(Results!$C$4," - ",Results!$B$4) -> 0 - 0 | H159: =CONCATENATE(Results!$C$5," - ",Results!$B$5) -> 0 - 0 | I159: =Results!AZ60 -> FALSE | J159: =Results!AU60 -> Utilization_relative_need | K159: =Results!AV60 -> Q6.4 | L159: =Results!AW60 -> Dans quelle mesure les allocations budgétaires annuelles en matière de santé sont alignées sur les priorités du secteur de la santé (niveau, structure, nature/objectif) ? | M159: =Results!AX60 ->  | N159: =Results!AY60 -> 0
A160: =Results!$B$2 -> 0 | E160: =Results!$B$6 -> 0 | G160: =CONCATENATE(Results!$C$4," - ",Results!$B$4) -> 0 - 0 | H160: =CONCATENATE(Results!$C$5," - ",Results!$B$5) -> 0 - 0 | I160: =Results!AZ61 -> FALSE | J160: =Results!AU61 -> Utilization_relative_need | K160: =Results!AV61 -> Q6.6 | L160: =Results!AW61 -> Dans quelle mesure les transferts fiscaux sont conçus et mis en œuvre de sorte à améliorer l’équité de la distribution des ressources dans le secteur de la santé? | M160: =Results!AX61 ->  | N160: =Results!AY61 -> 0
A161: =Results!$B$2 -> 0 | E161: =Results!$B$6 -> 0 | G161: =CONCATENATE(Results!$C$4," - ",Results!$B$4) -> 0 - 0 | H161: =CONCATENATE(Results!$C$5," - ",Results!$B$5) -> 0 - 0 | I161: =Results!AZ62 -> FALSE | J161: =Results!AU62 -> Utilization_relative_need | K161: =Results!AV62 -> Q6.7 | L161: =Results!AW62 -> Dans quelle mesure les règles du budget de la santé permettent-elles une certaine souplesse des dépenses? | M161: =Results!AX62 ->  | N161: =Results!AY62 -> 0
A162: =Results!$B$2 -> 0 | E162: =Results!$B$6 -> 0 | G162: =CONCATENATE(Results!$C$4," - ",Results!$B$4) -> 0 - 0 | H162: =CONCATENATE(Results!$C$5," - ",Results!$B$5) -> 0 - 0 | I162: =Results!AZ63 -> FALSE | J162: =Results!AU63 -> Utilization_relative_need | K162: =Results!AV63 -> Q6.11 | L162: =Results!AW63 -> Dans quelle mesure les flux financiers multiples, la structure budgétaire et les règles de GFP sont alignés sur les politiques d’achats stratégiques? | M162: =Results!AX63 ->  | N162: =Results!AY63 -> 0
A163: =Results!$B$2 -> 0 | E163: =Results!$B$6 -> 0 | G163: =CONCATENATE(Results!$C$4," - ",Results!$B$4) -> 0 - 0 | H163: =CONCATENATE(Results!$C$5," - ",Results!$B$5) -> 0 - 0 | I163: =Results!AZ64 -> FALSE | J163: =Results!AU64 -> Financial_protection | K163: =Results!AV64 -> Q2.1 | L163: =Results!AW64 -> Quelle approche est en vigueur dans votre pays en matière d’élaboration de politiques et de stratégies de collecte de revenus ? Cette approche s'inscrit-elle dans le cadre du processus global d’élaboration et de planification de la mise en œuvre des politiques de financement de la santé ? | M163: =Results!AX64 ->  | N163: =Results!AY64 -> 0
A164: =Results!$B$2 -> 0 | E164: =Results!$B$6 -> 0 | G164: =CONCATENATE(Results!$C$4," - ",Results!$B$4) -> 0 - 0 | H164: =CONCATENATE(Results!$C$5," - ",Results!$B$5) -> 0 - 0 | I164: =Results!AZ65 -> FALSE | J164: =Results!AU65 -> Financial_protection | K164: =Results!AV65 -> Q2.2 | L164: =Results!AW65 -> Dans quelle mesure le financement de la santé dans votre pays repose-t-il sur des sources de financement public/obligatoire (par exemple, fiscalité/recettes publiques, y compris les cotisations obligatoires à l’assurance-maladie nationale/sociale) ? | M164: =Results!AX65 ->  | N164: =Results!AY65 -> 0
A165: =Results!$B$2 -> 0 | E165: =Results!$B$6 -> 0 | G165: =CONCATENATE(Results!$C$4," - ",Results!$B$4) -> 0 - 0 | H165: =CONCATENATE(Results!$C$5," - ",Results!$B$5) -> 0 - 0 | I165: =Results!AZ66 -> FALSE | J165: =Results!AU66 -> Financial_protection | K165: =Results!AV66 -> Q2.4 | L165: =Results!AW66 -> Dans quelle mesure le flux de fonds publics est-il stable, notamment grâce à une exécution budgétaire régulière, c’est-à-dire un déblocage des fonds dans les délais, conformément aux budgets de santé approuvés ? | M165: =Results!AX66 ->  | N165: =Results!AY66 -> 0
A166: =Results!$B$2 -> 0 | E166: =Results!$B$6 -> 0 | G166: =CONCATENATE(Results!$C$4," - ",Results!$B$4) -> 0 - 0 | H166: =CONCATENATE(Results!$C$5," - ",Results!$B$5) -> 0 - 0 | I166: =Results!AZ67 -> FALSE | J166: =Results!AU67 -> Financial_protection | K166: =Results!AV67 -> Q2.5 | L166: =Results!AW67 -> Dans quelle mesure les différentes sources de revenus sont-elles collectées de façon progressive (c.-à-d. en fonction de la capacité de payer), et partant de là favorisent l’équité dans le mode de financement du système de santé ? | M166: =Results!AX67 ->  | N166: =Results!AY67 -> 0
A167: =Results!$B$2 -> 0 | E167: =Results!$B$6 -> 0 | G167: =CONCATENATE(Results!$C$4," - ",Results!$B$4) -> 0 - 0 | H167: =CONCATENATE(Results!$C$5," - ",Results!$B$5) -> 0 - 0 | I167: =Results!AZ68 -> FALSE | J167: =Results!AU68 -> Financial_protection | K167: =Results!AV68 -> Q3.2 | L167: =Results!AW68 -> Dans le cadre du processus global d’élaboration et de planification de la mise en œuvre des politiques de financement de la santé, quelle est l’approche de votre pays en matière de dispositifs de mise en commun des ressources ? | M167: =Results!AX68 ->  | N167: =Results!AY68 -> 0
A168: =Results!$B$2 -> 0 | B168: =code ->  | E168: =Results!$B$6 -> 0 | G168: =CONCATENATE(Results!$C$4," - ",Results!$B$4) -> 0 - 0 | H168: =CONCATENATE(Results!$C$5," - ",Results!$B$5) -> 0 - 0 | I168: =Results!AZ69 -> FALSE | J168: =Results!AU69 -> Financial_protection | K168: =Results!AV69 -> Q3.3 | L168: =Results!AW69 -> Dans quelle mesure la capacité de redistribution des fonds prépayés dans votre pays est-elle limitée par le cadre institutionnel du financement de la santé ? | M168: =Results!AX69 ->  | N168: =Results!AY69 -> 0
A169: =Results!$B$2 -> 0 | E169: =Results!$B$6 -> 0 | G169: =CONCATENATE(Results!$C$4," - ",Results!$B$4) -> 0 - 0 | H169: =CONCATENATE(Results!$C$5," - ",Results!$B$5) -> 0 - 0 | I169: =Results!AZ70 -> FALSE | J169: =Results!AU70 -> Financial_protection | K169: =Results!AV70 -> Q3.4 | L169: =Results!AW70 -> Y-a-il des mesures, dans la conception des prestations, le paiement des prestataires ou les systèmes sous-jacents non financiers, qui visent à contrecarrer les problèmes découlant de la fragmentation de l’architecture du financement de la santé ? | M169: =Results!AX70 ->  | N169: =Results!AY70 -> 0
A170: =Results!$B$2 -> 0 | C170: =C169 ->  | D170: =D169 ->  | E170: =Results!$B$6 -> 0 | G170: =CONCATENATE(Results!$C$4," - ",Results!$B$4) -> 0 - 0 | H170: =CONCATENATE(Results!$C$5," - ",Results!$B$5) -> 0 - 0 | I170: =Results!AZ71 -> FALSE | J170: =Results!AU71 -> Financial_protection | K170: =Results!AV71 -> Q3.5 | L170: =Results!AW71 -> Dans quelle mesure les différentes sources de revenus et de financement sont-elles organisées de manière complémentaire, afin de financer un paquet de prestations pour l’ensemble de la population ? | M170: =Results!AX71 ->  | N170: =Results!AY71 -> 0
A171: =Results!$B$2 -> 0 | E171: =Results!$B$6 -> 0 | G171: =CONCATENATE(Results!$C$4," - ",Results!$B$4) -> 0 - 0 | H171: =CONCATENATE(Results!$C$5," - ",Results!$B$5) -> 0 - 0 | I171: =Results!AZ72 -> FALSE | J171: =Results!AU72 -> Financial_protection | K171: =Results!AV72 -> Q3.6 | L171: =Results!AW72 -> Dans quelle mesure les dispositifs d’assurance-maladie volontaire sont-ils une source d’inégalités, créant des effets de contagion potentiellement néfastes pour l’ensemble du système de santé ? | M171: =Results!AX72 ->  | N171: =Results!AY72 -> 0
A172: =Results!$B$2 -> 0 | E172: =Results!$B$6 -> 0 | G172: =CONCATENATE(Results!$C$4," - ",Results!$B$4) -> 0 - 0 | H172: =CONCATENATE(Results!$C$5," - ",Results!$B$5) -> 0 - 0 | I172: =Results!AZ73 -> FALSE | J172: =Results!AU73 -> Financial_protection | K172: =Results!AV73 -> Q4.10 | L172: =Results!AW73 -> Dans quelle mesure l’achat et le paiement des produits pharmaceutiques sont-ils mis en œuvre pour promouvoir l’utilisation efficace des médicaments (par exemple le recours aux génériques plutôt qu’aux princeps) et pour améliorer la protection financière des patients ? | M172: =Results!AX73 ->  | N172: =Results!AY73 -> 0
A173: =Results!$B$2 -> 0 | E173: =Results!$B$6 -> 0 | G173: =CONCATENATE(Results!$C$4," - ",Results!$B$4) -> 0 - 0 | H173: =CONCATENATE(Results!$C$5," - ",Results!$B$5) -> 0 - 0 | I173: =Results!AZ74 -> FALSE | J173: =Results!AU74 -> Financial_protection | K173: =Results!AV74 -> Q5.4 | L173: =Results!AW74 -> Dans quelle mesure les prestations accordent-elles la priorité aux catégories de population prioritaires, par exemple pour une meilleure utilisation des services hautement prioritaires et pour la protection financière ? | M173: =Results!AX74 ->  | N173: =Results!AY74 -> 0
A174: =Results!$B$2 -> 0 | E174: =Results!$B$6 -> 0 | G174: =CONCATENATE(Results!$C$4," - ",Results!$B$4) -> 0 - 0 | H174: =CONCATENATE(Results!$C$5," - ",Results!$B$5) -> 0 - 0 | I174: =Results!AZ75 -> FALSE | J174: =Results!AU75 -> Financial_protection | K174: =Results!AV75 -> Q5.6 | L174: =Results!AW75 -> Dans quelle mesure les prestations sont-elles alignées sur le paiement des prestataires, afin de s’assurer qu’elles sont fournies et que les patients bénéficient d’une protection financière ? | M174: =Results!AX75 ->  | N174: =Results!AY75 -> 0
A175: =Results!$B$2 -> 0 | E175: =Results!$B$6 -> 0 | G175: =CONCATENATE(Results!$C$4," - ",Results!$B$4) -> 0 - 0 | H175: =CONCATENATE(Results!$C$5," - ",Results!$B$5) -> 0 - 0 | I175: =Results!AZ76 -> FALSE | J175: =Results!AU76 -> Equity_finance | K175: =Results!AV76 -> Q2.1 | L175: =Results!AW76 -> Quelle approche est en vigueur dans votre pays en matière d’élaboration de politiques et de stratégies de collecte de revenus ? Cette approche s'inscrit-elle dans le cadre du processus global d’élaboration et de planification de la mise en œuvre des politiques de financement de la santé ? | M175: =Results!AX76 ->  | N175: =Results!AY76 -> 0
A176: =Results!$B$2 -> 0 | E176: =Results!$B$6 -> 0 | G176: =CONCATENATE(Results!$C$4," - ",Results!$B$4) -> 0 - 0 | H176: =CONCATENATE(Results!$C$5," - ",Results!$B$5) -> 0 - 0 | I176: =Results!AZ77 -> FALSE | J176: =Results!AU77 -> Equity_finance | K176: =Results!AV77 -> Q2.2 | L176: =Results!AW77 -> Dans quelle mesure le financement de la santé dans votre pays repose-t-il sur des sources de financement public/obligatoire (par exemple, fiscalité/recettes publiques, y compris les cotisations obligatoires à l’assurance-maladie nationale/sociale) ? | M176: =Results!AX77 ->  | N176: =Results!AY77 -> 0
A177: =Results!$B$2 -> 0 | E177: =Results!$B$6 -> 0 | G177: =CONCATENATE(Results!$C$4," - ",Results!$B$4) -> 0 - 0 | H177: =CONCATENATE(Results!$C$5," - ",Results!$B$5) -> 0 - 0 | I177: =Results!AZ78 -> FALSE | J177: =Results!AU78 -> Equity_finance | K177: =Results!AV78 -> Q2.4 | L177: =Results!AW78 -> Dans quelle mesure le flux de fonds publics est-il stable, notamment grâce à une exécution budgétaire régulière, c’est-à-dire un déblocage des fonds dans les délais, conformément aux budgets de santé approuvés ? | M177: =Results!AX78 ->  | N177: =Results!AY78 -> 0
A178: =Results!$B$2 -> 0 | E178: =Results!$B$6 -> 0 | G178: =CONCATENATE(Results!$C$4," - ",Results!$B$4) -> 0 - 0 | H178: =CONCATENATE(Results!$C$5," - ",Results!$B$5) -> 0 - 0 | I178: =Results!AZ79 -> FALSE | J178: =Results!AU79 -> Equity_finance | K178: =Results!AV79 -> Q2.5 | L178: =Results!AW79 -> Dans quelle mesure les différentes sources de revenus sont-elles collectées de façon progressive (c.-à-d. en fonction de la capacité de payer), et partant de là favorisent l’équité dans le mode de financement du système de santé ? | M178: =Results!AX79 ->  | N178: =Results!AY79 -> 0
A179: =Results!$B$2 -> 0 | E179: =Results!$B$6 -> 0 | G179: =CONCATENATE(Results!$C$4," - ",Results!$B$4) -> 0 - 0 | H179: =CONCATENATE(Results!$C$5," - ",Results!$B$5) -> 0 - 0 | I179: =Results!AZ80 -> FALSE | J179: =Results!AU80 -> Equity_finance | K179: =Results!AV80 -> Q3.4 | L179: =Results!AW80 -> Y-a-il des mesures, dans la conception des prestations, le paiement des prestataires ou les systèmes sous-jacents non financiers, qui visent à contrecarrer les problèmes découlant de la fragmentation de l’architecture du financement de la santé ? | M179: =Results!AX80 ->  | N179: =Results!AY80 -> 0
A180: =Results!$B$2 -> 0 | E180: =Results!$B$6 -> 0 | G180: =CONCATENATE(Results!$C$4," - ",Results!$B$4) -> 0 - 0 | H180: =CONCATENATE(Results!$C$5," - ",Results!$B$5) -> 0 - 0 | I180: =Results!AZ81 -> FALSE | J180: =Results!AU81 -> Equity_finance | K180: =Results!AV81 -> Q3.6 | L180: =Results!AW81 -> Dans quelle mesure les dispositifs d’assurance-maladie volontaire sont-ils une source d’inégalités, créant des effets de contagion potentiellement néfastes pour l’ensemble du système de santé ? | M180: =Results!AX81 ->  | N180: =Results!AY81 -> 0
A181: =Results!$B$2 -> 0 | E181: =Results!$B$6 -> 0 | G181: =CONCATENATE(Results!$C$4," - ",Results!$B$4) -> 0 - 0 | H181: =CONCATENATE(Results!$C$5," - ",Results!$B$5) -> 0 - 0 | I181: =Results!AZ82 -> FALSE | J181: =Results!AU82 -> Equity_finance | K181: =Results!AV82 -> Q4.10 | L181: =Results!AW82 -> Dans quelle mesure l’achat et le paiement des produits pharmaceutiques sont-ils mis en œuvre pour promouvoir l’utilisation efficace des médicaments (par exemple le recours aux génériques plutôt qu’aux princeps) et pour améliorer la protection financière des patients ? | M181: =Results!AX82 ->  | N181: =Results!AY82 -> 0
A182: =Results!$B$2 -> 0 | E182: =Results!$B$6 -> 0 | G182: =CONCATENATE(Results!$C$4," - ",Results!$B$4) -> 0 - 0 | H182: =CONCATENATE(Results!$C$5," - ",Results!$B$5) -> 0 - 0 | I182: =Results!AZ83 -> FALSE | J182: =Results!AU83 -> Equity_finance | K182: =Results!AV83 -> Q5.4 | L182: =Results!AW83 -> Dans quelle mesure les prestations accordent-elles la priorité aux catégories de population prioritaires, par exemple pour une meilleure utilisation des services hautement prioritaires et pour la protection financière ? | M182: =Results!AX83 ->  | N182: =Results!AY83 -> 0
A183: =Results!$B$2 -> 0 | E183: =Results!$B$6 -> 0 | G183: =CONCATENATE(Results!$C$4," - ",Results!$B$4) -> 0 - 0 | H183: =CONCATENATE(Results!$C$5," - ",Results!$B$5) -> 0 - 0 | I183: =Results!AZ84 -> FALSE | J183: =Results!AU84 -> Equity_finance | K183: =Results!AV84 -> Q5.6 | L183: =Results!AW84 -> Dans quelle mesure les prestations sont-elles alignées sur le paiement des prestataires, afin de s’assurer qu’elles sont fournies et que les patients bénéficient d’une protection financière ? | M183: =Results!AX84 ->  | N183: =Results!AY84 -> 0
A184: =Results!$B$2 -> 0 | E184: =Results!$B$6 -> 0 | G184: =CONCATENATE(Results!$C$4," - ",Results!$B$4) -> 0 - 0 | H184: =CONCATENATE(Results!$C$5," - ",Results!$B$5) -> 0 - 0 | I184: =Results!AZ85 -> FALSE | J184: =Results!AU85 -> Quality | K184: =Results!AV85 -> Q4.2 | L184: =Results!AW85 -> Dans quelle mesure les paiements des prestataires sont-ils harmonisés entre régimes/sources de revenus et entre secteurs public et privé, afin de garantir des incitations cohérentes aux prestataires ? | M184: =Results!AX85 ->  | N184: =Results!AY85 -> 0
A185: =Results!$B$2 -> 0 | E185: =Results!$B$6 -> 0 | G185: =CONCATENATE(Results!$C$4," - ",Results!$B$4) -> 0 - 0 | H185: =CONCATENATE(Results!$C$5," - ",Results!$B$5) -> 0 - 0 | I185: =Results!AZ86 -> FALSE | J185: =Results!AU86 -> Quality | K185: =Results!AV86 -> Q4.3 | L185: =Results!AW86 -> Dans quelle mesure les méthodes de paiement des prestataires et les achats en général favorisent-ils la qualité des soins et la coordination des soins entre les spécialités et les différents niveaux de soins ? | M185: =Results!AX86 ->  | N185: =Results!AY86 -> 0
A186: =Results!$B$2 -> 0 | E186: =Results!$B$6 -> 0 | G186: =CONCATENATE(Results!$C$4," - ",Results!$B$4) -> 0 - 0 | H186: =CONCATENATE(Results!$C$5," - ",Results!$B$5) -> 0 - 0 | I186: =Results!AZ87 -> FALSE | J186: =Results!AU87 -> Quality | K186: =Results!AV87 -> Q4.4 | L186: =Results!AW87 -> Dans quelle mesure les contrats d’achat précisent-ils des exigences en matière de qualité des soins, y compris la disponibilité et la pertinence des soins, puis vérifient-ils de façon régulière qu’elles sont bien respectées ? | M186: =Results!AX87 ->  | N186: =Results!AY87 -> 0
A187: =Results!$B$2 -> 0 | E187: =Results!$B$6 -> 0 | G187: =CONCATENATE(Results!$C$4," - ",Results!$B$4) -> 0 - 0 | H187: =CONCATENATE(Results!$C$5," - ",Results!$B$5) -> 0 - 0 | I187: =Results!AZ88 -> FALSE | J187: =Results!AU88 -> Quality | K187: =Results!AV88 -> Q4.6 | L187: =Results!AW88 -> Dans quelle mesure les formulaires de consultation des patients sont-ils normalisés dans l'ensemble du système de santé et utilisés pour analyser et évaluer l'activité de l’ensemble des prestataires et de la population | M187: =Results!AX88 ->  | N187: =Results!AY88 -> 0
A188: =Results!$B$2 -> 0 | E188: =Results!$B$6 -> 0 | G188: =CONCATENATE(Results!$C$4," - ",Results!$B$4) -> 0 - 0 | H188: =CONCATENATE(Results!$C$5," - ",Results!$B$5) -> 0 - 0 | I188: =Results!AZ89 -> FALSE | J188: =Results!AU89 -> Quality | K188: =Results!AV89 -> Q4.7 | L188: =Results!AW89 -> Dans quelle mesure les paiements des prestataires couvrent uniquement une partie ou l’ensemble des coûts totaux (y compris les salaires, les dépenses récurrentes, etc.) ? | M188: =Results!AX89 ->  | N188: =Results!AY89 -> 0
A189: =Results!$B$2 -> 0 | E189: =Results!$B$6 -> 0 | G189: =CONCATENATE(Results!$C$4," - ",Results!$B$4) -> 0 - 0 | H189: =CONCATENATE(Results!$C$5," - ",Results!$B$5) -> 0 - 0 | I189: =Results!AZ90 -> FALSE | J189: =Results!AU90 -> Quality | K189: =Results!AV90 -> Q4.8 | L189: =Results!AW90 -> Dans quelle mesure les prestataires jouissent-ils d’une autonomie financière et sont-ils tenus responsables, dans une mesure réaliste et conforme à leurs capacités ? | M189: =Results!AX90 ->  | N189: =Results!AY90 -> 0
A190: =Results!$B$2 -> 0 | E190: =Results!$B$6 -> 0 | G190: =CONCATENATE(Results!$C$4," - ",Results!$B$4) -> 0 - 0 | H190: =CONCATENATE(Results!$C$5," - ",Results!$B$5) -> 0 - 0 | I190: =Results!AZ91 -> FALSE | J190: =Results!AU91 -> Quality | K190: =Results!AV91 -> Q4.9 | L190: =Results!AW91 -> Dans quelle mesure l’accréditation des prestataires ou les contrats sélectifs sont-ils établis, fonctionnels et utilisés pour les achats ? | M190: =Results!AX91 ->  | N190: =Results!AY91 -> 0
A191: =Results!$B$2 -> 0 | E191: =Results!$B$6 -> 0 | G191: =CONCATENATE(Results!$C$4," - ",Results!$B$4) -> 0 - 0 | H191: =CONCATENATE(Results!$C$5," - ",Results!$B$5) -> 0 - 0 | I191: =Results!AZ92 -> FALSE | J191: =Results!AU92 -> Quality | K191: =Results!AV92 -> Q7.2 | L191: =Results!AW92 -> Dans quelle mesure les institutions responsables du financement de la santé disposent-elles de capacités adéquates, notamment en matière de ressources humaines (capacités techniques et managériales) et de TIC ? | M191: =Results!AX92 ->  | N191: =Results!AY92 -> 0

Sheet Policy Development Process (hidden)
D5: 1. Processus d’élaboration des politiques
G7: Quelle est la situation actuelle dans votre pays en ce qui concerne Q1.1?
D8: Q1.1 Le système de financement de la santé de votre pays a-t-il récemment fait l’objet d’un diagnostic ou d’une évaluation approfondie qui examine son impact sur les performances du système de santé ainsi que les causes des problèmes de performance ? | G8: Veuillez indiquer dans cette zone de texte vos idées, réflexions, évolutions récentes, projets actuels, etc.
W20: =Results!H8 -> 0/12
G23: Quelle est la situation actuelle dans votre pays en ce qui concerne Q1.2?
D24: Q1.2 A-t-on transposé en textes de loi/décrets une déclaration de politique récente relative au financement de la santé ? | G24: Veuillez indiquer dans cette zone de texte vos idées, réflexions, évolutions récentes, projets actuels, etc.
W36: =Results!H9 -> 0/12
G39: Quelle est la situation actuelle dans votre pays en ce qui concerne Q1.3?
D40: Q1.3 Existe-t-il un système de suivi régulier du financement de la santé, et si oui les données sont-elles utilisées pour suivre les progrès effectués (par exemple sur les modèles de dépenses et la protection financière) et pour renforcer la reddition de comptes ? | G40: Veuillez indiquer dans cette zone de texte vos idées, réflexions, évolutions récentes, projets actuels, etc.
W52: =Results!H10 -> 0/12
G56: Quelle est la situation actuelle dans votre pays en ce qui concerne Q1.4?
D57: Q1.4 Les études d’évaluation sont-elles réalisées sur une base systématique pour mesurer les conséquences de la mise en œuvre de réformes spécifiques du financement sur les objectifs du système de santé et dans quelles mesure les résultats servent-ils à guider la conception et la révision des politiques de financement de la santé ? | G57: Veuillez indiquer dans cette zone de texte vos idées, réflexions, évolutions récentes, projets actuels, etc.
W69: =Results!H11 -> 0/12
D75: Résumez ici les prochaines étapes, priorités ou points d’action que vous avez identifiés après avoir complété cette matrice relative aux Prestations et droits.
D81: Commentaires (retour d’informations sur la conception, la pertinence et la clarté des questions) dans cette matrice relative aux Prestations et droits.

Sheet Revenue Raising (hidden)
D5: 2. Collecte de recettes
G7: Quelle est la situation actuelle dans votre pays en ce qui concerne Q2.1?
D8: Q2.1 Quelle approche est en vigueur dans votre pays en matière d’élaboration de politiques et de stratégies de collecte de revenus ? Cette approche s'inscrit-elle dans le cadre du processus global d’élaboration et de planification de la mise en œuvre des politiques de financement de la santé ? | G8: Veuillez indiquer dans cette zone de texte vos idées, réflexions, évolutions récentes, projets actuels, etc. | W8: 1
W20: =Results!H12 -> 0/12
G23: Quelle est la situation actuelle dans votre pays en ce qui concerne Q2.2?
D24: Q2.2 Dans quelle mesure le financement de la santé dans votre pays repose-t-il sur des sources de financement public/obligatoire (par exemple, fiscalité/recettes publiques, y compris les cotisations obligatoires à l’assurance-maladie nationale/sociale) ? | G24: Veuillez indiquer dans cette zone de texte vos idées, réflexions, évolutions récentes, projets actuels, etc. | W24: 1
W36: =Results!H13 -> 0/12
G39: Quelle est la situation actuelle dans votre pays en ce qui concerne Q2.3?
D40: Q2.3 Dans quelle mesure le financement public de la santé dans votre pays est-il prédictible sur plusieurs années ? | G40: Veuillez indiquer dans cette zone de texte vos idées, réflexions, évolutions récentes, projets actuels, etc. | W40: 1
W52: =Results!H14 -> 0/12
G55: Quelle est la situation actuelle dans votre pays en ce qui concerne Q2.4?
D56: Q2.4 Dans quelle mesure le flux de fonds publics est-il stable, notamment grâce à une exécution budgétaire régulière, c’est-à-dire un déblocage des fonds dans les délais, conformément aux budgets de santé approuvés ? | G56: Veuillez indiquer dans cette zone de texte vos idées, réflexions, évolutions récentes, projets actuels, etc. | W56: 1
W68: =Results!H15 -> 0/12
G71: Quelle est la situation actuelle dans votre pays en ce qui concerne Q2.5?
D72: Q2.5 Dans quelle mesure les différentes sources de revenus sont-elles collectées de façon progressive (c.-à-d. en fonction de la capacité de payer), et partant de là favorisent l’équité dans le mode de financement du système de santé ? | G72: Veuillez indiquer dans cette zone de texte vos idées, réflexions, évolutions récentes, projets actuels, etc. | W72: 1
W84: =Results!H16 -> 0/12
D89: Résumez ici les prochaines étapes, priorités ou points d’action que vous avez identifiés après avoir complété cette matrice relative aux Prestations et droits.
D95: Commentaires (retour d’informations sur la conception, la pertinence et la clarté des questions) dans cette matrice relative aux Prestations et droits.

Sheet Pooling Revenues (hidden)
D5: 3. Mise en commun des recettes
D8: Q3.1 Cette question a été maintenant remplacé par l’étape 1 et le tableau de vue d’ensemble et ne constitue donc plus une question distincte. Merci de bien vous assurer que vous avez complété l’étape 1 car cela vous aidera à remplir les questions de cette section.
G23: Quelle est la situation actuelle dans votre pays en ce qui concerne Q3.2?
D24: Q3.2 Dans le cadre du processus global d’élaboration et de planification de la mise en œuvre des politiques de financement de la santé, quelle est l’approche de votre pays en matière de dispositifs de mise en commun des ressources ? | G24: Veuillez indiquer dans cette zone de texte vos idées, réflexions, évolutions récentes, projets actuels, etc. | W24: 1
W36: =Results!H18 -> 0/12
G39: Quelle est la situation actuelle dans votre pays en ce qui concerne Q3.3?
D40: Q3.3 Dans quelle mesure la capacité de redistribution des fonds prépayés dans votre pays est-elle limitée par le cadre institutionnel du financement de la santé ? | G40: Veuillez indiquer dans cette zone de texte vos idées, réflexions, évolutions récentes, projets actuels, etc. | W40: 1
W52: =Results!H19 -> 0/12
G55: Quelle est la situation actuelle dans votre pays en ce qui concerne Q3.4?
D56: Q3.4 Y-a-il des mesures, dans la conception des prestations, le paiement des prestataires ou les systèmes sous-jacents non financiers, qui visent à contrecarrer les problèmes découlant de la fragmentation de l’architecture du financement de la santé ? | G56: Veuillez indiquer dans cette zone de texte vos idées, réflexions, évolutions récentes, projets actuels, etc. | W56: 1
W68: =Results!H20 -> 0/12
G71: Quelle est la situation actuelle dans votre pays en ce qui concerne Q3.5?
D72: Q3.5 Dans quelle mesure les différentes sources de recettes et de financement sont-elles organisées de manière complémentaire, afin de financer un paquet de prestations pour l’ensemble de la population ? | G72: Veuillez indiquer dans cette zone de texte vos idées, réflexions, évolutions récentes, projets actuels, etc. | W72: 1
W84: =Results!H21 -> 0/12
G87: Quelle est la situation actuelle dans votre pays en ce qui concerne Q3.6?
D88: Q3.6 Dans quelle mesure les dispositifs d’assurance-maladie volontaire sont-ils une source d’inégalités, créant des effets de contagion potentiellement néfastes pour l’ensemble du système de santé ? | G88: Veuillez indiquer dans cette zone de texte vos idées, réflexions, évolutions récentes, projets actuels, etc. | W88: 1
W100: =Results!H22 -> 0/12
G103: Quelle est la situation actuelle dans votre pays en ce qui concerne Q3.7?
D104: Q3.7 Dans quelle mesure les flux financiers sont-ils incohérents et redondants, et empêchent d’utiliser efficacement le budget public et les fonds des donateurs ? | G104: Veuillez indiquer dans cette zone de texte vos idées, réflexions, évolutions récentes, projets actuels, etc. | W104: 1
W116: =Results!H23 -> 0/12
D121: Résumez ici les prochaines étapes, priorités ou points d’action que vous avez identifiés après avoir complété cette matrice relative aux Prestations et droits.
D127: Commentaires (retour d’informations sur la conception, la pertinence et la clarté des questions) dans cette matrice relative aux Prestations et droits.

Sheet Purchasing and Provider Payment (hidden)
D5: 4. Achats et paiement des prestataires
G7: Quelle est la situation actuelle dans votre pays en ce qui concerne Q4.1?
D8: Q4.1 Dans quelle mesure les allocations de fonds aux acheteurs de niveau inférieur, par exemple les administrations locales, et/ou les taux de paiement aux prestataires sont-ils le reflet des besoins de santé de la population ? | G8: Veuillez indiquer dans cette zone de texte vos idées, réflexions, évolutions récentes, projets actuels, etc. | W8: 1
W20: =Results!H24 -> 0/12
G23: Quelle est la situation actuelle dans votre pays en ce qui concerne Q4.2?
D24: Q4.2 Dans quelle mesure les paiements des prestataires sont-ils harmonisés entre régimes/sources de revenus et entre secteurs public et privé, afin de garantir des incitations cohérentes aux prestataires ? | G24: Veuillez indiquer dans cette zone de texte vos idées, réflexions, évolutions récentes, projets actuels, etc. | W24: 1
W36: =Results!H25 -> 0/12
G39: Quelle est la situation actuelle dans votre pays en ce qui concerne Q4.3?
D40: Q4.3 Dans quelle mesure les méthodes de paiement des prestataires et les achats en général favorisent-ils la qualité des soins et la coordination des soins entre les spécialités et les différents niveaux de soins ? | G40: Veuillez indiquer dans cette zone de texte vos idées, réflexions, évolutions récentes, projets actuels, etc. | W40: 1
W52: =Results!H26 -> 0/12
G55: Quelle est la situation actuelle dans votre pays en ce qui concerne Q4.4?
D56: Q4.4 Dans quelle mesure les contrats d’achat précisent-ils des exigences en matière de qualité des soins, y compris la disponibilité et la pertinence des soins, puis vérifient-ils de façon régulière qu’elles sont bien respectées ? | G56: Veuillez indiquer dans cette zone de texte vos idées, réflexions, évolutions récentes, projets actuels, etc. | W56: 1
W68: =Results!H27 -> 0/12
G71: Quelle est la situation actuelle dans votre pays en ce qui concerne Q4.5?
D72: Q4.5 Dans quelle mesure les méthodes de paiement des prestataires favorisent-elles l’efficacité de l’allocation des ressources, par exemple en réduisant la prestation excessive ou en augmentant celle insuffisante des services, et gèrent-elles la croissance des dépenses ? | G72: Veuillez indiquer dans cette zone de texte vos idées, réflexions, évolutions récentes, projets actuels, etc. | W72: 1
W84: =Results!H28 -> 0/12
G87: Quelle est la situation actuelle dans votre pays en ce qui concerne Q4.6?
D88: Q4.6 Dans quelle mesure les formulaires de consultation des patients sont-ils normalisés dans l'ensemble du système de santé et utilisés pour analyser et évaluer l'activité de l’ensemble des prestataires et de la population | G88: Veuillez indiquer dans cette zone de texte vos idées, réflexions, évolutions récentes, projets actuels, etc. | W88: 1
W100: =Results!H29 -> 0/12
G103: Quelle est la situation actuelle dans votre pays en ce qui concerne Q4.7?
D104: Q4.7 Dans quelle mesure les paiements des prestataires couvrent uniquement une partie ou l’ensemble des coûts totaux (y compris les salaires, les dépenses récurrentes, etc.) ? | G104: Veuillez indiquer dans cette zone de texte vos idées, réflexions, évolutions récentes, projets actuels, etc. | W104: 1
W116: =Results!H30 -> 0/12
G119: Quelle est la situation actuelle dans votre pays en ce qui concerne Q4.8?
D120: Q4.8 Dans quelle mesure les prestataires jouissent-ils d’une autonomie financière et sont-ils tenus responsables, dans une mesure réaliste et conforme à leurs capacités ? | G120: Veuillez indiquer dans cette zone de texte vos idées, réflexions, évolutions récentes, projets actuels, etc. | W120: 1
W132: =Results!H31 -> 0/12
G135: Quelle est la situation actuelle dans votre pays en ce qui concerne Q4.9?
D136: Q4.9 Dans quelle mesure l’accréditation des prestataires ou les contrats sélectifs sont-ils établis, fonctionnels et utilisés pour les achats ? | G136: Veuillez indiquer dans cette zone de texte vos idées, réflexions, évolutions récentes, projets actuels, etc. | W136: 1
W148: =Results!H32 -> 0/12
G151: Quelle est la situation actuelle dans votre pays en ce qui concerne Q4.10?
D152: Q4.10 Dans quelle mesure l’achat et le paiement des produits pharmaceutiques sont-ils mis en œuvre pour promouvoir l’utilisation efficace des médicaments (par exemple le recours aux génériques plutôt qu’aux princeps) et pour améliorer la protection financière des patients ? | G152: Veuillez indiquer dans cette zone de texte vos idées, réflexions, évolutions récentes, projets actuels, etc. | W152: 1
W164: =Results!H33 -> 0/12
D169: Résumez ici les prochaines étapes, priorités ou points d’action que vous avez identifiés après avoir complété cette matrice relative aux Prestations et droits.
D175: Commentaires (retour d’informations sur la conception, la pertinence et la clarté des questions) dans cette matrice relative aux Prestations et droits.

Sheet Benefits and Entitlements (hidden)
D5: 5. Prestations et droits
D8: Q5.1 Cette question a été maintenant remplacé par l’étape 1 et le tableau de vue d’ensemble et ne constitue donc plus une question distincte. Merci de bien vous assurer que vous avez complété l’étape 1 car cela vous aidera à remplir les questions de cette section.
G23: Quelle est la situation actuelle dans votre pays en ce qui concerne Q5.2?
D24: Q5.2 Dans quelle mesure les décisions et les révisions relatives aux prestations sont-elles prises de manière transparente, sur la base d’un processus clairement défini et de critères convenus, tels que le rapport coût-efficacité, la protection financière, l’impact budgétaire ? | G24: Veuillez indiquer dans cette zone de texte vos idées, réflexions, évolutions récentes, projets actuels, etc. | W24: 1
W36: =Results!H35 -> 0/12
G39: Quelle est la situation actuelle dans votre pays en ce qui concerne Q5.3?
D40: Q5.3 Dans quelle mesure les droits à prestation reflètent-ils explicitement les besoins de santé de la population ? | G40: Veuillez indiquer dans cette zone de texte vos idées, réflexions, évolutions récentes, projets actuels, etc. | W40: 0
W52: =Results!H36 -> 0/12
G55: Quelle est la situation actuelle dans votre pays en ce qui concerne Q5.4?
D56: Q5.4 Dans quelle mesure les prestations accordent-elles la priorité aux catégories de population prioritaires, par exemple pour une meilleure utilisation des services hautement prioritaires et pour la protection financière ? | G56: Veuillez indiquer dans cette zone de texte vos idées, réflexions, évolutions récentes, projets actuels, etc. | W56: 1
W68: =Results!H37 -> 0/12
G71: Quelle est la situation actuelle dans votre pays en ce qui concerne Q5.5?
D72: Q5.5 Dans quelle mesure les droits et obligations de la population sont-ils explicitement définis et compris par les intéressés ? | G72: Veuillez indiquer dans cette zone de texte vos idées, réflexions, évolutions récentes, projets actuels, etc. | W72: 1
W84: =Results!H38 -> 0/12
G87: Quelle est la situation actuelle dans votre pays en ce qui concerne Q5.6?
D88: Q5.6 Dans quelle mesure les prestations sont-elles alignées sur le paiement des prestataires, afin de s’assurer qu’elles sont fournies et que les patients bénéficient d’une protection financière ? | G88: Veuillez indiquer dans cette zone de texte vos idées, réflexions, évolutions récentes, projets actuels, etc. | W88: 1
W100: =Results!H39 -> 0/12
G103: Quelle est la situation actuelle dans votre pays en ce qui concerne Q5.7?
D104: Q5.7 Dans quelle mesure les prestations, y compris le partage des coûts pour les patients, sont-elles alignées sur les recettes, afin d’assurer un financement adéquat des droits à prestations approuvés ? | G104: Veuillez indiquer dans cette zone de texte vos idées, réflexions, évolutions récentes, projets actuels, etc. | W104: 1
W116: =Results!H40 -> 0/12
D121: Résumez ici les prochaines étapes, priorités ou points d’action que vous avez identifiés après avoir complété cette matrice relative aux Prestations et droits.
D127: Commentaires (retour d’informations sur la conception, la pertinence et la clarté des questions) dans cette matrice relative aux Prestations et droits.

Sheet PFM (hidden)
D5: 6. Gestion des finances publiques (GFP)
G7: Quelle est la situation actuelle dans votre pays en ce qui concerne Q6.1?
D8: Q6.1 Est-ce qu’un diagnostic/une évaluation approfondi(e) des goulets d’étranglement de la GFP dans le secteur de la santé a été effectué(e) récemment, par exemple au cours des trois dernières années ? | G8: Veuillez indiquer dans cette zone de texte vos idées, réflexions, évolutions récentes, projets actuels, etc.
W20: =Results!H41 -> 0/12
G23: Quelle est la situation actuelle dans votre pays en ce qui concerne Q6.2?
D24: Q6.2 Le personnel du Ministère de la santé dispose-t-il de capacités à comprendre les (nouvelles) règles de GFP et à les appliquer au processus budgétaire du secteur de la santé ? | G24: Veuillez indiquer dans cette zone de texte vos idées, réflexions, évolutions récentes, projets actuels, etc.
W36: =Results!H42 -> 0/12
G39: Quelle est la situation actuelle dans votre pays en ce qui concerne Q6.3?
D40: Q6.3 Existe-il un processus budgétaire pluriannuel mis en œuvre efficacement ? | G40: Veuillez indiquer dans cette zone de texte vos idées, réflexions, évolutions récentes, projets actuels, etc.
W52: =Results!H43 -> 0/12
G55: Quelle est la situation actuelle dans votre pays en ce qui concerne Q6.4?
D56: Q6.4 Dans quelle mesure les allocations budgétaires annuelles en matière de santé sont alignées sur les priorités du secteur de la santé (niveau, structure, nature/objectif) ? | G56: Veuillez indiquer dans cette zone de texte vos idées, réflexions, évolutions récentes, projets actuels, etc. | W56: 1
W68: =Results!H44 -> 0/12
G71: Quelle est la situation actuelle dans votre pays en ce qui concerne Q6.5?
D72: Q6.5 Dans quelle mesure le processus budgétaire est consultatif, transparent et un processus d’examen et d’ajustement budgétaire à mi-parcours est établi ? | G72: Veuillez indiquer dans cette zone de texte vos idées, réflexions, évolutions récentes, projets actuels, etc. | W72: 1
W84: =Results!H45 -> 0/12
G87: Quelle est la situation actuelle dans votre pays en ce qui concerne Q6.6?
D88: Q6.6 Dans quelle mesure les transferts fiscaux sont conçus et mis en œuvre de sorte à améliorer l’équité de la distribution des ressources dans le secteur de la santé? | G88: Veuillez indiquer dans cette zone de texte vos idées, réflexions, évolutions récentes, projets actuels, etc. | W88: 1
W100: =Results!H46 -> 0/12
G103: Quelle est la situation actuelle dans votre pays en ce qui concerne Q6.7?
D104: Q6.7 Dans quelle mesure les règles du budget de la santé permettent-elles une certaine souplesse des dépenses? | G104: Veuillez indiquer dans cette zone de texte vos idées, réflexions, évolutions récentes, projets actuels, etc. | W104: 1
W116: =Results!H47 -> 0/12
G119: Quelle est la situation actuelle dans votre pays en ce qui concerne Q6.8?
D120: Q6.8 La flexibilité dans l’utilisation des ressources est-elle assurée ou déléguée au bon niveau? | G120: Veuillez indiquer dans cette zone de texte vos idées, réflexions, évolutions récentes, projets actuels, etc. | W120: 1
W132: =Results!H48 -> 0/12
G135: Quelle est la situation actuelle dans votre pays en ce qui concerne Q6.9?
D136: Q6.9 Dans quelle mesure des politiques de discipline budgétaire visant à contrôler les dépenses sont en vigueur (par exemple, gestion de la trésorerie, respect des règles d’approvisionnement) et mises en œuvre efficacement? | G136: Veuillez indiquer dans cette zone de texte vos idées, réflexions, évolutions récentes, projets actuels, etc. | W136: 1
W148: =Results!H49 -> 0/12
G151: Quelle est la situation actuelle dans votre pays en ce qui concerne Q6.10?
D152: Q6.10 Dans quelle mesure des systèmes d’information sont en place pour répondre aux besoins en matière de responsabilité financière et pour assurer le suivi des performances du secteur de la santé? | G152: Veuillez indiquer dans cette zone de texte vos idées, réflexions, évolutions récentes, projets actuels, etc.
W164: =Results!H50 -> 0/12
G167: Quelle est la situation actuelle dans votre pays en ce qui concerne Q6.11?
D168: Q6.11 Dans quelle mesure les flux financiers multiples, la structure budgétaire et les règles de GFP sont alignés sur les politiques d’achats stratégiques? | G168: Veuillez indiquer dans cette zone de texte vos idées, réflexions, évolutions récentes, projets actuels, etc. | W168: 1
W180: =Results!H51 -> 0/12
D185: Résumez ici les prochaines étapes, priorités ou points d’action que vous avez identifiés après avoir complété cette matrice relative aux Prestations et droits.
D191: Commentaires (retour d’informations sur la conception, la pertinence et la clarté des questions) dans cette matrice relative aux Prestations et droits.

Sheet Governance (hidden)
D5: 7. Gouvernance
G7: Quelle est la situation actuelle dans votre pays en ce qui concerne Q7.1?
D8: Q7.1 Dans quelle mesure les rôles et les responsabilités (liés aux objectifs de financement de la santé et au rendement en matière de collecte de recettes, de mise en commun, d’achats, de prestations, etc.) sont clairement définis et répartis entre les institutions responsables du financement de la santé ? | G8: Veuillez indiquer dans cette zone de texte vos idées, réflexions, évolutions récentes, projets actuels, etc. | W8: 1
W20: =Results!H52 -> 0/12
G23: Quelle est la situation actuelle dans votre pays en ce qui concerne Q7.2?
D24: Q7.2 Dans quelle mesure les institutions responsables du financement de la santé disposent-elles de capacités adéquates, notamment en matière de ressources humaines (capacités techniques et managériales) et de TIC ? | G24: Veuillez indiquer dans cette zone de texte vos idées, réflexions, évolutions récentes, projets actuels, etc. | W24: 1
W36: =Results!H53 -> 0/12
G39: Quelle est la situation actuelle dans votre pays en ce qui concerne Q7.3?
D40: Q7.3 Dans quelle mesure les mécanismes de responsabilisation des organismes d’achat/de financement (y compris l’autonomie et le conseil d’administration de l’agence d’assurance-maladie, les mécanismes de récompense/sanction, etc.) sont-ils en place pour s’assurer que la politique de financement de la santé appuie les progrès vers les objectifs du secteur et que les fonds sont utilisés efficacement pour les populations, programmes et services prioritaires ? | G40: Veuillez indiquer dans cette zone de texte vos idées, réflexions, évolutions récentes, projets actuels, etc. | W40: 1
W52: =Results!H54 -> 0/12
G55: Quelle est la situation actuelle dans votre pays en ce qui concerne Q7.4?
D56: Q7.4 L’utilisation des fonds ou les performances des institutions achetant des services auprès des prestataires de services de santé ou le budget de la santé ont-ils été communiqués au public (par exemple sous forme de rapport annuel) ? | G56: Veuillez indiquer dans cette zone de texte vos idées, réflexions, évolutions récentes, projets actuels, etc. | W56: 1
W68: =Results!H55 -> 0/12
G71: Quelle est la situation actuelle dans votre pays en ce qui concerne Q7.5?
